Service Area,Service Division,Expense Type,Expense Code,Detailed Expense Type,Payment Date,Transaction Number,Amount Exc VAT,Supplier Name
Neighbourhoods and Climate Change,Environmental Services,Supplies and Services,384700,Miscellaneous Expenses,01/03/2024,4241250-RES-02-2024-408,765.84,REDACTED - PAYMENT TO INDIVIDUAL
Adult and Health Services,Head of Adults,Third Party Payments,478101,Purchase of Care,01/03/2024,4241318-054,"1,282.40",REDACTED - PAYMENT TO INDIVIDUAL
Children and Young Peoples Services,Head of Childrens Social Care,Supplies and Services,338044,Services,01/03/2024,4241329-23052,"1,638.77",REDACTED - PAYMENT TO INDIVIDUAL
Neighbourhoods and Climate Change,Environmental Services,Supplies and Services,384700,Miscellaneous Expenses,01/03/2024,4241470-RES-02-2024-410,"3,000.00",REDACTED - PAYMENT TO INDIVIDUAL
Children and Young Peoples Services,Head of Childrens Social Care,Supplies and Services,304259,Equipment and Materials,01/03/2024,4241313-6050,"6,670.00",CREATIVE CARE TODMORDEN LTD.
Regeneration Economy and Growth,Corporate Property and Land,Supplies and Services,304221,Equipment and Materials,01/03/2024,4241405-SI-0027636,"13,158.00",KINGSLEY PLASTICS LIMITED.
Regeneration Economy and Growth,Culture Sport and Tourism,Supplies and Services,304259,Equipment and Materials,01/03/2024,4241442-SALE-1544265,963.22,NEWITT & CO LTD.
Regeneration Economy and Growth,Culture Sport and Tourism,Supplies and Services,384237,Miscellaneous Expenses,01/03/2024,4241519-2240,"1,200.00",STREETGAMES UK LTD.
Neighbourhoods and Climate Change,Environmental Services,Supplies and Services,384199,Miscellaneous Expenses,01/03/2024,4241553-INV-4360,"14,000.00",WALK UNLIMITED LTD.
Neighbourhoods and Climate Change,Highways,Supplies and Services,338066,Services,01/03/2024,4241242-6985,"1,210.00",ACADEMY GEOMATICS LTD.
Neighbourhoods and Climate Change,Highways,Supplies and Services,338066,Services,01/03/2024,4241242-6986,"1,210.00",ACADEMY GEOMATICS LTD.
Regeneration Economy and Growth,Corporate Property and Land,Premises,106080,Centrally Controlled Rep and Maint,01/03/2024,4241244-53830020,769.59,ADT FIRE & SECURITY PLC.
Regeneration Economy and Growth,Corporate Property and Land,Premises,106082,Centrally Controlled Rep and Maint,01/03/2024,4241244-54218094,"1,225.63",ADT FIRE & SECURITY PLC.
Regeneration Economy and Growth,Corporate Property and Land,Premises,106082,Centrally Controlled Rep and Maint,01/03/2024,4241244-54434146,"1,605.09",ADT FIRE & SECURITY PLC.
Regeneration Economy and Growth,Culture Sport and Tourism,Premises,106082,Centrally Controlled Rep and Maint,01/03/2024,4241244-54440343,671.18,ADT FIRE & SECURITY PLC.
Regeneration Economy and Growth,Culture Sport and Tourism,Supplies and Services,312013,Newspapers books and periodicals E312,01/03/2024,4241260-7005086,742.31,ASKEWS & HOLTS LIBRARY SERVICES LTD.
Regeneration Economy and Growth,Business Durham,Fees,901002,Consultants fees 901002,01/03/2024,4241262-24004774,"49,063.73",ATKINSREALIS UK LTD.
Regeneration Economy and Growth,Corporate Property and Land,Third Party Payments,430100,Rendered by Private Contractors,01/03/2024,4241266-SI-7291,"4,849.00",BELL CONTROL SOLUTIONS LTD.
Neighbourhoods and Climate Change,Environmental Services,Third Party Payments,430100,Rendered by Private Contractors,01/03/2024,4241267-36159658,820.15,BELL TRUCK SALES LTD T/A BELL TRUCK & VAN.
Neighbourhoods and Climate Change,Environmental Services,Third Party Payments,430100,Rendered by Private Contractors,01/03/2024,4241267-46067214,"3,158.27",BELL TRUCK SALES LTD T/A BELL TRUCK & VAN.
Neighbourhoods and Climate Change,Environmental Services,Third Party Payments,430100,Rendered by Private Contractors,01/03/2024,4241267-46067254,763.32,BELL TRUCK SALES LTD T/A BELL TRUCK & VAN.
Neighbourhoods and Climate Change,Environmental Services,Supplies and Services,338099,Services,01/03/2024,4241277-17108,628.00,BORDER SIGNS & GRAPHICS.
Adult and Health Services,Head of Adults,Supplies and Services,338366,Services,01/03/2024,4241285-94208,"1,712.09",CARE ABILITY HEALTHCARE LTD.
Adult and Health Services,Head of Adults,Supplies and Services,338366,Services,01/03/2024,4241285-94209,599.79,CARE ABILITY HEALTHCARE LTD.
Adult and Health Services,Head of Adults,Supplies and Services,338366,Services,01/03/2024,4241285-94210,593.33,CARE ABILITY HEALTHCARE LTD.
Adult and Health Services,Head of Adults,Supplies and Services,338366,Services,01/03/2024,4241285-94211,577.35,CARE ABILITY HEALTHCARE LTD.
Adult and Health Services,Head of Adults,Supplies and Services,338366,Services,01/03/2024,4241285-94212,862.65,CARE ABILITY HEALTHCARE LTD.
Adult and Health Services,Head of Adults,Supplies and Services,384616,Miscellaneous Expenses,01/03/2024,4241286-MA245680-1,"1,641.96",CARE HOUSING ASSOCIATION LTD.
Adult and Health Services,Commissioning inc Supporting People,Third Party Payments,479101,Purchase of Care,01/03/2024,4241287-INV056854,"7,000.00",CAREHOME SELECTION LTD (CHS HEALTHCARE).
Children and Young Peoples Services,Head of Childrens Social Care,Third Party Payments,440046,Other third party payments E440,01/03/2024,4241290-26159,"4,291.28",CASTLE VIEW GROUP TRAINING.
Children and Young Peoples Services,Head of Childrens Social Care,Third Party Payments,440047,Other third party payments E440,01/03/2024,4241290-26257,"1,061.76",CASTLE VIEW GROUP TRAINING.
Children and Young Peoples Services,Head of Childrens Social Care,Third Party Payments,440038,Other third party payments E440,01/03/2024,4241290-26377,"1,645.00",CASTLE VIEW GROUP TRAINING.
Children and Young Peoples Services,Head of Childrens Social Care,Third Party Payments,440046,Other third party payments E440,01/03/2024,4241290-26379,"1,421.00",CASTLE VIEW GROUP TRAINING.
Children and Young Peoples Services,Head of Childrens Social Care,Third Party Payments,440046,Other third party payments E440,01/03/2024,4241290-26383,942.50,CASTLE VIEW GROUP TRAINING.
Children and Young Peoples Services,Head of Childrens Social Care,Third Party Payments,440046,Other third party payments E440,01/03/2024,4241290-27065,"6,061.00",CASTLE VIEW GROUP TRAINING.
Regeneration Economy and Growth,Corporate Property and Land,Third Party Payments,430100,Rendered by Private Contractors,01/03/2024,4241292-12401,719.68,CATHEDRAL LOCK & SAFE SERVICES LTD.
Children and Young Peoples Services,Head of Education and Skills,Supplies and Services,338035,Services,01/03/2024,4241299-806521680,710.00,CITY & GUILDS OF LONDON INSTITUTE.
Regeneration Economy and Growth,Corporate Property and Land,Supplies and Services,304221,Equipment and Materials,01/03/2024,4241301-2852ABZ374,"1,216.06",CITY PLUMBING SUPPLIES HOLDINGS LTD.
Children and Young Peoples Services,Head of Education and Skills,Third Party Payments,440999,Other third party payments E440,01/03/2024,4241305-CTA/DCC/COMLEARN/IRO5,"7,950.00",COMMUNICATORS TRAINING ASSOCIATES LTD.
Adult and Health Services,Head of Adults,Supplies and Services,304259,Equipment and Materials,01/03/2024,4241309-YC9170,"3,769.00",CORECARE GLOBAL LTD T/A YORKSHIRE CARE EQUIPMENT.
Adult and Health Services,Head of Adults,Supplies and Services,304259,Equipment and Materials,01/03/2024,4241309-YC9171,"3,769.00",CORECARE GLOBAL LTD T/A YORKSHIRE CARE EQUIPMENT.
Children and Young Peoples Services,Head of Early Help Inclusion & Vulnerable Children.,Supplies and Services,324500,Provisions E324,01/03/2024,4241315-25726,"21,686.03",CREATIVE MANAGEMENT SERVICES LTD.
Neighbourhoods and Climate Change,Environmental Services,Supplies and Services,384199,Miscellaneous Expenses,01/03/2024,4241322-INV-0755,"1,109.00",DIFFERENT NARRATIVE INTEGRATED MARKETING LTD.
Regeneration Economy and Growth,Planning & Housing,Supplies and Services,338094,Services,01/03/2024,4241333-3327,"1,147.92",DURHAM CRICKET EVENTS LTD.
Regeneration Economy and Growth,Corporate Property and Land,Supplies and Services,304221,Equipment and Materials,01/03/2024,4241337-059-331877,524.46,EDMUNDSON ELECTRICAL LTD.
Neighbourhoods and Climate Change,Highways,Supplies and Services,304221,Equipment and Materials,01/03/2024,4241344-2401\238,922.56,EPPLETON QUARRY PRODUCTS LTD.
Adult and Health Services,Head of Adults,Third Party Payments,478151,Purchase of Care,01/03/2024,4241346-ECS833-24,"3,114.27",ESSENTIAL CARE & SUPPORT LTD.
Adult and Health Services,Head of Adults,Supplies and Services,338089,Services,01/03/2024,4241352-9273,600.00,FANE LTD.
Children and Young Peoples Services,Head of Education and Skills,Supplies and Services,372009,Subscriptions E372,01/03/2024,4241353-INV-5460,"3,052.50",FLASH ACADEMY.
Children and Young Peoples Services,Head of Childrens Social Care,Supplies and Services,338044,Services,01/03/2024,4241355-112935,600.80,FORENSIC TESTING SERVICE LTD.
Neighbourhoods and Climate Change,Environmental Services,Third Party Payments,430100,Rendered by Private Contractors,01/03/2024,4241356-123248,822.28,FR SHARROCK LTD.
Neighbourhoods and Climate Change,Environmental Services,Third Party Payments,430100,Rendered by Private Contractors,01/03/2024,4241356-123249,"6,572.67",FR SHARROCK LTD.
Neighbourhoods and Climate Change,Highways,Stock A926,926900,Stock in hand-Inventory system,01/03/2024,4241365-06/256233,844.00,GREENHAM TRADING LTD.
Regeneration Economy and Growth,Corporate Property and Land,Supplies and Services,304221,Equipment and Materials,01/03/2024,4241370-4790102,755.04,HEADLAM (FLOORCOVERING DISTRIBUTORS) LTD.
Regeneration Economy and Growth,Corporate Property and Land,Supplies and Services,304221,Equipment and Materials,01/03/2024,4241370-4790103,603.33,HEADLAM (FLOORCOVERING DISTRIBUTORS) LTD.
Adult and Health Services,Head of Adults,Third Party Payments,478151,Purchase of Care,01/03/2024,4241373-HLC1013,"4,159.54",HIGHLEA CARE LTD.
Regeneration Economy and Growth,Corporate Property and Land,Premises,108099,Service Repairs and Maintenance,01/03/2024,4241376-7081075020,"1,020.98",HONEYWELL NOVAR SYSTEMS LTD.
Adult and Health Services,Public Health CC0450,Third Party Payments,460803,Contract Payments,01/03/2024,4241378-SI-HK-001852,"374,752.00",HUMANKIND CHARITY.
Adult and Health Services,Public Health CC0450,Third Party Payments,460803,Contract Payments,01/03/2024,4241378-SI-HK-002012,"374,752.00",HUMANKIND CHARITY.
Adult and Health Services,Public Health CC0450,Third Party Payments,460803,Contract Payments,01/03/2024,4241378-SI-HK-002014,"5,000.00",HUMANKIND CHARITY.
Regeneration Economy and Growth,Corporate Property and Land,Premises,108099,Service Repairs and Maintenance,01/03/2024,4241379-151878,"1,847.19",HUTCHINSON ENVIRONMENTAL SOLUTIONS LTD.
Regeneration Economy and Growth,Culture Sport and Tourism,Supplies and Services,342225,Computers and Communications,01/03/2024,4241383-2306-13507-002,"30,300.00",INNOVATISE GMBH.
Neighbourhoods and Climate Change,Environmental Services,Supplies and Services,324117,Provisions E324,01/03/2024,4241389-27048,591.16,J MORAN LTD T/A CAFFE VINCI.
Neighbourhoods and Climate Change,Highways,Construction work A908,908105,Construction work,01/03/2024,4241391-28869,"1,488.36",JACK COUPE & SONS LTD T/A COUPE LINE.
Regeneration Economy and Growth,Corporate Property and Land,Premises,108099,Service Repairs and Maintenance,01/03/2024,4241394-30244,"5,144.40",JC MAINTENANCE SERVICES LTD.
Neighbourhoods and Climate Change,Environmental Services,Third Party Payments,430100,Rendered by Private Contractors,01/03/2024,4241395-177627,921.63,JG PAXTON & SONS LTD.
Neighbourhoods and Climate Change,Environmental Services,Supplies and Services,384700,Miscellaneous Expenses,01/03/2024,4241402-RES-02-2024-407,"23,093.95",JT NIXON & SONS LTD.
Children and Young Peoples Services,Head of Education and Skills,Third Party Payments,440999,Other third party payments E440,01/03/2024,4241417-SI-44,"3,000.00",LOKMAN TRAINING LTD.
Neighbourhoods and Climate Change,Environmental Services,Supplies and Services,338066,Services,01/03/2024,4241430-51941,"2,951.12",MCVEIGH PARKER & CO LTD.
Neighbourhoods and Climate Change,Environmental Services,Supplies and Services,338066,Services,01/03/2024,4241430-51942,"2,147.92",MCVEIGH PARKER & CO LTD.
Regeneration Economy and Growth,Corporate Property and Land,Third Party Payments,430100,Rendered by Private Contractors,01/03/2024,4241439-47930,"19,324.00",NE & C WINDOWS & DOORS LTD.
Regeneration Economy and Growth,REG - Central Costs,Supplies and Services,384999,Miscellaneous Expenses,01/03/2024,4241445-RES-02-2024-372,"159,533.00",NORTH EAST COMBINED AUTHORITY (NECA).
Neighbourhoods and Climate Change,Environmental Services,Third Party Payments,430100,Rendered by Private Contractors,01/03/2024,4241447-1448775,"2,457.69",NORTH EAST TRUCK & VAN LTD.
Neighbourhoods and Climate Change,Highways,Third Party Payments,430100,Rendered by Private Contractors,01/03/2024,4241448-D120421414,"1,593.05",NORTHERN POWERGRID (NORTHEAST) LTD.
Neighbourhoods and Climate Change,Highways,Third Party Payments,430100,Rendered by Private Contractors,01/03/2024,4241448-DI20421415,"1,676.12",NORTHERN POWERGRID (NORTHEAST) LTD.
Neighbourhoods and Climate Change,Highways,Construction work A908,908201,Capital - Public Utilities - Electricity Services,01/03/2024,4241448-RES-02-2024-401,"11,878.78",NORTHERN POWERGRID (NORTHEAST) LTD.
Neighbourhoods and Climate Change,Highways,Construction work A908,908201,Capital - Public Utilities - Electricity Services,01/03/2024,4241448-RES-02-2024-402,"3,128.95",NORTHERN POWERGRID (NORTHEAST) LTD.
Neighbourhoods and Climate Change,Highways,Construction work A908,908201,Capital - Public Utilities - Electricity Services,01/03/2024,4241448-RES-02-2024-411,"2,678.83",NORTHERN POWERGRID (NORTHEAST) LTD.
Neighbourhoods and Climate Change,Highways,Construction work A908,908201,Capital - Public Utilities - Electricity Services,01/03/2024,4241448-RES-02-2024-412,"3,152.61",NORTHERN POWERGRID (NORTHEAST) LTD.
Regeneration Economy and Growth,Corporate Property and Land,Supplies and Services,384199,Miscellaneous Expenses,01/03/2024,4241460-3810,"4,250.00",PARAMOUNT CEILINGS & PARTITIONS LTD.
Regeneration Economy and Growth,Corporate Property and Land,Third Party Payments,430100,Rendered by Private Contractors,01/03/2024,4241460-3811,"4,200.00",PARAMOUNT CEILINGS & PARTITIONS LTD.
Neighbourhoods and Climate Change,Environmental Services,Transport,210057,Repair and Maintenance of Vehicles,01/03/2024,4241463-25964420,601.00,PARTSPLUS.
Regeneration Economy and Growth,Corporate Property and Land,Premises,108099,Service Repairs and Maintenance,01/03/2024,4241467-107618,"1,010.75",PETERLEE FIRE CO LTD.
Regeneration Economy and Growth,Corporate Property and Land,Premises,108099,Service Repairs and Maintenance,01/03/2024,4241477-17851,600.00,PREMIER CELL FIT T/A LIVEWIRE GATES & DOORS.
Neighbourhoods and Climate Change,Environmental Services,Premises,108099,Service Repairs and Maintenance,01/03/2024,4241477-17869,500.00,PREMIER CELL FIT T/A LIVEWIRE GATES & DOORS.
Children and Young Peoples Services,Head of Childrens Social Care,Supplies and Services,338044,Services,01/03/2024,4241482-23486/13,560.00,PSYCHREP UK LTD.
Dedicated Schools Grant BG0015,DSG High Needs Block,Supplies and Services,384199,Miscellaneous Expenses,01/03/2024,4241500-SW845,"1,670.00",SENSORY WORX.
Neighbourhoods and Climate Change,Highways,Stock A926,926900,Stock in hand-Inventory system,01/03/2024,4241502-IN2435,640.00,SEYMOUR (PLANT & EQUIPMENT) LTD.
Neighbourhoods and Climate Change,Highways,Stock A926,926900,Stock in hand-Inventory system,01/03/2024,4241502-IN2592,"1,159.50",SEYMOUR (PLANT & EQUIPMENT) LTD.
Regeneration Economy and Growth,Corporate Property and Land,Supplies and Services,304221,Equipment and Materials,01/03/2024,4241522-1144622,"1,682.61",T CROSSLING & CO LTD.
Regeneration Economy and Growth,Transport and Contract Services,Third Party Payments,430100,Rendered by Private Contractors,01/03/2024,4241523-INV-36926,"11,981.51",T3 SECURITY LTD.
Neighbourhoods and Climate Change,Environmental Services,Third Party Payments,430100,Rendered by Private Contractors,01/03/2024,4241524-117374,"1,733.34",TAYLOR & BRAITHWAITE LTD.
Neighbourhoods and Climate Change,Environmental Services,Third Party Payments,430100,Rendered by Private Contractors,01/03/2024,4241524-117375,558.15,TAYLOR & BRAITHWAITE LTD.
Neighbourhoods and Climate Change,Environmental Services,Supplies and Services,338066,Services,01/03/2024,4241527-RES-02-2024-389,"8,560.00",TEES RIVER TRUST.
Regeneration Economy and Growth,Business Durham,Supplies and Services,344033,Telephones,01/03/2024,4241530-005527116,993.20,THE PHONE CO-OP.
Regeneration Economy and Growth,Business Durham,Supplies and Services,338094,Services,01/03/2024,4241533-INV-4681,532.40,THE WORK PLACE (AYCLIFFE) LTD.
Regeneration Economy and Growth,Corporate Property and Land,Supplies and Services,304221,Equipment and Materials,01/03/2024,4241535-57322,645.00,THERMAL TRANSFER TECHNOLOGY.
Adult and Health Services,Head of Adults,Supplies and Services,328041,Clothing uniforms and laundry E328,01/03/2024,4241536-NSIN00108674,706.50,THOMAS OWEN & SONS (NEWCASTLE) LTD.
Resources BK0010,Legal & Democratic Services,Supplies and Services,338042,Services,01/03/2024,4241542-312664/INVGR733,"1,030.00",TRINITY CHAMBERS.
Regeneration Economy and Growth,Corporate Property and Land,Premises,108099,Service Repairs and Maintenance,01/03/2024,4241543-DLB38001,949.00,TYCO FIRE & INTEGRATED SOLUTIONS (UK) LTD.
Neighbourhoods and Climate Change,Highways,Supplies and Services,304221,Equipment and Materials,01/03/2024,4241544-256469,"1,092.07",TYNEDALE ROADSTONE LTD.
Neighbourhoods and Climate Change,Highways,Supplies and Services,304221,Equipment and Materials,01/03/2024,4241544-256472,876.92,TYNEDALE ROADSTONE LTD.
Neighbourhoods and Climate Change,Highways,Supplies and Services,304221,Equipment and Materials,01/03/2024,4241544-256490,"1,214.30",TYNEDALE ROADSTONE LTD.
Neighbourhoods and Climate Change,Highways,Supplies and Services,304221,Equipment and Materials,01/03/2024,4241544-256491,"1,170.90",TYNEDALE ROADSTONE LTD.
Neighbourhoods and Climate Change,Highways,Supplies and Services,304221,Equipment and Materials,01/03/2024,4241544-256499,902.75,TYNEDALE ROADSTONE LTD.
Neighbourhoods and Climate Change,Highways,Supplies and Services,304221,Equipment and Materials,01/03/2024,4241544-256501,"1,102.70",TYNEDALE ROADSTONE LTD.
Resources BK0010,Legal & Democratic Services,Supplies and Services,338099,Services,01/03/2024,4241551-SLIVRL0134894,"1,170.00",VIVID RESOURCING.
Regeneration Economy and Growth,Business Durham,Premises,108099,Service Repairs and Maintenance,01/03/2024,4241554-23530,887.48,WATERMAN ENVIRONMENTAL SERVICES.
Neighbourhoods and Climate Change,Environmental Services,Transport,215023,Running Costs of Vehicles,01/03/2024,4241558-1116176,960.00,YOUR NRG LTD.
Regeneration Economy and Growth,Culture Sport and Tourism,Supplies and Services,384302,Miscellaneous Expenses,01/03/2024,4241263-0024,"6,000.00",REDACTED - PAYMENT TO INDIVIDUAL
Children and Young Peoples Services,Head of Childrens Social Care,Supplies and Services,338044,Services,04/03/2024,4241738-0902243,802.00,REDACTED - PAYMENT TO INDIVIDUAL
Children and Young Peoples Services,Head of Childrens Social Care,Supplies and Services,384199,Miscellaneous Expenses,04/03/2024,4241764-0127JAN24,580.00,REDACTED - PAYMENT TO INDIVIDUAL
Children and Young Peoples Services,Head of Education and Skills,Transport,230006,Contract Hire,04/03/2024,4241765-195/2023,"1,598.24",REDACTED - PAYMENT TO INDIVIDUAL
Children and Young Peoples Services,Head of Education and Skills,Transport,230006,Contract Hire,04/03/2024,4241766-RCL-2419,"4,152.14",REDACTED - PAYMENT TO INDIVIDUAL
Regeneration Economy and Growth,Corporate Property and Land,Third Party Payments,430100,Rendered by Private Contractors,04/03/2024,4241767-DCC319,"1,600.00",REDACTED - PAYMENT TO INDIVIDUAL
Regeneration Economy and Growth,Corporate Property and Land,Third Party Payments,430100,Rendered by Private Contractors,04/03/2024,4241767-DCC320,"1,600.00",REDACTED - PAYMENT TO INDIVIDUAL
Regeneration Economy and Growth,Corporate Property and Land,Third Party Payments,430100,Rendered by Private Contractors,04/03/2024,4241767-DCC321,"1,440.00",REDACTED - PAYMENT TO INDIVIDUAL
Regeneration Economy and Growth,Culture Sport and Tourism,Supplies and Services,384199,Miscellaneous Expenses,04/03/2024,4241798-27,"1,998.00",REDACTED - PAYMENT TO INDIVIDUAL
Regeneration Economy and Growth,Culture Sport and Tourism,Third Party Payments,430131,Rendered by Private Contractors,04/03/2024,4241799-0011,600.00,REDACTED - PAYMENT TO INDIVIDUAL
Children and Young Peoples Services,Head of Education and Skills,Transport,230008,Contract Hire,04/03/2024,4241800-A196/JAN24,"2,198.80",REDACTED - PAYMENT TO INDIVIDUAL
Children and Young Peoples Services,Head of Childrens Social Care,Third Party Payments,425041,Rendered by Voluntary Organisations,04/03/2024,4241572-R31INV/00028056,"39,121.00",ACTION FOR CHILDREN.
Children and Young Peoples Services,Head of Childrens Social Care,Supplies and Services,384500,Miscellaneous Expenses,04/03/2024,4241622-INV-0431,560.00,CHAMELEON CONNECTION CIC.
Neighbourhoods and Climate Change,Partnerships & Community Engagement Div.,Cap Exp on Grants & Other Financial Assistance (REFCUS),918004,Contributions to other bodies 918004,04/03/2024,4241656-VOUCHER22NB-DVLY020,"4,500.00",DERWENTSIDE TRUST.
Regeneration Economy and Growth,Corporate Property and Land,Construction work A908,908105,Construction work,04/03/2024,4241709-0000122839,"2,375.00",HISTORIC ENGLAND.
Dedicated Schools Grant BG0015,DSG High Needs Block,Supplies and Services,384302,Miscellaneous Expenses,04/03/2024,4241771-WELS17,"5,711.76",NEW COLLEGE DURHAM ACADEMIES TRUST (NCDAT).
Adult and Health Services,Head of Adults,Third Party Payments,479101,Purchase of Care,04/03/2024,4241842-1TO1-01/2023,851.50,SERENE HEALTHCARE SERVICES LTD.
Adult and Health Services,Head of Adults,Third Party Payments,479101,Purchase of Care,04/03/2024,4241842-1TO1-01/2024,"1,854.00",SERENE HEALTHCARE SERVICES LTD.
Regeneration Economy and Growth,Culture Sport and Tourism,Supplies and Services,304259,Equipment and Materials,04/03/2024,4241570-90158696,"2,994.23",ABACUS LIGHTING LTD.
Adult and Health Services,Head of Adults,Supplies and Services,308011,Furniture,04/03/2024,4241576-180655,720.00,ALBANY OFFICE EQUIPMENT (WHOLESALE) LTD.
Regeneration Economy and Growth,Corporate Property and Land,Third Party Payments,430100,Rendered by Private Contractors,04/03/2024,4241579-SI30366,900.00,AMBIC LTD.
Resources BK0010,Corporate Finance & Commercial Services,Supplies and Services,372009,Subscriptions E372,04/03/2024,4241596-9000315680,"3,750.00",BARNSLEY METROPOLITAN BOROUGH COUNCIL.
Adult and Health Services,Head of Adults,Transport,230005,Contract Hire,04/03/2024,4241604-0844,"1,113.03",BIRDS TAXIS LTD.
Children and Young Peoples Services,Head of Education and Skills,Transport,230007,Contract Hire,04/03/2024,4241607-INV07609,"1,292.00",BLUELINE SOUTH INCORPORATING NAVIGATION TAXIS T/A BLUELINE TAXIS.
Regeneration Economy and Growth,Culture Sport and Tourism,Supplies and Services,312013,Newspapers books and periodicals E312,04/03/2024,4241608-233758,580.43,BOLINDA DIGITAL LTD.
Children and Young Peoples Services,Head of Education and Skills,Transport,230034,Contract Hire,04/03/2024,4241609-N116,"3,000.00",BON VOYAGE TAXIS LTD.
Regeneration Economy and Growth,Culture Sport and Tourism,Premises,145023,Cleaning and Domestic Supplies,04/03/2024,4241613-22SI2297540,"1,736.88",BRENNTAG UK LTD.
Adult and Health Services,Commissioning inc Supporting People,Third Party Payments,479101,Purchase of Care,04/03/2024,4241620-INV056802,"7,000.00",CAREHOME SELECTION LTD (CHS HEALTHCARE).
Children and Young Peoples Services,Head of Education and Skills,Transport,230006,Contract Hire,04/03/2024,4241624-2621,"4,284.00",CHEVRON TAXIS LTD.
Children and Young Peoples Services,Head of Education and Skills,Transport,230006,Contract Hire,04/03/2024,4241624-2644,"1,803.76",CHEVRON TAXIS LTD.
Regeneration Economy and Growth,Corporate Property and Land,Third Party Payments,430100,Rendered by Private Contractors,04/03/2024,4241635-10987,"3,308.40",COMMERCIAL COVERINGS LTD.
Children and Young Peoples Services,Head of Education and Skills,Transport,230006,Contract Hire,04/03/2024,4241636-F333JANUARY,"4,130.00",CONSETT CONTRACTS LTD.
Adult and Health Services,Public Health CC0450,Third Party Payments,460803,Contract Payments,04/03/2024,4241643-3910022891,"33,789.30",COUNTY DURHAM & DARLINGTON NHS FOUNDATION TRUST (CDDFT).
Adult and Health Services,Public Health CC0450,Third Party Payments,460803,Contract Payments,04/03/2024,4241643-3910022895,"11,549.00",COUNTY DURHAM & DARLINGTON NHS FOUNDATION TRUST (CDDFT).
Children and Young Peoples Services,Head of Education and Skills,Transport,230006,Contract Hire,04/03/2024,4241648-117125,"1,379.68",CROFT BUSINESS SERVICES LTD T/A CROFT TRAVEL.
Regeneration Economy and Growth,Planning & Housing,Third Party Payments,440200,Other third party payments E440,04/03/2024,4241651-RES-03-2024-001,"66,250.00",DARLINGTON BOROUGH COUNCIL.
Resources BK0010,Digital Services,Stock A926,926900,Stock in hand-Inventory system,04/03/2024,4241653-7402983544,"1,854.00",DELL COMPUTER CORPORATION LTD.
Resources BK0010,Digital Services,Stock A926,926900,Stock in hand-Inventory system,04/03/2024,4241653-7402983831,582.50,DELL COMPUTER CORPORATION LTD.
Resources BK0010,Legal & Democratic Services,Supplies and Services,338042,Services,04/03/2024,4241654-389385/INVEMC662,775.00,DERE STREET BARRISTERS.
Resources BK0010,Legal & Democratic Services,Supplies and Services,338042,Services,04/03/2024,4241654-391895/INVSEB1X355,875.00,DERE STREET BARRISTERS.
Resources BK0010,Legal & Democratic Services,Supplies and Services,338042,Services,04/03/2024,4241654-393822/INVEMC660,775.00,DERE STREET BARRISTERS.
Resources BK0010,Legal & Democratic Services,Supplies and Services,338042,Services,04/03/2024,4241654-393984/INVEMC661,775.00,DERE STREET BARRISTERS.
Resources BK0010,Legal & Democratic Services,Supplies and Services,338042,Services,04/03/2024,4241654-394121/INVVCH213,775.00,DERE STREET BARRISTERS.
Resources BK0010,Legal & Democratic Services,Supplies and Services,338042,Services,04/03/2024,4241654-394142/INVAD0251,625.00,DERE STREET BARRISTERS.
Resources BK0010,Legal & Democratic Services,Supplies and Services,338042,Services,04/03/2024,4241654-396414/INVJAH293,625.00,DERE STREET BARRISTERS.
Resources BK0010,Legal & Democratic Services,Supplies and Services,338042,Services,04/03/2024,4241654-397494/INVSEB1X354,775.00,DERE STREET BARRISTERS.
Resources BK0010,Legal & Democratic Services,Supplies and Services,338042,Services,04/03/2024,4241655-390466/INVJAH280,725.00,DERE STREET BARRISTERS.
Resources BK0010,Legal & Democratic Services,Supplies and Services,338042,Services,04/03/2024,4241655-390466/INVJAH283,"1,200.00",DERE STREET BARRISTERS.
Resources BK0010,Legal & Democratic Services,Supplies and Services,338042,Services,04/03/2024,4241655-392552/INVEMC663,875.00,DERE STREET BARRISTERS.
Resources BK0010,Legal & Democratic Services,Supplies and Services,338042,Services,04/03/2024,4241655-397577/INVEMC659,875.00,DERE STREET BARRISTERS.
Resources BK0010,Legal & Democratic Services,Supplies and Services,338042,Services,04/03/2024,4241655-397590/INVGHE378,875.00,DERE STREET BARRISTERS.
Resources BK0010,Digital Services,Supplies and Services,304639,Equipment and Materials,04/03/2024,4241657-147501206,"2,564.79",DIVERSEY LTD.
Regeneration Economy and Growth,Corporate Property and Land,Supplies and Services,304221,Equipment and Materials,04/03/2024,4241673-059-325031,"8,877.65",EDMUNDSON ELECTRICAL LTD.
Regeneration Economy and Growth,Corporate Property and Land,Supplies and Services,304221,Equipment and Materials,04/03/2024,4241673-059-331770,"6,020.74",EDMUNDSON ELECTRICAL LTD.
Regeneration Economy and Growth,Corporate Property and Land,Supplies and Services,304221,Equipment and Materials,04/03/2024,4241673-059-331997,961.69,EDMUNDSON ELECTRICAL LTD.
Regeneration Economy and Growth,Corporate Property and Land,Supplies and Services,304221,Equipment and Materials,04/03/2024,4241673-059-332058,789.97,EDMUNDSON ELECTRICAL LTD.
Neighbourhoods and Climate Change,Highways,Supplies and Services,304221,Equipment and Materials,04/03/2024,4241684-400451,904.80,ESH CONSTRUCTION LTD FORMERLY LUMSDEN & CARROLL CONSTRUCTION LTD.
Neighbourhoods and Climate Change,Environmental Services,Third Party Payments,430120,Rendered by Private Contractors,04/03/2024,4241687-SINV0213951,"1,762.26",FINNING (UK) LTD.
Neighbourhoods and Climate Change,Highways,Stock A926,926900,Stock in hand-Inventory system,04/03/2024,4241692-DRM/00328478,683.20,FRED WILLIAMSON & SONS LTD.*
Regeneration Economy and Growth,Corporate Property and Land,Third Party Payments,430100,Rendered by Private Contractors,04/03/2024,4241694-2635,680.00,G2M TESTING LTD.
Neighbourhoods and Climate Change,Environmental Services,Supplies and Services,304259,Equipment and Materials,04/03/2024,4241702-2425,592.00,GOTT TECHNICAL SERVICES LTD.
Regeneration Economy and Growth,Culture Sport and Tourism,Supplies and Services,304259,Equipment and Materials,04/03/2024,4241704-06/259088,533.50,GREENHAM TRADING LTD.
Regeneration Economy and Growth,Culture Sport and Tourism,Premises,145023,Cleaning and Domestic Supplies,04/03/2024,4241704-06/259173,577.68,GREENHAM TRADING LTD.
Resources BK0010,Digital Services,Supplies and Services,304303,Equipment and Materials,04/03/2024,4241705-INV0197938,"2,213.94",GVAV LTD T/A AUDIO VISUAL SOLUTIONS.
Regeneration Economy and Growth,Culture Sport and Tourism,Supplies and Services,304259,Equipment and Materials,04/03/2024,4241706-INV-5745,663.91,GYM TECH NORTH EAST.
Regeneration Economy and Growth,Corporate Property and Land,Supplies and Services,304221,Equipment and Materials,04/03/2024,4241708-4790476,716.90,HEADLAM (FLOORCOVERING DISTRIBUTORS) LTD.
Regeneration Economy and Growth,Corporate Property and Land,Supplies and Services,304221,Equipment and Materials,04/03/2024,4241712-A38/0178582,"2,256.68",HOWDENS JOINERY LTD.
Regeneration Economy and Growth,Culture Sport and Tourism,Premises,120021,Energy Costs,04/03/2024,4241713-18589,"8,914.53",IMPALA ESTATES LTD.
Resources BK0010,Digital Services,Stock A926,926900,Stock in hand-Inventory system,04/03/2024,4241717-2100827727,"6,926.14",INSIGHT DIRECT (UK) LTD.
Resources BK0010,Digital Services,Stock A926,926900,Stock in hand-Inventory system,04/03/2024,4241717-2100827728,"5,327.80",INSIGHT DIRECT (UK) LTD.
Regeneration Economy and Growth,Corporate Property and Land,Supplies and Services,324117,Provisions E324,04/03/2024,4241719-29471,504.21,J MORAN LTD T/A CAFFE VINCI.
Neighbourhoods and Climate Change,Environmental Services,Supplies and Services,324117,Provisions E324,04/03/2024,4241719-30143,623.16,J MORAN LTD T/A CAFFE VINCI.
Neighbourhoods and Climate Change,Environmental Services,Supplies and Services,324117,Provisions E324,04/03/2024,4241719-30300,559.16,J MORAN LTD T/A CAFFE VINCI.
Neighbourhoods and Climate Change,Environmental Services,Supplies and Services,324117,Provisions E324,04/03/2024,4241719-30503,895.96,J MORAN LTD T/A CAFFE VINCI.
Neighbourhoods and Climate Change,Highways,Construction work A908,908105,Construction work,04/03/2024,4241720-28871,"1,417.00",JACK COUPE & SONS LTD T/A COUPE LINE.
Regeneration Economy and Growth,Transport and Contract Services,Third Party Payments,430106,Rendered by Private Contractors,04/03/2024,4241723-43771,"12,379.00",JIM HUGHES COACHES LTD.
Children and Young Peoples Services,Head of Education and Skills,Transport,230008,Contract Hire,04/03/2024,4241724-110,"3,455.00",JOHN CRAKE & SONS MINI BUSES LTD.
Neighbourhoods and Climate Change,Environmental Services,Supplies and Services,304259,Equipment and Materials,04/03/2024,4241725-1216652,"3,299.80",JOHNSONS NURSERIES LTD.
Neighbourhoods and Climate Change,Highways,Stock A926,926900,Stock in hand-Inventory system,04/03/2024,4241728-0113/00056612,939.80,JT DOVE LTD.
Regeneration Economy and Growth,Corporate Property and Land,Supplies and Services,304221,Equipment and Materials,04/03/2024,4241728-0113/01129440,651.24,JT DOVE LTD.
Neighbourhoods and Climate Change,Highways,Supplies and Services,304221,Equipment and Materials,04/03/2024,4241728-0303/01138236,"3,179.00",JT DOVE LTD.
Neighbourhoods and Climate Change,Highways,Supplies and Services,304221,Equipment and Materials,04/03/2024,4241728-0303/01145384,747.28,JT DOVE LTD.
Regeneration Economy and Growth,Corporate Property and Land,Supplies and Services,304221,Equipment and Materials,04/03/2024,4241728-0303/01154263,"13,931.32",JT DOVE LTD.
Neighbourhoods and Climate Change,Environmental Services,Supplies and Services,384199,Miscellaneous Expenses,04/03/2024,4241729-1779,"3,321.70",JW BAINBRIDGE CONTRACTORS LTD.
Neighbourhoods and Climate Change,Environmental Services,Supplies and Services,338066,Services,04/03/2024,4241729-1780,"37,987.59",JW BAINBRIDGE CONTRACTORS LTD.
Regeneration Economy and Growth,Business Durham,Construction work A908,908105,Construction work,04/03/2024,4241735-10331926,"2,302,662.72",KIER CONSTRUCTION LTD - SCOTLAND
Children and Young Peoples Services,Head of Education and Skills,Transport,230008,Contract Hire,04/03/2024,4241736-N043-JANUARY24,"3,359.28",KINGSWAY CABS LTD.
Neighbourhoods and Climate Change,Environmental Services,Supplies and Services,304221,Equipment and Materials,04/03/2024,4241740-429734,616.40,LBS WORLDWIDE LTD T/A FRESH2O GLOBAL.
Regeneration Economy and Growth,Corporate Property and Land,Supplies and Services,304221,Equipment and Materials,04/03/2024,4241742-109899,"1,419.90",LEISURETEQ LTD.
Children and Young Peoples Services,Head of Education and Skills,Third Party Payments,440999,Other third party payments E440,04/03/2024,4241748-SI-45,"5,400.00",LOKMAN TRAINING LTD.
Resources BK0010,Digital Services,Supplies and Services,342033,Computers and Communications,04/03/2024,4241753-12662216,"2,046.00",MAINTEL EUROPE LTD.
Regeneration Economy and Growth,Planning & Housing,Third Party Payments,440200,Other third party payments E440,04/03/2024,4241760-RES-03-2024-005,"73,100.00",MIDDLESBROUGH BOROUGH COUNCIL.
Neighbourhoods and Climate Change,Environmental Services,Supplies and Services,304221,Equipment and Materials,04/03/2024,4241773-066013,"2,000.00",NEW ROW FARM NURSERIES.
Regeneration Economy and Growth,Planning & Housing,Supplies and Services,336005,Advertising E336,04/03/2024,4241774-44521991,533.00,NEWSQUEST (YORKSHIRE & NORTH EAST) LTD.
Adult and Health Services,Public Health CC0450,Third Party Payments,460803,Contract Payments,04/03/2024,4241775-7441000960,"69,224.94",NHS NORTH EAST & NORTH CUMBRIA ICB.
Regeneration Economy and Growth,Planning & Housing,Third Party Payments,440200,Other third party payments E440,04/03/2024,4241779-RES-03-2024-004,"43,352.50",NORTH TYNESIDE COUNCIL.
Neighbourhoods and Climate Change,Community Protection,Third Party Payments,430100,Rendered by Private Contractors,04/03/2024,4241780-250005060,660.00,NORTH YORKSHIRE COUNTY COUNCIL.
Neighbourhoods and Climate Change,Community Protection,Third Party Payments,430100,Rendered by Private Contractors,04/03/2024,4241780-250005065,660.00,NORTH YORKSHIRE COUNTY COUNCIL.
Regeneration Economy and Growth,Culture Sport and Tourism,Construction work A908,908105,Construction work,04/03/2024,4241781-CT426/03,"197,065.92",NORTHERN CONSTRUCTION SOLUTIONS LTD.
Regeneration Economy and Growth,Planning & Housing,Third Party Payments,440200,Other third party payments E440,04/03/2024,4241782-RES-03-2024-003,"125,928.00",NORTHUMBERLAND COUNTY COUNCIL.
Children and Young Peoples Services,Head of Childrens Social Care,Premises,135005,Water Services,04/03/2024,4241783-359144131230061419,859.20,NORTHUMBRIAN WATER LTD.
Regeneration Economy and Growth,Culture Sport and Tourism,Construction work A908,908105,Construction work,04/03/2024,4241783-915620731,"3,072.00",NORTHUMBRIAN WATER LTD.
Neighbourhoods and Climate Change,Highways,Supplies and Services,304259,Equipment and Materials,04/03/2024,4241786-27521,"3,700.00",OLIVERS TREE SERVICES LTD.
Neighbourhoods and Climate Change,Highways,Third Party Payments,430101,Rendered by Private Contractors,04/03/2024,4241786-27523,"4,950.00",OLIVERS TREE SERVICES LTD.
Neighbourhoods and Climate Change,Highways,Third Party Payments,430101,Rendered by Private Contractors,04/03/2024,4241786-27524,"4,950.00",OLIVERS TREE SERVICES LTD.
Neighbourhoods and Climate Change,Environmental Services,Third Party Payments,430100,Rendered by Private Contractors,04/03/2024,4241786-27525,620.00,OLIVERS TREE SERVICES LTD.
Regeneration Economy and Growth,Corporate Property and Land,Third Party Payments,430100,Rendered by Private Contractors,04/03/2024,4241792-3813,580.00,PARAMOUNT CEILINGS & PARTITIONS LTD.
Regeneration Economy and Growth,Culture Sport and Tourism,Supplies and Services,338047,Services,04/03/2024,4241793-R2351110,"1,143.96",PARAMOUNT PICTURES UK.
Neighbourhoods and Climate Change,Highways,Stock A926,926900,Stock in hand-Inventory system,04/03/2024,4241794-XL313368,"1,098.50",PARK ELECTRICAL DISTRIBUTORS LTD.
Neighbourhoods and Climate Change,Highways,Stock A926,926900,Stock in hand-Inventory system,04/03/2024,4241794-XL313460,"1,985.76",PARK ELECTRICAL DISTRIBUTORS LTD.
Neighbourhoods and Climate Change,Highways,Stock A926,926900,Stock in hand-Inventory system,04/03/2024,4241794-XL313461,"1,399.00",PARK ELECTRICAL DISTRIBUTORS LTD.
Neighbourhoods and Climate Change,Highways,Stock A926,926900,Stock in hand-Inventory system,04/03/2024,4241794-XL313499,"3,000.00",PARK ELECTRICAL DISTRIBUTORS LTD.
Adult and Health Services,Public Health CC0450,Third Party Payments,460803,Contract Payments,04/03/2024,4241796-58860763K,"18,375.00",PARK RETAIL LTD T/A LOVE2SHOP.
Adult and Health Services,Public Health CC0450,Third Party Payments,460803,Contract Payments,04/03/2024,4241796-58860763M,"18,375.00",PARK RETAIL LTD T/A LOVE2SHOP.
Resources BK0010,Legal & Democratic Services,Supplies and Services,338042,Services,04/03/2024,4241797-INV/BD69,800.00,PARKLANE PLOWDEN CHAMBERS (BARRISTERS).
Children and Young Peoples Services,Head of Education and Skills,Supplies and Services,312009,Newspapers books and periodicals E312,04/03/2024,4241802-2050037,"1,179.75",PETERS LTD.
Regeneration Economy and Growth,Transport and Contract Services,Third Party Payments,430108,Rendered by Private Contractors,04/03/2024,4241809-180886,"2,790.00",PREMIER TRAFFIC MANAGEMENT LTD.
Children and Young Peoples Services,Head of Early Help Inclusion & Vulnerable Children.,Third Party Payments,410037,Rendered by Other Local Authorities,04/03/2024,4241813-0000461128,900.00,PROSPERO GROUP LTD.
Children and Young Peoples Services,Head of Childrens Social Care,Third Party Payments,440046,Other third party payments E440,04/03/2024,4241814-3014,"105,792.12",PROTECTIVE CARE GROUP LTD.
Children and Young Peoples Services,Head of Childrens Social Care,Third Party Payments,425021,Rendered by Voluntary Organisations,04/03/2024,4241814-3015,"24,725.40",PROTECTIVE CARE GROUP LTD.
Regeneration Economy and Growth,Economic Development,Supplies and Services,352001,Conference Expenses,04/03/2024,4241816-535050,912.00,QUALSAFE.COM.
Neighbourhoods and Climate Change,Highways,Third Party Payments,430100,Rendered by Private Contractors,04/03/2024,4241817-15599,"9,177.23",QUANTUM POWER CONNECTIONS LTD.
Chief Executives Office,Communications Management,Supplies and Services,332029,Printing Stationery and Gen Off Exps,04/03/2024,4241820-21545,940.00,RADECAL SIGNS GRAPHICS & ADVERTISING.
Resources BK0010,Digital Services,Supplies and Services,304245,Equipment and Materials,04/03/2024,4241823-2402019,"2,226.90",READYGRID LTD T/A ROYALE GRAPHICS.
Regeneration Economy and Growth,Planning & Housing,Third Party Payments,440200,Other third party payments E440,04/03/2024,4241824-RES-03-2024-002,"23,100.00",REDCAR & CLEVELAND BOROUGH COUNCIL.
Regeneration Economy and Growth,Corporate Property and Land,Premises,145009,Cleaning and Domestic Supplies,04/03/2024,4241829-IN020229,772.40,RIVERDALE PAPER PLC.
Children and Young Peoples Services,Head of Education and Skills,Transport,230007,Contract Hire,04/03/2024,4241833-ROXDCC335DI,"6,400.00",ROXBYS BUS HIRE.
Children and Young Peoples Services,Head of Education and Skills,Transport,230007,Contract Hire,04/03/2024,4241833-ROXDCC339,"10,400.00",ROXBYS BUS HIRE.
Regeneration Economy and Growth,Corporate Property and Land,Supplies and Services,342053,Computers and Communications,04/03/2024,4241834-INV-00485853,958.50,ROYAL INSTITUTION OF CHARTERED SURVEYORS (RICS).
Neighbourhoods and Climate Change,Partnerships & Community Engagement Div.,Cap Exp on Grants & Other Financial Assistance (REFCUS),918004,Contributions to other bodies 918004,04/03/2024,4241839-VOUCHER23NB-CHES035,"3,735.00",SACRISTON YOUTH PROJECT.
Children and Young Peoples Services,Head of Education and Skills,Transport,230008,Contract Hire,04/03/2024,4241848-3535,"1,423.20",SIMONS TAXIS.
Resources BK0010,Digital Services,Supplies and Services,342051,Computers and Communications,04/03/2024,4241851-INVUK1190605,"8,664.26",SOFTCAT PLC.
Regeneration Economy and Growth,Culture Sport and Tourism,Third Party Payments,430100,Rendered by Private Contractors,04/03/2024,4241853-SI-2,"2,472.46",SOUTH DURHAM GYMNASTICS CLUB.
Neighbourhoods and Climate Change,Partnerships & Community Engagement Div.,Supplies and Services,384086,Miscellaneous Expenses,04/03/2024,4241858-VOUCHERRICG06-23,825.00,STAINDROP ACADEMY.
Regeneration Economy and Growth,Planning & Housing,Third Party Payments,440200,Other third party payments E440,04/03/2024,4241860-RES-03-2024-006,"76,520.00",STOCKTON ON TEES BOROUGH COUNCIL.
Neighbourhoods and Climate Change,Environmental Services,Supplies and Services,304221,Equipment and Materials,04/03/2024,4241862-6013111,"4,520.00",STORM ENVIRONMENTAL LTD.
Regeneration Economy and Growth,Corporate Property and Land,Supplies and Services,304221,Equipment and Materials,04/03/2024,4241865-1145688,847.49,T CROSSLING & CO LTD.
Neighbourhoods and Climate Change,Highways,Supplies and Services,304221,Equipment and Materials,04/03/2024,4241866-9048011620,"1,346.06",TARMAC TRADING LTD.
Neighbourhoods and Climate Change,Highways,Supplies and Services,304357,Equipment and Materials,04/03/2024,4241866-9048016887,673.06,TARMAC TRADING LTD.
Neighbourhoods and Climate Change,Highways,Supplies and Services,304221,Equipment and Materials,04/03/2024,4241866-9048022742,912.04,TARMAC TRADING LTD.
Regeneration Economy and Growth,Corporate Property and Land,Supplies and Services,384199,Miscellaneous Expenses,04/03/2024,4241880-00116496,"2,053.00",THOMAS TELFORD LTD.
Regeneration Economy and Growth,REG - Central Costs,Supplies and Services,338029,Services,04/03/2024,4241881-09/03/24,"10,500.00",TILE HILL INTERIM & EXECUTIVE LTD.
Regeneration Economy and Growth,Corporate Property and Land,Third Party Payments,430100,Rendered by Private Contractors,04/03/2024,4241883-TIS2901,"4,703.50",TIS (NGA) LTD.
Regeneration Economy and Growth,Corporate Property and Land,Supplies and Services,304221,Equipment and Materials,04/03/2024,4241885-11277232,550.00,TRADECHOICE DISTRIBUTION LTD.
Neighbourhoods and Climate Change,Environmental Services,Supplies and Services,304221,Equipment and Materials,04/03/2024,4241888-15440,598.00,TREES PLEASE LTD.
Regeneration Economy and Growth,Planning & Housing,Supplies and Services,304245,Equipment and Materials,04/03/2024,4241891-CD970048896,"4,091.60",TUNSTALL HEALTHCARE (UK) LTD.
Neighbourhoods and Climate Change,Highways,Supplies and Services,304221,Equipment and Materials,04/03/2024,4241892-256503,950.80,TYNEDALE ROADSTONE LTD.
Neighbourhoods and Climate Change,Highways,Supplies and Services,304221,Equipment and Materials,04/03/2024,4241892-256504,"1,244.95",TYNEDALE ROADSTONE LTD.
Neighbourhoods and Climate Change,Highways,Supplies and Services,304221,Equipment and Materials,04/03/2024,4241892-256505,902.75,TYNEDALE ROADSTONE LTD.
Neighbourhoods and Climate Change,Highways,Supplies and Services,304221,Equipment and Materials,04/03/2024,4241892-256506,876.92,TYNEDALE ROADSTONE LTD.
Neighbourhoods and Climate Change,Highways,Supplies and Services,304221,Equipment and Materials,04/03/2024,4241892-256507,710.04,TYNEDALE ROADSTONE LTD.
Neighbourhoods and Climate Change,Highways,Supplies and Services,304221,Equipment and Materials,04/03/2024,4241892-256588,"1,195.70",TYNEDALE ROADSTONE LTD.
Neighbourhoods and Climate Change,Highways,Supplies and Services,304221,Equipment and Materials,04/03/2024,4241892-256589,"1,059.30",TYNEDALE ROADSTONE LTD.
Neighbourhoods and Climate Change,Highways,Supplies and Services,304221,Equipment and Materials,04/03/2024,4241892-256590,875.43,TYNEDALE ROADSTONE LTD.
Children and Young Peoples Services,Head of Early Help Inclusion & Vulnerable Children.,Supplies and Services,344033,Telephones,04/03/2024,4241894-210164,572.70,UNIFY BUSINESS SOLUTIONS LTD.
Regeneration Economy and Growth,Culture Sport and Tourism,Supplies and Services,338047,Services,04/03/2024,4241896-22314613136-1,"1,699.59",UNIVERSAL PICTURES INTERNATIONAL UK & EIRE LTD.
Adult and Health Services,Head of Adults,Supplies and Services,338089,Services,04/03/2024,4241897-T1002290112,583.00,UNIVERSITY OF NEWCASTLE UPON TYNE.
Neighbourhoods and Climate Change,Highways,Third Party Payments,430100,Rendered by Private Contractors,04/03/2024,4241898-INV10503,"9,700.00",VELOCITY (UK) LTD.
Neighbourhoods and Climate Change,Highways,Third Party Payments,430100,Rendered by Private Contractors,04/03/2024,4241898-INV10504,"7,760.00",VELOCITY (UK) LTD.
Regeneration Economy and Growth,Corporate Property and Land,Supplies and Services,304221,Equipment and Materials,04/03/2024,4241899-6890543843,"2,950.00",VIESSMANN LTD.
Neighbourhoods and Climate Change,Highways,Supplies and Services,338066,Services,04/03/2024,4241900-50220161,"14,125.42",VIRGIN MEDIA LTD.
Resources BK0010,Digital Services,Supplies and Services,344015,Telephones,04/03/2024,4241902-SL51917,"1,554.00",VODAFONE CORPORATE LTD.
Resources BK0010,Digital Services,Supplies and Services,344015,Telephones,04/03/2024,4241902-SL51918,518.00,VODAFONE CORPORATE LTD.
Resources BK0010,Transactional & Customer Services,Supplies and Services,384999,Miscellaneous Expenses,04/03/2024,4241903-19747,"6,200.00",VOICESCAPE LTD.
Neighbourhoods and Climate Change,Environmental Services,Supplies and Services,304259,Equipment and Materials,04/03/2024,4241906-29895,598.85,WARD TIMBER LTD.
Regeneration Economy and Growth,Transport and Contract Services,Third Party Payments,430106,Rendered by Private Contractors,04/03/2024,4241908-19629,"131,873.40",WEARDALE MOTOR SERVICES LTD.
Neighbourhoods and Climate Change,Environmental Services,Transport,215005,Running Costs of Vehicles,04/03/2024,4241918-1124468,"21,176.26",YOUR NRG LTD.
Neighbourhoods and Climate Change,Environmental Services,Transport,215005,Running Costs of Vehicles,04/03/2024,4241918-1124470,"8,231.78",YOUR NRG LTD.
Neighbourhoods and Climate Change,Environmental Services,Transport,215005,Running Costs of Vehicles,04/03/2024,4241918-1124475,"3,542.08",YOUR NRG LTD.
Neighbourhoods and Climate Change,Highways,Supplies and Services,304221,Equipment and Materials,04/03/2024,4241919-145557489,"5,796.82",ZG LIGHTING (UK) LTD.
Adult and Health Services,Head of Adults,Supplies and Services,338066,Services,04/03/2024,4241662-149,540.00,REDACTED - PAYMENT TO INDIVIDUAL
Adult and Health Services,Head of Adults,Supplies and Services,338066,Services,05/03/2024,4242574-SWFEBC/2024,533.10,REDACTED - PAYMENT TO INDIVIDUAL
Adult and Health Services,Head of Adults,Supplies and Services,338066,Services,05/03/2024,4242576-UC70,556.05,REDACTED - PAYMENT TO INDIVIDUAL
Dedicated Schools Grant BG0015,DSG High Needs Block,Supplies and Services,384199,Miscellaneous Expenses,05/03/2024,4242591-193,"1,472.50",REDACTED - PAYMENT TO INDIVIDUAL
Regeneration Economy and Growth,Culture Sport and Tourism,Third Party Payments,430131,Rendered by Private Contractors,05/03/2024,4242657-2023037,"2,387.00",REDACTED - PAYMENT TO INDIVIDUAL
Regeneration Economy and Growth,Culture Sport and Tourism,Third Party Payments,430131,Rendered by Private Contractors,05/03/2024,4242657-2023038,567.00,REDACTED - PAYMENT TO INDIVIDUAL
Regeneration Economy and Growth,Culture Sport and Tourism,Supplies and Services,338047,Services,05/03/2024,4242694-52,582.00,REDACTED - PAYMENT TO INDIVIDUAL
Regeneration Economy and Growth,Business Durham,Supplies and Services,384199,Miscellaneous Expenses,05/03/2024,4242559-INV-9580,"1,960.00",CREATIVE LIVE.
Children and Young Peoples Services,Head of Education and Skills,Transfer Payments,510034,School Children,05/03/2024,4242581-CLAEARLYSUMMER2024/20,600.00,(USE 216327) EDEN ACADEMY TRUST LTD T/A BLUEBELL MEADOW PRIMARY SCHOOL.
Resources BK0010,Legal & Democratic Services,Supplies and Services,384954,Miscellaneous Expenses,05/03/2024,4242655-SI-429408,"1,800.00",MCCOLLUM CONSULTANTS LTD.
Neighbourhoods and Climate Change,Environmental Services,Supplies and Services,384606,Miscellaneous Expenses,05/03/2024,4242656-RES-03-2024-022,"10,200.01",MESSRS R & BS LAIRD & SONS.
Children and Young Peoples Services,Head of Education and Skills,Transfer Payments,510034,School Children,05/03/2024,4242668-CLAEARLYSUMMER2024/172,600.00,NEW COLLEGE DURHAM ACADEMIES TRUST (NCDAT).
Children and Young Peoples Services,Head of Education and Skills,Transfer Payments,510034,School Children,05/03/2024,4242669-CLAEARLYSUMMER2024/168,600.00,NEW COLLEGE DURHAM ACADEMIES TRUST (NCDAT).
Children and Young Peoples Services,Head of Education and Skills,Transfer Payments,510034,School Children,05/03/2024,4242669-CLAEARLYSUMMER2024/186,600.00,NEW COLLEGE DURHAM ACADEMIES TRUST (NCDAT).
Neighbourhoods and Climate Change,Partnerships & Community Engagement Div.,Supplies and Services,384086,Miscellaneous Expenses,05/03/2024,4242670-VOUCHERHANA03-23,900.00,NEW COLLEGE DURHAM ACADEMIES TRUST (NCDAT).
Children and Young Peoples Services,Head of Education and Skills,Transfer Payments,510034,School Children,05/03/2024,4242671-CLAEARLYSUMMER2024/106,600.00,NEW COLLEGE DURHAM ACADEMIES TRUST (NCDAT).
Children and Young Peoples Services,Head of Education and Skills,Transfer Payments,510034,School Children,05/03/2024,4242671-CLAEARLYSUMMER2024/127,600.00,NEW COLLEGE DURHAM ACADEMIES TRUST (NCDAT).
Children and Young Peoples Services,Head of Education and Skills,Transfer Payments,510034,School Children,05/03/2024,4242671-CLAEARLYSUMMER2024/128,600.00,NEW COLLEGE DURHAM ACADEMIES TRUST (NCDAT).
Children and Young Peoples Services,Head of Education and Skills,Transfer Payments,510034,School Children,05/03/2024,4242671-CLAEARLYSUMMER2024/38,600.00,NEW COLLEGE DURHAM ACADEMIES TRUST (NCDAT).
Children and Young Peoples Services,Head of Education and Skills,Transfer Payments,510034,School Children,05/03/2024,4242671-CLAEARLYSUMMER2024/41,600.00,NEW COLLEGE DURHAM ACADEMIES TRUST (NCDAT).
Children and Young Peoples Services,Head of Education and Skills,Transfer Payments,510034,School Children,05/03/2024,4242671-CLAEARLYSUMMER2024/42,600.00,NEW COLLEGE DURHAM ACADEMIES TRUST (NCDAT).
Children and Young Peoples Services,Head of Education and Skills,Transfer Payments,510034,School Children,05/03/2024,4242671-CLAEARLYSUMMER2024/43,600.00,NEW COLLEGE DURHAM ACADEMIES TRUST (NCDAT).
Children and Young Peoples Services,Head of Education and Skills,Transfer Payments,510034,School Children,05/03/2024,4242671-CLAEARLYSUMMER2024/51,600.00,NEW COLLEGE DURHAM ACADEMIES TRUST (NCDAT).
Children and Young Peoples Services,Head of Education and Skills,Transfer Payments,510034,School Children,05/03/2024,4242671-CLAEARLYSUMMER2024/54,600.00,NEW COLLEGE DURHAM ACADEMIES TRUST (NCDAT).
Children and Young Peoples Services,Head of Education and Skills,Transfer Payments,510034,School Children,05/03/2024,4242672-CLAEARLYSUMMER2024/132,600.00,NEW COLLEGE DURHAM ACADEMIES TRUST (NCDAT).
Children and Young Peoples Services,Head of Education and Skills,Transfer Payments,510034,School Children,05/03/2024,4242672-CLAEARLYSUMMER2024/149,600.00,NEW COLLEGE DURHAM ACADEMIES TRUST (NCDAT).
Children and Young Peoples Services,Head of Education and Skills,Transfer Payments,510034,School Children,05/03/2024,4242672-CLAEARLYSUMMER2024/22,600.00,NEW COLLEGE DURHAM ACADEMIES TRUST (NCDAT).
Children and Young Peoples Services,Head of Education and Skills,Transfer Payments,510034,School Children,05/03/2024,4242672-CLAEARLYSUMMER2024/34,600.00,NEW COLLEGE DURHAM ACADEMIES TRUST (NCDAT).
Children and Young Peoples Services,Head of Education and Skills,Transfer Payments,510034,School Children,05/03/2024,4242672-CLAEARLYSUMMER2024/35,600.00,NEW COLLEGE DURHAM ACADEMIES TRUST (NCDAT).
Children and Young Peoples Services,Head of Education and Skills,Transfer Payments,510034,School Children,05/03/2024,4242672-CLAEARLYSUMMER2024/55,600.00,NEW COLLEGE DURHAM ACADEMIES TRUST (NCDAT).
Children and Young Peoples Services,Head of Education and Skills,Transfer Payments,510034,School Children,05/03/2024,4242672-CLAEARLYSUMMER2024/91,600.00,NEW COLLEGE DURHAM ACADEMIES TRUST (NCDAT).
Children and Young Peoples Services,Head of Early Help Inclusion & Vulnerable Children.,Premises,108251,Service Repairs and Maintenance,05/03/2024,4242501-53003775,"1,223.42",ADT FIRE & SECURITY PLC.
Children and Young Peoples Services,Head of Education and Skills,Transfer Payments,510034,School Children,05/03/2024,4242502-CLAEARLYSUMMER2024/173,"3,300.00",ADVANCE LEARNING PARTNERSHIP.
Children and Young Peoples Services,Head of Education and Skills,Transfer Payments,510034,School Children,05/03/2024,4242502-CLAEARLYSUMMER2024/174,600.00,ADVANCE LEARNING PARTNERSHIP.
Children and Young Peoples Services,Head of Education and Skills,Transfer Payments,510034,School Children,05/03/2024,4242502-CLAEARLYSUMMER2024/179,600.00,ADVANCE LEARNING PARTNERSHIP.
Children and Young Peoples Services,Head of Education and Skills,Transfer Payments,510034,School Children,05/03/2024,4242502-CLAEARLYSUMMER2024/47,600.00,ADVANCE LEARNING PARTNERSHIP.
Children and Young Peoples Services,Head of Education and Skills,Transfer Payments,510034,School Children,05/03/2024,4242502-CLAEARLYSUMMER2024/6,600.00,ADVANCE LEARNING PARTNERSHIP.
Children and Young Peoples Services,Head of Education and Skills,Transfer Payments,510034,School Children,05/03/2024,4242502-CLAEARLYSUMMER2024/63,600.00,ADVANCE LEARNING PARTNERSHIP.
Children and Young Peoples Services,Head of Education and Skills,Transfer Payments,510034,School Children,05/03/2024,4242502-CLAEARLYSUMMER2024/84,600.00,ADVANCE LEARNING PARTNERSHIP.
Children and Young Peoples Services,Head of Education and Skills,Transfer Payments,510034,School Children,05/03/2024,4242503-CLAEARLYSUMMER2024/100,600.00,ADVANCE LEARNING PARTNERSHIP.
Children and Young Peoples Services,Head of Education and Skills,Transfer Payments,510034,School Children,05/03/2024,4242503-CLAEARLYSUMMER2024/140,"7,159.37",ADVANCE LEARNING PARTNERSHIP.
Children and Young Peoples Services,Head of Education and Skills,Transfer Payments,510034,School Children,05/03/2024,4242503-CLAEARLYSUMMER2024/141,600.00,ADVANCE LEARNING PARTNERSHIP.
Children and Young Peoples Services,Head of Education and Skills,Transfer Payments,510034,School Children,05/03/2024,4242503-CLAEARLYSUMMER2024/18,600.00,ADVANCE LEARNING PARTNERSHIP.
Children and Young Peoples Services,Head of Education and Skills,Transfer Payments,510034,School Children,05/03/2024,4242503-CLAEARLYSUMMER2024/24,600.00,ADVANCE LEARNING PARTNERSHIP.
Children and Young Peoples Services,Head of Education and Skills,Transfer Payments,510034,School Children,05/03/2024,4242503-CLAEARLYSUMMER2024/29,600.00,ADVANCE LEARNING PARTNERSHIP.
Children and Young Peoples Services,Head of Education and Skills,Transfer Payments,510034,School Children,05/03/2024,4242503-CLAEARLYSUMMER2024/56,600.00,ADVANCE LEARNING PARTNERSHIP.
Children and Young Peoples Services,Head of Education and Skills,Transfer Payments,510034,School Children,05/03/2024,4242503-CLAEARLYSUMMER2024/78,600.00,ADVANCE LEARNING PARTNERSHIP.
Children and Young Peoples Services,Head of Education and Skills,Transfer Payments,510034,School Children,05/03/2024,4242503-CLAEARLYSUMMER2024/79,600.00,ADVANCE LEARNING PARTNERSHIP.
Children and Young Peoples Services,Head of Education and Skills,Transfer Payments,510034,School Children,05/03/2024,4242504-CLAEARLYSUMMER2024/13,600.00,ADVANCE LEARNING PARTNERSHIP.
Children and Young Peoples Services,Head of Education and Skills,Transfer Payments,510034,School Children,05/03/2024,4242505-CLAEARLYSUMMER2024/117,600.00,ADVANCE LEARNING PARTNERSHIP.
Children and Young Peoples Services,Head of Education and Skills,Transfer Payments,510034,School Children,05/03/2024,4242505-CLAEARLYSUMMER2024/118,600.00,ADVANCE LEARNING PARTNERSHIP.
Children and Young Peoples Services,Head of Education and Skills,Transfer Payments,510034,School Children,05/03/2024,4242505-CLAEARLYSUMMER2024/146,600.00,ADVANCE LEARNING PARTNERSHIP.
Children and Young Peoples Services,Head of Education and Skills,Transfer Payments,510034,School Children,05/03/2024,4242505-CLAEARLYSUMMER2024/147,"4,999.37",ADVANCE LEARNING PARTNERSHIP.
Children and Young Peoples Services,Head of Education and Skills,Transfer Payments,510034,School Children,05/03/2024,4242505-CLAEARLYSUMMER2024/148,600.00,ADVANCE LEARNING PARTNERSHIP.
Children and Young Peoples Services,Head of Education and Skills,Transfer Payments,510034,School Children,05/03/2024,4242505-CLAEARLYSUMMER2024/77,600.00,ADVANCE LEARNING PARTNERSHIP.
Children and Young Peoples Services,Head of Education and Skills,Transfer Payments,510034,School Children,05/03/2024,4242506-CLAEARLYSUMMER2024/144,600.00,ADVANCE LEARNING PARTNERSHIP.
Children and Young Peoples Services,Head of Education and Skills,Transfer Payments,510034,School Children,05/03/2024,4242506-CLAEARLYSUMMER2024/154,600.00,ADVANCE LEARNING PARTNERSHIP.
Children and Young Peoples Services,Head of Education and Skills,Transfer Payments,510034,School Children,05/03/2024,4242506-CLAEARLYSUMMER2024/156,600.00,ADVANCE LEARNING PARTNERSHIP.
Children and Young Peoples Services,Head of Education and Skills,Transfer Payments,510034,School Children,05/03/2024,4242506-CLAEARLYSUMMER2024/157,600.00,ADVANCE LEARNING PARTNERSHIP.
Children and Young Peoples Services,Head of Education and Skills,Transfer Payments,510034,School Children,05/03/2024,4242506-CLAEARLYSUMMER2024/165,600.00,ADVANCE LEARNING PARTNERSHIP.
Children and Young Peoples Services,Head of Education and Skills,Transfer Payments,510034,School Children,05/03/2024,4242506-CLAEARLYSUMMER2024/166,600.00,ADVANCE LEARNING PARTNERSHIP.
Children and Young Peoples Services,Head of Education and Skills,Transfer Payments,510034,School Children,05/03/2024,4242506-CLAEARLYSUMMER2024/167,600.00,ADVANCE LEARNING PARTNERSHIP.
Children and Young Peoples Services,Head of Education and Skills,Transfer Payments,510034,School Children,05/03/2024,4242507-CLAEARLYSUMMER2024/137,600.00,ADVANCE LEARNING PARTNERSHIP.
Children and Young Peoples Services,Head of Education and Skills,Transfer Payments,510034,School Children,05/03/2024,4242507-CLAEARLYSUMMER2024/138,"2,928.00",ADVANCE LEARNING PARTNERSHIP.
Children and Young Peoples Services,Head of Education and Skills,Transfer Payments,510034,School Children,05/03/2024,4242507-CLAEARLYSUMMER2024/139,600.00,ADVANCE LEARNING PARTNERSHIP.
Children and Young Peoples Services,Head of Education and Skills,Transfer Payments,510034,School Children,05/03/2024,4242507-CLAEARLYSUMMER2024/7,600.00,ADVANCE LEARNING PARTNERSHIP.
Children and Young Peoples Services,Head of Education and Skills,Transfer Payments,510034,School Children,05/03/2024,4242507-CLAEARLYSUMMER2024/73,600.00,ADVANCE LEARNING PARTNERSHIP.
Neighbourhoods and Climate Change,Environmental Services,Third Party Payments,430100,Rendered by Private Contractors,05/03/2024,4242508-3451,"3,600.00",AJ GUTHRIE & SON.
Adult and Health Services,Commissioning inc Supporting People,Third Party Payments,479111,Purchase of Care,05/03/2024,4242514-2092,"1,812.50",APM CLEANING & REPAIR LTD.
Children and Young Peoples Services,Head of Education and Skills,Transfer Payments,510034,School Children,05/03/2024,4242515-CLAEARLYSUMMER2024/48,600.00,APOLLO SCHOOLS TRUST T/A ENDEAVOUR ACADEMY.
Children and Young Peoples Services,Head of Education and Skills,Transfer Payments,510034,School Children,05/03/2024,4242515-CLAPPPSPRING2024/1,600.00,APOLLO SCHOOLS TRUST T/A ENDEAVOUR ACADEMY.
Neighbourhoods and Climate Change,Environmental Services,Supplies and Services,384073,Miscellaneous Expenses,05/03/2024,4242524-EVNT09672,536.25,BEAMISH HALL LTD.
Children and Young Peoples Services,Head of Education and Skills,Transfer Payments,510034,School Children,05/03/2024,4242527-CLAEARLYSUMMER2024/24,600.00,BISHOP BEWICK CATHOLIC EDUCATION TRUST.
Children and Young Peoples Services,Head of Education and Skills,Transfer Payments,510034,School Children,05/03/2024,4242528-CLAEARLYSUMMER2024/101,600.00,BISHOP CHADWICK CATHOLIC EDUCATION TRUST (NSCET).
Children and Young Peoples Services,Head of Education and Skills,Transfer Payments,510034,School Children,05/03/2024,4242528-CLAEARLYSUMMER2024/104,600.00,BISHOP CHADWICK CATHOLIC EDUCATION TRUST (NSCET).
Children and Young Peoples Services,Head of Education and Skills,Transfer Payments,510034,School Children,05/03/2024,4242528-CLAEARLYSUMMER2024/162,600.00,BISHOP CHADWICK CATHOLIC EDUCATION TRUST (NSCET).
Children and Young Peoples Services,Head of Education and Skills,Transfer Payments,510034,School Children,05/03/2024,4242528-CLAEARLYSUMMER2024/2,600.00,BISHOP CHADWICK CATHOLIC EDUCATION TRUST (NSCET).
Children and Young Peoples Services,Head of Education and Skills,Transfer Payments,510034,School Children,05/03/2024,4242528-CLAEARLYSUMMER2024/40,600.00,BISHOP CHADWICK CATHOLIC EDUCATION TRUST (NSCET).
Children and Young Peoples Services,Head of Education and Skills,Transfer Payments,510034,School Children,05/03/2024,4242528-CLAEARLYSUMMER2024/70,600.00,BISHOP CHADWICK CATHOLIC EDUCATION TRUST (NSCET).
Children and Young Peoples Services,Head of Education and Skills,Transfer Payments,510034,School Children,05/03/2024,4242528-CLAEARLYSUMMER2024/76,600.00,BISHOP CHADWICK CATHOLIC EDUCATION TRUST (NSCET).
Children and Young Peoples Services,Head of Education and Skills,Transfer Payments,510034,School Children,05/03/2024,4242528-CLAEARLYSUMMER2024/90,600.00,BISHOP CHADWICK CATHOLIC EDUCATION TRUST (NSCET).
Children and Young Peoples Services,Head of Education and Skills,Transfer Payments,510034,School Children,05/03/2024,4242529-CLAEARLYSUMMER2024/7,600.00,BISHOP CHADWICK CATHOLIC EDUCATION TRUST (NSCET).
Children and Young Peoples Services,Head of Education and Skills,Transfer Payments,510034,School Children,05/03/2024,4242530-CLAEARLYSUMMER2024/11,600.00,BISHOP HOGARTH CATHOLIC EDUCATION TRUST.
Children and Young Peoples Services,Head of Education and Skills,Transfer Payments,510034,School Children,05/03/2024,4242530-CLAEARLYSUMMER2024/120,600.00,BISHOP HOGARTH CATHOLIC EDUCATION TRUST.
Children and Young Peoples Services,Head of Education and Skills,Transfer Payments,510034,School Children,05/03/2024,4242530-CLAEARLYSUMMER2024/153,600.00,BISHOP HOGARTH CATHOLIC EDUCATION TRUST.
Children and Young Peoples Services,Head of Education and Skills,Transfer Payments,510034,School Children,05/03/2024,4242530-CLAEARLYSUMMER2024/164,600.00,BISHOP HOGARTH CATHOLIC EDUCATION TRUST.
Children and Young Peoples Services,Head of Education and Skills,Transfer Payments,510034,School Children,05/03/2024,4242530-CLAEARLYSUMMER2024/45,600.00,BISHOP HOGARTH CATHOLIC EDUCATION TRUST.
Children and Young Peoples Services,Head of Education and Skills,Transfer Payments,510034,School Children,05/03/2024,4242531-CLAEARLYSUMMER2024/183,600.00,BISHOP HOGARTH CATHOLIC EDUCATION TRUST.
Children and Young Peoples Services,Head of Education and Skills,Transfer Payments,510034,School Children,05/03/2024,4242531-CLAEARLYSUMMER2024/184,600.00,BISHOP HOGARTH CATHOLIC EDUCATION TRUST.
Children and Young Peoples Services,Head of Education and Skills,Transfer Payments,510034,School Children,05/03/2024,4242532-CLAEARLYSUMMER2024/3,600.00,BISHOP WILKINSON CATHOLIC EDUCATION TRUST.
Children and Young Peoples Services,Head of Education and Skills,Transfer Payments,510034,School Children,05/03/2024,4242532-CLAEARLYSUMMER2024/39,600.00,BISHOP WILKINSON CATHOLIC EDUCATION TRUST.
Children and Young Peoples Services,Head of Education and Skills,Transfer Payments,510034,School Children,05/03/2024,4242532-CLAEARLYSUMMER2024/62,600.00,BISHOP WILKINSON CATHOLIC EDUCATION TRUST.
Children and Young Peoples Services,Head of Education and Skills,Transfer Payments,510034,School Children,05/03/2024,4242532-CLAEARLYSUMMER2024/94,"3,230.00",BISHOP WILKINSON CATHOLIC EDUCATION TRUST.
Children and Young Peoples Services,Head of Education and Skills,Transfer Payments,510034,School Children,05/03/2024,4242532-CLAEARLYSUMMER2024/95,600.00,BISHOP WILKINSON CATHOLIC EDUCATION TRUST.
Children and Young Peoples Services,Head of Education and Skills,Transfer Payments,510034,School Children,05/03/2024,4242532-CLAEARLYSUMMER2024/96,600.00,BISHOP WILKINSON CATHOLIC EDUCATION TRUST.
Children and Young Peoples Services,Head of Education and Skills,Transfer Payments,510034,School Children,05/03/2024,4242533-CLAEARLYSUMMER2024/33,600.00,BISHOP WILKINSON CATHOLIC EDUCATION TRUST.
Children and Young Peoples Services,Head of Education and Skills,Transport,230008,Contract Hire,05/03/2024,4242535-INV04597,"1,797.65",BLUELINE SOUTH INCORPORATING NAVIGATION TAXIS T/A BLUELINE TAXIS.
Children and Young Peoples Services,Head of Education and Skills,Transfer Payments,510034,School Children,05/03/2024,4242544-CLAEARLYSUMMER2024 /3,600.00,CARMEL COLLEGE.*
Children and Young Peoples Services,Head of Education and Skills,Transfer Payments,510034,School Children,05/03/2024,4242544-CLAEARLYSUMMER2024 /4,600.00,CARMEL COLLEGE.*
Children and Young Peoples Services,Head of Education and Skills,Transfer Payments,510034,School Children,05/03/2024,4242544-CLAEARLYSUMMER2024 /5,600.00,CARMEL COLLEGE.*
Regeneration Economy and Growth,Corporate Property and Land,Third Party Payments,430100,Rendered by Private Contractors,05/03/2024,4242545-862,"10,924.58",CEILINGS DIRECT LTD.
Regeneration Economy and Growth,Corporate Property and Land,Third Party Payments,430100,Rendered by Private Contractors,05/03/2024,4242545-863,"3,337.47",CEILINGS DIRECT LTD.
Regeneration Economy and Growth,Corporate Property and Land,Third Party Payments,430100,Rendered by Private Contractors,05/03/2024,4242545-864,"2,855.18",CEILINGS DIRECT LTD.
Children and Young Peoples Services,Head of Education and Skills,Transfer Payments,510034,School Children,05/03/2024,4242548-CLAEARLYSUMMER2024/ 26,600.00,CHANGING LIVES LEARNING TRUST.
Adult and Health Services,Adults Excluded,Supplies and Services,338094,Services,05/03/2024,4242552-MB0000617849,"1,599.00",CLOSEGATE HOTEL DEVELOPMENT (DURHAM) LTD.
Children and Young Peoples Services,Head of Education and Skills,Transport,230007,Contract Hire,05/03/2024,4242554-C-12008,"3,429.30",COCHRANES T/A KELVIN TRAVEL.
Children and Young Peoples Services,Head of Education and Skills,Transport,230003,Contract Hire,05/03/2024,4242554-C-12010,"2,156.85",COCHRANES T/A KELVIN TRAVEL.
Children and Young Peoples Services,Head of Education and Skills,Transport,230003,Contract Hire,05/03/2024,4242554-C-12011,"8,539.90",COCHRANES T/A KELVIN TRAVEL.
Children and Young Peoples Services,Head of Education and Skills,Transport,230007,Contract Hire,05/03/2024,4242554-C-12019,"4,473.00",COCHRANES T/A KELVIN TRAVEL.
Children and Young Peoples Services,Head of Education and Skills,Transport,230003,Contract Hire,05/03/2024,4242554-C-12023,"2,457.18",COCHRANES T/A KELVIN TRAVEL.
Neighbourhoods and Climate Change,Environmental Services,Supplies and Services,384899,Miscellaneous Expenses,05/03/2024,4242556-UOTR5221986,802.00,CONVERA UK FINANCIAL LTD.
Children and Young Peoples Services,Head of Education and Skills,Supplies and Services,338094,Services,05/03/2024,4242557-1706,795.00,CORNERSTONES CENTRE FOR THE COMMUNITY.
Children and Young Peoples Services,Head of Education and Skills,Supplies and Services,338035,Services,05/03/2024,4242563-2853,"1,665.00",DEAF EMPOWERING NETWORK (DEN).
Children and Young Peoples Services,Head of Education and Skills,Supplies and Services,338035,Services,05/03/2024,4242563-2915,"3,600.00",DEAF EMPOWERING NETWORK (DEN).
Children and Young Peoples Services,Head of Education and Skills,Supplies and Services,338035,Services,05/03/2024,4242563-2988,"1,215.00",DEAF EMPOWERING NETWORK (DEN).
Children and Young Peoples Services,Head of Education and Skills,Supplies and Services,338035,Services,05/03/2024,4242563-3055,"1,080.00",DEAF EMPOWERING NETWORK (DEN).
Children and Young Peoples Services,Head of Education and Skills,Transfer Payments,510034,School Children,05/03/2024,4242564-CLAPPPSPRING2024/3,600.00,DELTA - NORTH CONSETT LTD.
Children and Young Peoples Services,Head of Education and Skills,Transfer Payments,510034,School Children,05/03/2024,4242565-CLAEARLYSUMMER2024/15,600.00,DENE ACADEMY.
Children and Young Peoples Services,Head of Education and Skills,Transfer Payments,510034,School Children,05/03/2024,4242565-CLAEARLYSUMMER2024/27,600.00,DENE ACADEMY.
Resources BK0010,Legal & Democratic Services,Supplies and Services,338042,Services,05/03/2024,4242568-397814/INVADO253,625.00,DERE STREET BARRISTERS.
Children and Young Peoples Services,Head of Education and Skills,Transfer Payments,510034,School Children,05/03/2024,4242577-CLAEARLYSUMMER2024/21,600.00,DURHAM & NEWCASTLE DIOCESAN LEARNING TRUST.
Adult and Health Services,Commissioning inc Supporting People,Third Party Payments,479102,Purchase of Care,05/03/2024,4242578-603,"17,500.00",DURHAM COUNTY CARERS SUPPORT.
Children and Young Peoples Services,Head of Education and Skills,Transfer Payments,510034,School Children,05/03/2024,4242582-CLAEARLYSUMMER2024/110,600.00,EDEN LEARNING TRUST T/A FERRYHILL BUSINESS & ENTERPRISE COLLEGE.
Children and Young Peoples Services,Head of Education and Skills,Transfer Payments,510034,School Children,05/03/2024,4242582-CLAEARLYSUMMER2024/122,600.00,EDEN LEARNING TRUST T/A FERRYHILL BUSINESS & ENTERPRISE COLLEGE.
Children and Young Peoples Services,Head of Education and Skills,Transfer Payments,510034,School Children,05/03/2024,4242582-CLAEARLYSUMMER2024/169,"1,000.00",EDEN LEARNING TRUST T/A FERRYHILL BUSINESS & ENTERPRISE COLLEGE.
Children and Young Peoples Services,Head of Education and Skills,Transfer Payments,510034,School Children,05/03/2024,4242582-CLAEARLYSUMMER2024/170,"1,000.00",EDEN LEARNING TRUST T/A FERRYHILL BUSINESS & ENTERPRISE COLLEGE.
Children and Young Peoples Services,Head of Education and Skills,Transfer Payments,510034,School Children,05/03/2024,4242582-CLAEARLYSUMMER2024/171,600.00,EDEN LEARNING TRUST T/A FERRYHILL BUSINESS & ENTERPRISE COLLEGE.
Children and Young Peoples Services,Head of Education and Skills,Transfer Payments,510034,School Children,05/03/2024,4242582-CLAEARLYSUMMER2024/182,600.00,EDEN LEARNING TRUST T/A FERRYHILL BUSINESS & ENTERPRISE COLLEGE.
Children and Young Peoples Services,Head of Education and Skills,Transfer Payments,510034,School Children,05/03/2024,4242582-CLAEARLYSUMMER2024/5,600.00,EDEN LEARNING TRUST T/A FERRYHILL BUSINESS & ENTERPRISE COLLEGE.
Children and Young Peoples Services,Head of Education and Skills,Transfer Payments,510034,School Children,05/03/2024,4242582-CLAEARLYSUMMER2024/83,600.00,EDEN LEARNING TRUST T/A FERRYHILL BUSINESS & ENTERPRISE COLLEGE.
Children and Young Peoples Services,Head of Education and Skills,Transfer Payments,510034,School Children,05/03/2024,4242583-CLAEARLYSUMMER2024/8,600.00,EDEN LEARNING TRUST T/A KEPIER ACADEMY.
Children and Young Peoples Services,Head of Education and Skills,Transfer Payments,510034,School Children,05/03/2024,4242584-CLAEARLYSUMMER2024/49,600.00,EDEN LEARNING TRUST T/A KING JAMES I ACADEMY.
Children and Young Peoples Services,Head of Education and Skills,Transfer Payments,510034,School Children,05/03/2024,4242585-CLAEARLYSUMMER2024/158,"13,145.00",EDEN LEARNING TRUST T/A SEAHAM HIGH SCHOOL.
Children and Young Peoples Services,Head of Education and Skills,Transfer Payments,510034,School Children,05/03/2024,4242585-CLAEARLYSUMMER2024/159,600.00,EDEN LEARNING TRUST T/A SEAHAM HIGH SCHOOL.
Children and Young Peoples Services,Head of Education and Skills,Transfer Payments,510034,School Children,05/03/2024,4242585-CLAEARLYSUMMER2024/178,600.00,EDEN LEARNING TRUST T/A SEAHAM HIGH SCHOOL.
Children and Young Peoples Services,Head of Education and Skills,Transfer Payments,510034,School Children,05/03/2024,4242585-CLAEARLYSUMMER2024/23,600.00,EDEN LEARNING TRUST T/A SEAHAM HIGH SCHOOL.
Children and Young Peoples Services,Head of Education and Skills,Transfer Payments,510034,School Children,05/03/2024,4242585-CLAEARLYSUMMER2024/28,600.00,EDEN LEARNING TRUST T/A SEAHAM HIGH SCHOOL.
Children and Young Peoples Services,Head of Education and Skills,Transfer Payments,510034,School Children,05/03/2024,4242586-CLAEARLYSUMMER2024/151,600.00,EDEN LEARNING TRUST T/A TANFIELD SCHOOL.
Children and Young Peoples Services,Head of Education and Skills,Transfer Payments,510034,School Children,05/03/2024,4242586-CLAEARLYSUMMER2024/32,600.00,EDEN LEARNING TRUST T/A TANFIELD SCHOOL.
Children and Young Peoples Services,Head of Education and Skills,Transfer Payments,510034,School Children,05/03/2024,4242587-CLAEARLYSUMMER2024/107,600.00,EDEN LEARNING TRUST T/A WOODHAM ACADEMY.
Children and Young Peoples Services,Head of Education and Skills,Transfer Payments,510034,School Children,05/03/2024,4242587-CLAEARLYSUMMER2024/129,600.00,EDEN LEARNING TRUST T/A WOODHAM ACADEMY.
Children and Young Peoples Services,Head of Education and Skills,Transfer Payments,510034,School Children,05/03/2024,4242587-CLAEARLYSUMMER2024/133,600.00,EDEN LEARNING TRUST T/A WOODHAM ACADEMY.
Children and Young Peoples Services,Head of Education and Skills,Transfer Payments,510034,School Children,05/03/2024,4242587-CLAEARLYSUMMER2024/142,600.00,EDEN LEARNING TRUST T/A WOODHAM ACADEMY.
Children and Young Peoples Services,Head of Education and Skills,Transfer Payments,510034,School Children,05/03/2024,4242587-CLAEARLYSUMMER2024/163,600.00,EDEN LEARNING TRUST T/A WOODHAM ACADEMY.
Children and Young Peoples Services,Head of Education and Skills,Transfer Payments,510034,School Children,05/03/2024,4242587-CLAEARLYSUMMER2024/175,"1,575.00",EDEN LEARNING TRUST T/A WOODHAM ACADEMY.
Children and Young Peoples Services,Head of Education and Skills,Transfer Payments,510034,School Children,05/03/2024,4242587-CLAEARLYSUMMER2024/177,600.00,EDEN LEARNING TRUST T/A WOODHAM ACADEMY.
Children and Young Peoples Services,Head of Education and Skills,Transfer Payments,510034,School Children,05/03/2024,4242587-CLAEARLYSUMMER2024/31,600.00,EDEN LEARNING TRUST T/A WOODHAM ACADEMY.
Children and Young Peoples Services,Head of Education and Skills,Transfer Payments,510034,School Children,05/03/2024,4242587-CLAEARLYSUMMER2024/4,600.00,EDEN LEARNING TRUST T/A WOODHAM ACADEMY.
Children and Young Peoples Services,Head of Education and Skills,Transfer Payments,510034,School Children,05/03/2024,4242587-CLAEARLYSUMMER2024/66,600.00,EDEN LEARNING TRUST T/A WOODHAM ACADEMY.
Children and Young Peoples Services,Head of Education and Skills,Transfer Payments,510034,School Children,05/03/2024,4242589-CLAEARLYSUMMER2024 /2,600.00,EDUCATION VILLAGE ACADEMY TRUST LTD.*
Children and Young Peoples Services,Head of Education and Skills,Transfer Payments,510034,School Children,05/03/2024,4242589-CLAEARLYSUMMER2024/9,600.00,EDUCATION VILLAGE ACADEMY TRUST LTD.*
Children and Young Peoples Services,Head of Education and Skills,Transfer Payments,510034,School Children,05/03/2024,4242593-CLAEARLYSUMMER2024/102,600.00,EXCEL ACADEMY PARTNERSHIP T/A FRAMWELLGATE SCHOOL DURHAM.
Children and Young Peoples Services,Head of Education and Skills,Transfer Payments,510034,School Children,05/03/2024,4242593-CLAEARLYSUMMER2024/119,600.00,EXCEL ACADEMY PARTNERSHIP T/A FRAMWELLGATE SCHOOL DURHAM.
Children and Young Peoples Services,Head of Education and Skills,Transfer Payments,510034,School Children,05/03/2024,4242593-CLAEARLYSUMMER2024/125,600.00,EXCEL ACADEMY PARTNERSHIP T/A FRAMWELLGATE SCHOOL DURHAM.
Children and Young Peoples Services,Head of Education and Skills,Transfer Payments,510034,School Children,05/03/2024,4242593-CLAEARLYSUMMER2024/160,600.00,EXCEL ACADEMY PARTNERSHIP T/A FRAMWELLGATE SCHOOL DURHAM.
Children and Young Peoples Services,Head of Education and Skills,Transfer Payments,510034,School Children,05/03/2024,4242593-CLAEARLYSUMMER2024/25,600.00,EXCEL ACADEMY PARTNERSHIP T/A FRAMWELLGATE SCHOOL DURHAM.
Children and Young Peoples Services,Head of Education and Skills,Transfer Payments,510034,School Children,05/03/2024,4242593-CLAEARLYSUMMER2024/26,600.00,EXCEL ACADEMY PARTNERSHIP T/A FRAMWELLGATE SCHOOL DURHAM.
Children and Young Peoples Services,Head of Education and Skills,Transfer Payments,510034,School Children,05/03/2024,4242593-CLAEARLYSUMMER2024/30,600.00,EXCEL ACADEMY PARTNERSHIP T/A FRAMWELLGATE SCHOOL DURHAM.
Children and Young Peoples Services,Head of Education and Skills,Transfer Payments,510034,School Children,05/03/2024,4242593-CLAEARLYSUMMER2024/44,600.00,EXCEL ACADEMY PARTNERSHIP T/A FRAMWELLGATE SCHOOL DURHAM.
Children and Young Peoples Services,Head of Education and Skills,Transfer Payments,510034,School Children,05/03/2024,4242593-CLAEARLYSUMMER2024/57,600.00,EXCEL ACADEMY PARTNERSHIP T/A FRAMWELLGATE SCHOOL DURHAM.
Children and Young Peoples Services,Head of Education and Skills,Transfer Payments,510034,School Children,05/03/2024,4242593-CLAEARLYSUMMER2024/82,600.00,EXCEL ACADEMY PARTNERSHIP T/A FRAMWELLGATE SCHOOL DURHAM.
Children and Young Peoples Services,Head of Education and Skills,Transfer Payments,510034,School Children,05/03/2024,4242593-CLAEARLYSUMMER2024/87,"6,840.00",EXCEL ACADEMY PARTNERSHIP T/A FRAMWELLGATE SCHOOL DURHAM.
Children and Young Peoples Services,Head of Education and Skills,Transfer Payments,510034,School Children,05/03/2024,4242593-CLAEARLYSUMMER2024/88,600.00,EXCEL ACADEMY PARTNERSHIP T/A FRAMWELLGATE SCHOOL DURHAM.
Children and Young Peoples Services,Head of Education and Skills,Transfer Payments,510034,School Children,05/03/2024,4242594-CLAEARLYSUMMER2024/13,600.00,EXTOL ACADEMY TRUST.
Regeneration Economy and Growth,Culture Sport and Tourism,Supplies and Services,384999,Miscellaneous Expenses,05/03/2024,4242597-NEI-HCL-02-2024-007,"5,000.00",FRIENDS OF THE STOCKTON & DARLINGTON RAILWAY.
Children and Young Peoples Services,Head of Education and Skills,Transfer Payments,510034,School Children,05/03/2024,4242609-CLAEARLYSUMMER2024 /37,600.00,HAMPSHIRE COUNTY COUNCIL.
Children and Young Peoples Services,Head of Education and Skills,Transfer Payments,510034,School Children,05/03/2024,4242611-CLAEARLYSUMMER2024 /39,600.00,HARTLEPOOL BOROUGH COUNCIL.
Children and Young Peoples Services,Head of Education and Skills,Transfer Payments,510034,School Children,05/03/2024,4242611-CLAEARLYSUMMER2024/44,600.00,HARTLEPOOL BOROUGH COUNCIL.
Children and Young Peoples Services,Head of Education and Skills,Transfer Payments,510034,School Children,05/03/2024,4242612-CLAEARLYSUMMER2024/36,600.00,HARTSIDE PRIMARY ACADEMY.
Children and Young Peoples Services,Head of Education and Skills,Transfer Payments,510034,School Children,05/03/2024,4242616-CLAEARLYSUMMER2024 /33,600.00,HIGH TUNSTALL COLLEGE OF SCIENCE.
Children and Young Peoples Services,Head of Education and Skills,Transfer Payments,510034,School Children,05/03/2024,4242616-CLAEARLYSUMMER2024 /34,600.00,HIGH TUNSTALL COLLEGE OF SCIENCE.
Children and Young Peoples Services,Head of Education and Skills,Transfer Payments,510034,School Children,05/03/2024,4242617-CLAEARLYSUMMER2024/114,600.00,HOPE WOOD ACADEMY.
Children and Young Peoples Services,Head of Education and Skills,Transfer Payments,510034,School Children,05/03/2024,4242617-CLAEARLYSUMMER2024/17,600.00,HOPE WOOD ACADEMY.
Children and Young Peoples Services,Head of Education and Skills,Transfer Payments,510034,School Children,05/03/2024,4242617-CLAEARLYSUMMER2024/74,600.00,HOPE WOOD ACADEMY.
Adult and Health Services,Public Health CC0450,Third Party Payments,460803,Contract Payments,05/03/2024,4242618-SI-HK-002015,"12,334.00",HUMANKIND CHARITY.
Children and Young Peoples Services,Head of Education and Skills,Transfer Payments,510034,School Children,05/03/2024,4242619-CLAEARLYSUMMER2024/10,600.00,HUMMERSKNOTT ACADEMY.
Children and Young Peoples Services,Head of Education and Skills,Transfer Payments,510034,School Children,05/03/2024,4242620-CLAEARLYSUMMER2024/14,600.00,HURWORTH ACADEMY.
Children and Young Peoples Services,Head of Education and Skills,Transfer Payments,510034,School Children,05/03/2024,4242620-CLAEARLYSUMMER2024/15,600.00,HURWORTH ACADEMY.
Children and Young Peoples Services,Head of Education and Skills,Transfer Payments,510034,School Children,05/03/2024,4242620-CLAEARLYSUMMER2024/16,600.00,HURWORTH ACADEMY.
Children and Young Peoples Services,Head of Education and Skills,Transfer Payments,510034,School Children,05/03/2024,4242620-CLAEARLYSUMMER2024/17,600.00,HURWORTH ACADEMY.
Children and Young Peoples Services,Head of Education and Skills,Transfer Payments,510034,School Children,05/03/2024,4242620-CLAEARLYSUMMER2024/18,600.00,HURWORTH ACADEMY.
Children and Young Peoples Services,Head of Education and Skills,Supplies and Services,375001,Private Finance Initiative,05/03/2024,4242622-ISD0430,"713,289.70",INSPIREDSPACES DURHAM (PROJECTCO1) LTD.
Neighbourhoods and Climate Change,Highways,Third Party Payments,430127,Rendered by Private Contractors,05/03/2024,4242625-2105/2023,"1,715.00",J & JG GILL & SONS LTD.
Neighbourhoods and Climate Change,Highways,Supplies and Services,304221,Equipment and Materials,05/03/2024,4242641-412646,"2,526.70",KAEFER LTD.
Children and Young Peoples Services,Head of Education and Skills,Transfer Payments,510034,School Children,05/03/2024,4242645-CLAEARLYSUMMER2024/11,600.00,LAIDLAW SCHOOLS TRUST T/A ACADEMY 360.
Children and Young Peoples Services,Head of Education and Skills,Transfer Payments,510034,School Children,05/03/2024,4242647-CLAEARLYSUMMER2024/20,600.00,LEARNING COMMUNITY TRUST T/A ERCALL ACADEMY.
Children and Young Peoples Services,Head of Education and Skills,Transfer Payments,510034,School Children,05/03/2024,4242647-CLAEARLYSUMMER2024/21,600.00,LEARNING COMMUNITY TRUST T/A ERCALL ACADEMY.
Children and Young Peoples Services,Head of Education and Skills,Transfer Payments,510034,School Children,05/03/2024,4242651-CLAEARLYSUMMER2024/53,600.00,LINGFIELD EDUCATION TRUST T/A VANE ROAD PRIMARY SCHOOL.
Children and Young Peoples Services,Head of Education and Skills,Transfer Payments,510034,School Children,05/03/2024,4242651-CLAEARLYSUMMER2024/71,600.00,LINGFIELD EDUCATION TRUST T/A VANE ROAD PRIMARY SCHOOL.
Adult and Health Services,Head of Adults,Third Party Payments,474101,Purchase of Care,05/03/2024,4242653-BLOCKBEDS-MAR24,"28,432.49",MALHOTRA CARE HOMES LTD.
Adult and Health Services,Head of Adults,Third Party Payments,474101,Purchase of Care,05/03/2024,4242653-BLOCKBEDS-RNCC-MAR24,"7,784.01",MALHOTRA CARE HOMES LTD.
Children and Young Peoples Services,Head of Education and Skills,Transfer Payments,510034,School Children,05/03/2024,4242674-CLAEARLYSUMMER2024/126,600.00,NORTH DURHAM ACADEMY.
Children and Young Peoples Services,Head of Education and Skills,Transfer Payments,510034,School Children,05/03/2024,4242674-CLAEARLYSUMMER2024/14,600.00,NORTH DURHAM ACADEMY.
Children and Young Peoples Services,Head of Education and Skills,Transfer Payments,510034,School Children,05/03/2024,4242674-CLAEARLYSUMMER2024/75,600.00,NORTH DURHAM ACADEMY.
Children and Young Peoples Services,Head of Education and Skills,Transfer Payments,510034,School Children,05/03/2024,4242675-CLAEARLYSUMMER2024/1,600.00,NORTH EAST LEARNING TRUST (NELT).
Children and Young Peoples Services,Head of Education and Skills,Transfer Payments,510034,School Children,05/03/2024,4242675-CLAEARLYSUMMER2024/108,600.00,NORTH EAST LEARNING TRUST (NELT).
Children and Young Peoples Services,Head of Education and Skills,Transfer Payments,510034,School Children,05/03/2024,4242675-CLAEARLYSUMMER2024/113,600.00,NORTH EAST LEARNING TRUST (NELT).
Children and Young Peoples Services,Head of Education and Skills,Transfer Payments,510034,School Children,05/03/2024,4242675-CLAEARLYSUMMER2024/115,600.00,NORTH EAST LEARNING TRUST (NELT).
Children and Young Peoples Services,Head of Education and Skills,Transfer Payments,510034,School Children,05/03/2024,4242675-CLAEARLYSUMMER2024/116,600.00,NORTH EAST LEARNING TRUST (NELT).
Children and Young Peoples Services,Head of Education and Skills,Transfer Payments,510034,School Children,05/03/2024,4242675-CLAEARLYSUMMER2024/12,600.00,NORTH EAST LEARNING TRUST (NELT).
Children and Young Peoples Services,Head of Education and Skills,Transfer Payments,510034,School Children,05/03/2024,4242675-CLAEARLYSUMMER2024/121,600.00,NORTH EAST LEARNING TRUST (NELT).
Children and Young Peoples Services,Head of Education and Skills,Transfer Payments,510034,School Children,05/03/2024,4242675-CLAEARLYSUMMER2024/130,600.00,NORTH EAST LEARNING TRUST (NELT).
Children and Young Peoples Services,Head of Education and Skills,Transfer Payments,510034,School Children,05/03/2024,4242675-CLAEARLYSUMMER2024/135,600.00,NORTH EAST LEARNING TRUST (NELT).
Children and Young Peoples Services,Head of Education and Skills,Transfer Payments,510034,School Children,05/03/2024,4242675-CLAEARLYSUMMER2024/145,600.00,NORTH EAST LEARNING TRUST (NELT).
Children and Young Peoples Services,Head of Education and Skills,Transfer Payments,510034,School Children,05/03/2024,4242675-CLAEARLYSUMMER2024/155,600.00,NORTH EAST LEARNING TRUST (NELT).
Children and Young Peoples Services,Head of Education and Skills,Transfer Payments,510034,School Children,05/03/2024,4242675-CLAEARLYSUMMER2024/50,600.00,NORTH EAST LEARNING TRUST (NELT).
Children and Young Peoples Services,Head of Education and Skills,Transfer Payments,510034,School Children,05/03/2024,4242675-CLAEARLYSUMMER2024/8,600.00,NORTH EAST LEARNING TRUST (NELT).
Children and Young Peoples Services,Head of Education and Skills,Transfer Payments,510034,School Children,05/03/2024,4242675-CLAEARLYSUMMER2024/85,600.00,NORTH EAST LEARNING TRUST (NELT).
Children and Young Peoples Services,Head of Education and Skills,Transfer Payments,510034,School Children,05/03/2024,4242675-CLAEARLYSUMMER2024/89,600.00,NORTH EAST LEARNING TRUST (NELT).
Children and Young Peoples Services,Head of Education and Skills,Transfer Payments,510034,School Children,05/03/2024,4242675-CLAEARLYSUMMER2024/9,600.00,NORTH EAST LEARNING TRUST (NELT).
Children and Young Peoples Services,Head of Education and Skills,Transfer Payments,510034,School Children,05/03/2024,4242675-CLAEARLYSUMMER2024/97,600.00,NORTH EAST LEARNING TRUST (NELT).
Children and Young Peoples Services,Head of Education and Skills,Transfer Payments,510034,School Children,05/03/2024,4242675-CLAEARLYSUMMER2024/98,600.00,NORTH EAST LEARNING TRUST (NELT).
Children and Young Peoples Services,Head of Education and Skills,Transfer Payments,510034,School Children,05/03/2024,4242675-CLAEARLYSUMMER2024/99,600.00,NORTH EAST LEARNING TRUST (NELT).
Children and Young Peoples Services,Head of Education and Skills,Transfer Payments,510034,School Children,05/03/2024,4242678-CLAEARLYSUMMER2024/12,600.00,NORTH TYNESIDE COUNCIL.
Children and Young Peoples Services,Head of Education and Skills,Transfer Payments,510034,School Children,05/03/2024,4242679-CLAEXTERAPPP2024/1,"5,000.00",NORTH TYNESIDE COUNCIL.
Children and Young Peoples Services,Head of Education and Skills,Transfer Payments,510034,School Children,05/03/2024,4242680-CLAEXTERAPPP2024/2,"2,520.00",NORTH YORKSHIRE COUNTY COUNCIL.
Children and Young Peoples Services,Head of Education and Skills,Transfer Payments,510034,School Children,05/03/2024,4242681-CLAEARLYSUMMER2024/46,600.00,NORTHERN EDUCATION TRUST.
Children and Young Peoples Services,Head of Education and Skills,Transfer Payments,510034,School Children,05/03/2024,4242682-CLAEARLYSUMMER2024/49,600.00,NORTHERN EDUCATION TRUST.
Neighbourhoods and Climate Change,Highways,Third Party Payments,430100,Rendered by Private Contractors,05/03/2024,4242683-DI20419674,"1,307.59",NORTHERN POWERGRID (NORTHEAST) LTD.
Neighbourhoods and Climate Change,Highways,Third Party Payments,430100,Rendered by Private Contractors,05/03/2024,4242683-DI20421341,"1,975.63",NORTHERN POWERGRID (NORTHEAST) LTD.
Neighbourhoods and Climate Change,Highways,Third Party Payments,430100,Rendered by Private Contractors,05/03/2024,4242683-DI20421501,"4,031.33",NORTHERN POWERGRID (NORTHEAST) LTD.
Children and Young Peoples Services,Head of Education and Skills,Transfer Payments,510034,School Children,05/03/2024,4242684-CLAEARLYSUMMER2024 /35,600.00,NORTHUMBERLAND COUNTY COUNCIL.
Regeneration Economy and Growth,Culture Sport and Tourism,Supplies and Services,338047,Services,05/03/2024,4242691-1295351,510.08,PARK CIRCUS LTD.
Regeneration Economy and Growth,Corporate Property and Land,Supplies and Services,304221,Equipment and Materials,05/03/2024,4242692-DT227095,680.00,PARK ELECTRICAL DISTRIBUTORS LTD.
Neighbourhoods and Climate Change,Highways,Stock A926,926900,Stock in hand-Inventory system,05/03/2024,4242692-XL313037,"4,140.00",PARK ELECTRICAL DISTRIBUTORS LTD.
Neighbourhoods and Climate Change,Highways,Stock A926,926900,Stock in hand-Inventory system,05/03/2024,4242692-XL313038,"1,985.76",PARK ELECTRICAL DISTRIBUTORS LTD.
Neighbourhoods and Climate Change,Highways,Stock A926,926900,Stock in hand-Inventory system,05/03/2024,4242692-XL313039,716.00,PARK ELECTRICAL DISTRIBUTORS LTD.
Children and Young Peoples Services,Head of Education and Skills,Transfer Payments,510034,School Children,05/03/2024,4242693-CLAEARLYSUMMER2024/10,600.00,PARK VIEW ACADEMY.
Children and Young Peoples Services,Head of Education and Skills,Transfer Payments,510034,School Children,05/03/2024,4242693-CLAEARLYSUMMER2024/109,600.00,PARK VIEW ACADEMY.
Children and Young Peoples Services,Head of Education and Skills,Transfer Payments,510034,School Children,05/03/2024,4242693-CLAEARLYSUMMER2024/111,600.00,PARK VIEW ACADEMY.
Children and Young Peoples Services,Head of Education and Skills,Transfer Payments,510034,School Children,05/03/2024,4242693-CLAEARLYSUMMER2024/112,600.00,PARK VIEW ACADEMY.
Children and Young Peoples Services,Head of Education and Skills,Transfer Payments,510034,School Children,05/03/2024,4242693-CLAEARLYSUMMER2024/136,600.00,PARK VIEW ACADEMY.
Children and Young Peoples Services,Head of Education and Skills,Transfer Payments,510034,School Children,05/03/2024,4242693-CLAEARLYSUMMER2024/16,600.00,PARK VIEW ACADEMY.
Children and Young Peoples Services,Head of Education and Skills,Transfer Payments,510034,School Children,05/03/2024,4242693-CLAEARLYSUMMER2024/19,600.00,PARK VIEW ACADEMY.
Children and Young Peoples Services,Head of Education and Skills,Transfer Payments,510034,School Children,05/03/2024,4242693-CLAEARLYSUMMER2024/48,600.00,PARK VIEW ACADEMY.
Children and Young Peoples Services,Head of Education and Skills,Transfer Payments,510034,School Children,05/03/2024,4242693-CLAEARLYSUMMER2024/52,600.00,PARK VIEW ACADEMY.
Children and Young Peoples Services,Head of Education and Skills,Transfer Payments,510034,School Children,05/03/2024,4242693-CLAEARLYSUMMER2024/61,600.00,PARK VIEW ACADEMY.
Adult and Health Services,Public Health CC0450,Third Party Payments,460803,Contract Payments,05/03/2024,4242700-18714/18,"5,462.90",PIONEERING CARE PARTNERSHIP.
Children and Young Peoples Services,Head of Education and Skills,Transfer Payments,510034,School Children,05/03/2024,4242713-CLAEARLYSUMMER2024/58,600.00,SEDGEFIELD COMMUNITY COLLEGE.
Children and Young Peoples Services,Head of Education and Skills,Transfer Payments,510034,School Children,05/03/2024,4242713-CLAEARLYSUMMER2024/59,600.00,SEDGEFIELD COMMUNITY COLLEGE.
Children and Young Peoples Services,Head of Education and Skills,Transfer Payments,510034,School Children,05/03/2024,4242713-CLAEARLYSUMMER2024/60,600.00,SEDGEFIELD COMMUNITY COLLEGE.
Children and Young Peoples Services,Head of Education and Skills,Transfer Payments,510034,School Children,05/03/2024,4242713-CLAEARLYSUMMER2024/64,600.00,SEDGEFIELD COMMUNITY COLLEGE.
Children and Young Peoples Services,Head of Education and Skills,Transfer Payments,510034,School Children,05/03/2024,4242713-CLAEARLYSUMMER2024/65,600.00,SEDGEFIELD COMMUNITY COLLEGE.
Children and Young Peoples Services,Head of Education and Skills,Transfer Payments,510034,School Children,05/03/2024,4242713-CLAEARLYSUMMER2024/67,600.00,SEDGEFIELD COMMUNITY COLLEGE.
Children and Young Peoples Services,Head of Education and Skills,Transfer Payments,510034,School Children,05/03/2024,4242713-CLAEARLYSUMMER2024/68,600.00,SEDGEFIELD COMMUNITY COLLEGE.
Children and Young Peoples Services,Head of Education and Skills,Transfer Payments,510034,School Children,05/03/2024,4242713-CLAEARLYSUMMER2024/69,600.00,SEDGEFIELD COMMUNITY COLLEGE.
Children and Young Peoples Services,Head of Education and Skills,Transfer Payments,510034,School Children,05/03/2024,4242713-CLAEARLYSUMMER2024/72,600.00,SEDGEFIELD COMMUNITY COLLEGE.
Adult and Health Services,Head of Adults,Supplies and Services,338066,Services,05/03/2024,4242717-505,537.60,SHAH MEDICAL SERVICES LTD.
Neighbourhoods and Climate Change,Highways,Stock A926,926900,Stock in hand-Inventory system,05/03/2024,4242719-1646,"4,674.60",SNAPFAST LTD.
Neighbourhoods and Climate Change,Highways,Stock A926,926900,Stock in hand-Inventory system,05/03/2024,4242719-1647,"1,049.40",SNAPFAST LTD.
Neighbourhoods and Climate Change,Highways,Stock A926,926900,Stock in hand-Inventory system,05/03/2024,4242719-1649,"3,667.50",SNAPFAST LTD.
Neighbourhoods and Climate Change,Highways,Stock A926,926900,Stock in hand-Inventory system,05/03/2024,4242719-1692,"3,070.00",SNAPFAST LTD.
Children and Young Peoples Services,Head of Education and Skills,Transfer Payments,510034,School Children,05/03/2024,4242720-CLAEARLYSUMMER2024/123,600.00,ST BEDES CATHOLIC ACADEMY (LANCHESTER).
Children and Young Peoples Services,Head of Education and Skills,Transfer Payments,510034,School Children,05/03/2024,4242720-CLAEARLYSUMMER2024/161,600.00,ST BEDES CATHOLIC ACADEMY (LANCHESTER).
Children and Young Peoples Services,Head of Education and Skills,Transfer Payments,510034,School Children,05/03/2024,4242720-CLAEARLYSUMMER2024/37,600.00,ST BEDES CATHOLIC ACADEMY (LANCHESTER).
Children and Young Peoples Services,Head of Education and Skills,Transfer Payments,510034,School Children,05/03/2024,4242720-CLAEARLYSUMMER2024/80,600.00,ST BEDES CATHOLIC ACADEMY (LANCHESTER).
Children and Young Peoples Services,Head of Education and Skills,Transfer Payments,510034,School Children,05/03/2024,4242720-CLAEARLYSUMMER2024/86,600.00,ST BEDES CATHOLIC ACADEMY (LANCHESTER).
Children and Young Peoples Services,Head of Education and Skills,Transfer Payments,510034,School Children,05/03/2024,4242720-CLAEARLYSUMMER2024/92,600.00,ST BEDES CATHOLIC ACADEMY (LANCHESTER).
Children and Young Peoples Services,Head of Education and Skills,Transfer Payments,510034,School Children,05/03/2024,4242721-CLAEARLYSUMMER2024/43,600.00,ST HILD`S CHURCH OF ENGLAND SCHOOL.
Children and Young Peoples Services,Head of Education and Skills,Transfer Payments,510034,School Children,05/03/2024,4242722-CLAEARLYSUMMER2024 /36,600.00,ST JOSEPH`S RC MIDDLE SCHOOL (HEXHAM).
Children and Young Peoples Services,Head of Education and Skills,Transfer Payments,510034,School Children,05/03/2024,4242725-CLAEARLYSUMMER2024 /1,600.00,ST ROBERTS NEWMINSTER RC SCHOOL & 6TH FORM COLLEGE.
Children and Young Peoples Services,Head of Education and Skills,Transfer Payments,510034,School Children,05/03/2024,4242725-CLAEARLYSUMMER2024 /38,600.00,ST ROBERTS NEWMINSTER RC SCHOOL & 6TH FORM COLLEGE.
Children and Young Peoples Services,Head of Education and Skills,Transfer Payments,510034,School Children,05/03/2024,4242725-CLAEARLYSUMMER2024 /41,600.00,ST ROBERTS NEWMINSTER RC SCHOOL & 6TH FORM COLLEGE.
Children and Young Peoples Services,Head of Education and Skills,Transfer Payments,510034,School Children,05/03/2024,4242725-CLAEARLYSUMMER2024/ 27,600.00,ST ROBERTS NEWMINSTER RC SCHOOL & 6TH FORM COLLEGE.
Children and Young Peoples Services,Head of Education and Skills,Transfer Payments,510034,School Children,05/03/2024,4242725-CLAEARLYSUMMER2024/19,600.00,ST ROBERTS NEWMINSTER RC SCHOOL & 6TH FORM COLLEGE.
Children and Young Peoples Services,Head of Education and Skills,Transfer Payments,510034,School Children,05/03/2024,4242725-CLAEARLYSUMMER2024/31,600.00,ST ROBERTS NEWMINSTER RC SCHOOL & 6TH FORM COLLEGE.
Children and Young Peoples Services,Head of Education and Skills,Transfer Payments,510034,School Children,05/03/2024,4242725-CLAEARLYSUMMER2024/47,600.00,ST ROBERTS NEWMINSTER RC SCHOOL & 6TH FORM COLLEGE.
Children and Young Peoples Services,Head of Education and Skills,Transfer Payments,510034,School Children,05/03/2024,4242726-CLAEARLYSUMMER2024/23,600.00,ST THOMAS MORE RC COLLEGE.
Children and Young Peoples Services,Head of Education and Skills,Transfer Payments,510034,School Children,05/03/2024,4242726-CLAEXTERAPPP2024/3,600.00,ST THOMAS MORE RC COLLEGE.
Children and Young Peoples Services,Head of Education and Skills,Transfer Payments,510034,School Children,05/03/2024,4242727-CLAEARLYSUMMER2024/124,600.00,STANLEY LEARNING PARTNERSHIP.
Children and Young Peoples Services,Head of Education and Skills,Transfer Payments,510034,School Children,05/03/2024,4242727-CLAEARLYSUMMER2024/93,600.00,STANLEY LEARNING PARTNERSHIP.
Regeneration Economy and Growth,Transport and Contract Services,Third Party Payments,430106,Rendered by Private Contractors,05/03/2024,4242728-40710,"6,672.80",STANLEY TRAVEL (NORTH EAST) LTD.
Regeneration Economy and Growth,Transport and Contract Services,Third Party Payments,430106,Rendered by Private Contractors,05/03/2024,4242728-40979,"13,557.40",STANLEY TRAVEL (NORTH EAST) LTD.
Children and Young Peoples Services,Head of Education and Skills,Transfer Payments,510034,School Children,05/03/2024,4242731-CLAPPPSPRING2024/2,600.00,SUNDERLAND CITY COUNCIL.
Regeneration Economy and Growth,Corporate Property and Land,Third Party Payments,430100,Rendered by Private Contractors,05/03/2024,4242733-180969,"4,917.00",SUPATINT LTD T/A SUPATINT WINDOW FILMS & BLINDS.
Children and Young Peoples Services,Head of Education and Skills,Transfer Payments,510034,School Children,05/03/2024,4242742-CLAEARLYSUMMER2024/131,600.00,TUDHOE LEARNING TRUST.
Children and Young Peoples Services,Head of Education and Skills,Transfer Payments,510034,School Children,05/03/2024,4242743-CLAEARLYSUMMER2024/81,600.00,TUDHOE LEARNING TRUST.
Children and Young Peoples Services,Head of Education and Skills,Transfer Payments,510034,School Children,05/03/2024,4242744-CLAEARLYSUMMER2024/180,600.00,TUDHOE LEARNING TRUST.
Children and Young Peoples Services,Head of Education and Skills,Transfer Payments,510034,School Children,05/03/2024,4242744-CLAEARLYSUMMER2024/181,600.00,TUDHOE LEARNING TRUST.
Children and Young Peoples Services,Head of Education and Skills,Transfer Payments,510034,School Children,05/03/2024,4242745-CLAEARLYSUMMER2024/143,600.00,TUDHOE LEARNING TRUST.
Regeneration Economy and Growth,Culture Sport and Tourism,Supplies and Services,384199,Miscellaneous Expenses,05/03/2024,4242749-INV-64154,837.93,VISTECH SERVICES LTD.
Children and Young Peoples Services,Head of Early Help Inclusion & Vulnerable Children.,Supplies and Services,338078,Services,05/03/2024,4242749-INV-64160,"5,050.08",VISTECH SERVICES LTD.
Neighbourhoods and Climate Change,Environmental Services,Supplies and Services,338099,Services,05/03/2024,4242751-336,"1,800.00",WEAR RIVERS TRUST.
Children and Young Peoples Services,Head of Education and Skills,Transfer Payments,510034,School Children,05/03/2024,4242754-CLAEARLYSUMMER2024 /40,600.00,WEST PARK ACADEMY.
Children and Young Peoples Services,Head of Education and Skills,Transfer Payments,510034,School Children,05/03/2024,4242755-CLAEARLYSUMMER2024/ 28,600.00,WESTGATE HILL PRIMARY ACADEMY.
Children and Young Peoples Services,Head of Education and Skills,Transfer Payments,510034,School Children,05/03/2024,4242756-CLAEARLYSUMMER2024/105,600.00,WHITWORTH PARK SCHOOL.*
Children and Young Peoples Services,Head of Education and Skills,Transfer Payments,510034,School Children,05/03/2024,4242756-CLAEARLYSUMMER2024/150,600.00,WHITWORTH PARK SCHOOL.*
Children and Young Peoples Services,Head of Education and Skills,Transfer Payments,510034,School Children,05/03/2024,4242756-CLAEARLYSUMMER2024/152,600.00,WHITWORTH PARK SCHOOL.*
Children and Young Peoples Services,Head of Education and Skills,Transfer Payments,510034,School Children,05/03/2024,4242756-CLAEARLYSUMMER2024/46,600.00,WHITWORTH PARK SCHOOL.*
Neighbourhoods and Climate Change,Environmental Services,Transport,215005,Running Costs of Vehicles,05/03/2024,4242761-1123699,"1,475.63",YOUR NRG LTD.
Neighbourhoods and Climate Change,Environmental Services,Supplies and Services,384199,Miscellaneous Expenses,05/03/2024,4242511-INV-0394,"4,340.00",REDACTED - PAYMENT TO INDIVIDUAL
Regeneration Economy and Growth,Culture Sport and Tourism,Supplies and Services,384302,Miscellaneous Expenses,05/03/2024,4242550-NEI-03-2024-005,522.00,REDACTED - PAYMENT TO INDIVIDUAL
Neighbourhoods and Climate Change,Environmental Services,Supplies and Services,384606,Miscellaneous Expenses,05/03/2024,4242648-RES-03-2024-025,612.00,REDACTED - PAYMENT TO INDIVIDUAL
Neighbourhoods and Climate Change,Environmental Services,Supplies and Services,384606,Miscellaneous Expenses,05/03/2024,4242757-RES-03-2024-023,"4,416.40",REDACTED - PAYMENT TO INDIVIDUAL
Children and Young Peoples Services,Head of Education and Skills,Transport,230008,Contract Hire,06/03/2024,4242781-98,"2,712.00",REDACTED - PAYMENT TO INDIVIDUAL
Children and Young Peoples Services,Head of Education and Skills,Transport,230006,Contract Hire,06/03/2024,4242781-W001-0224,"2,552.00",REDACTED - PAYMENT TO INDIVIDUAL
Children and Young Peoples Services,Head of Education and Skills,Transport,230009,Contract Hire,06/03/2024,4242784-7384-FEB24,"1,454.24",REDACTED - PAYMENT TO INDIVIDUAL
Adult and Health Services,Head of Adults,Transport,230005,Contract Hire,06/03/2024,4242784-DW138-FEB24,765.00,REDACTED - PAYMENT TO INDIVIDUAL
Children and Young Peoples Services,Head of Education and Skills,Transport,230034,Contract Hire,06/03/2024,4242824-5289-28,"3,073.76",REDACTED - PAYMENT TO INDIVIDUAL
Adult and Health Services,Head of Adults,Transport,230005,Contract Hire,06/03/2024,4242824-EAS197-18,630.00,REDACTED - PAYMENT TO INDIVIDUAL
Children and Young Peoples Services,Head of Education and Skills,Transport,230006,Contract Hire,06/03/2024,4242824-F326-6,828.00,REDACTED - PAYMENT TO INDIVIDUAL
Children and Young Peoples Services,Head of Education and Skills,Transport,230008,Contract Hire,06/03/2024,4242827-INV-113,"2,100.00",REDACTED - PAYMENT TO INDIVIDUAL
Children and Young Peoples Services,Head of Childrens Social Care,Supplies and Services,338044,Services,06/03/2024,4242867-1322324,659.38,REDACTED - PAYMENT TO INDIVIDUAL
Children and Young Peoples Services,Head of Education and Skills,Transport,230006,Contract Hire,06/03/2024,4242896-19-FEB24,"2,653.16",REDACTED - PAYMENT TO INDIVIDUAL
Children and Young Peoples Services,Head of Education and Skills,Transport,230006,Contract Hire,06/03/2024,4242896-20-FEB24,"2,834.91",REDACTED - PAYMENT TO INDIVIDUAL
Children and Young Peoples Services,Head of Education and Skills,Transport,230007,Contract Hire,06/03/2024,4242922-4409-FEB24,"1,204.96",REDACTED - PAYMENT TO INDIVIDUAL
Adult and Health Services,Head of Adults,Transport,230005,Contract Hire,06/03/2024,4242922-CLS078-FEB24,"1,178.16",REDACTED - PAYMENT TO INDIVIDUAL
Children and Young Peoples Services,Head of Education and Skills,Transport,230006,Contract Hire,06/03/2024,4242922-F896-FEB24,"1,959.82",REDACTED - PAYMENT TO INDIVIDUAL
Regeneration Economy and Growth,Culture Sport and Tourism,Supplies and Services,384237,Miscellaneous Expenses,06/03/2024,4242931-JSA0011,"3,460.00",REDACTED - PAYMENT TO INDIVIDUAL
Children and Young Peoples Services,Head of Education and Skills,Transport,230008,Contract Hire,06/03/2024,4242933-A064-01,620.00,REDACTED - PAYMENT TO INDIVIDUAL
Children and Young Peoples Services,Head of Education and Skills,Transport,230006,Contract Hire,06/03/2024,4242933-PA06,"1,875.00",REDACTED - PAYMENT TO INDIVIDUAL
Children and Young Peoples Services,Head of Education and Skills,Transport,230007,Contract Hire,06/03/2024,4242951-1012-0224,"1,568.00",REDACTED - PAYMENT TO INDIVIDUAL
Children and Young Peoples Services,Head of Education and Skills,Transport,230034,Contract Hire,06/03/2024,4242951-4522-0224,"1,732.48",REDACTED - PAYMENT TO INDIVIDUAL
Children and Young Peoples Services,Head of Education and Skills,Transport,230008,Contract Hire,06/03/2024,4242951-A211-0224,"2,864.00",REDACTED - PAYMENT TO INDIVIDUAL
Children and Young Peoples Services,Head of Education and Skills,Transport,230008,Contract Hire,06/03/2024,4242958-0141,"3,255.00",REDACTED - PAYMENT TO INDIVIDUAL
Children and Young Peoples Services,Head of Education and Skills,Transport,230008,Contract Hire,06/03/2024,4242958-0142,"3,600.00",REDACTED - PAYMENT TO INDIVIDUAL
Children and Young Peoples Services,Head of Education and Skills,Transport,230034,Contract Hire,06/03/2024,4242977-1009-290224,"2,180.00",REDACTED - PAYMENT TO INDIVIDUAL
Children and Young Peoples Services,Head of Education and Skills,Transport,230006,Contract Hire,06/03/2024,4242977-290224,"2,640.00",REDACTED - PAYMENT TO INDIVIDUAL
Children and Young Peoples Services,Head of Education and Skills,Transport,230009,Contract Hire,06/03/2024,4242978-7372-1223,706.68,REDACTED - PAYMENT TO INDIVIDUAL
Children and Young Peoples Services,Head of Education and Skills,Transport,230008,Contract Hire,06/03/2024,4242979-0155,"2,501.28",REDACTED - PAYMENT TO INDIVIDUAL
Children and Young Peoples Services,Head of Education and Skills,Transport,230008,Contract Hire,06/03/2024,4242979-0156,"2,240.00",REDACTED - PAYMENT TO INDIVIDUAL
Children and Young Peoples Services,Head of Education and Skills,Transport,230010,Contract Hire,06/03/2024,4242979-0157,"2,880.00",REDACTED - PAYMENT TO INDIVIDUAL
Children and Young Peoples Services,Head of Education and Skills,Transport,230035,Contract Hire,06/03/2024,4242988-3015-FEB24,"2,128.00",REDACTED - PAYMENT TO INDIVIDUAL
Children and Young Peoples Services,Head of Education and Skills,Transport,230034,Contract Hire,06/03/2024,4242988-307,"1,054.00",REDACTED - PAYMENT TO INDIVIDUAL
Children and Young Peoples Services,Head of Education and Skills,Transport,230010,Contract Hire,06/03/2024,4242988-310,"4,222.46",REDACTED - PAYMENT TO INDIVIDUAL
Neighbourhoods and Climate Change,Environmental Services,Supplies and Services,304337,Equipment and Materials,06/03/2024,4242992-1,"1,341.64",REDACTED - PAYMENT TO INDIVIDUAL
Children and Young Peoples Services,Head of Education and Skills,Transport,230008,Contract Hire,06/03/2024,4242998-CROFT1-02-24,"1,677.76",REDACTED - PAYMENT TO INDIVIDUAL
Children and Young Peoples Services,Head of Education and Skills,Transport,230009,Contract Hire,06/03/2024,4242998-FRAM1-02-24,"1,328.32",REDACTED - PAYMENT TO INDIVIDUAL
Children and Young Peoples Services,Head of Education and Skills,Transport,230006,Contract Hire,06/03/2024,4242998-OAK1-02-24,"2,220.80",REDACTED - PAYMENT TO INDIVIDUAL
Children and Young Peoples Services,Head of Education and Skills,Transport,230008,Contract Hire,06/03/2024,4242998-THPK1-02-24,"2,511.20",REDACTED - PAYMENT TO INDIVIDUAL
Children and Young Peoples Services,Head of Education and Skills,Transport,230035,Contract Hire,06/03/2024,4242999-FEB-292024,906.68,REDACTED - PAYMENT TO INDIVIDUAL
Children and Young Peoples Services,Head of Education and Skills,Transport,230007,Contract Hire,06/03/2024,4242999-STLEONARDS-FEB292024,900.60,REDACTED - PAYMENT TO INDIVIDUAL
Children and Young Peoples Services,Head of Education and Skills,Transport,230008,Contract Hire,06/03/2024,4243000-43-W083,"3,183.68",REDACTED - PAYMENT TO INDIVIDUAL
Children and Young Peoples Services,Head of Education and Skills,Transport,230034,Contract Hire,06/03/2024,4243001-6033-FEB24,"1,592.00",REDACTED - PAYMENT TO INDIVIDUAL
Children and Young Peoples Services,Head of Education and Skills,Transport,230008,Contract Hire,06/03/2024,4243001-A022-FEB24,"2,848.00",REDACTED - PAYMENT TO INDIVIDUAL
Children and Young Peoples Services,Head of Education and Skills,Transport,230008,Contract Hire,06/03/2024,4243001-A072-FEB24,"2,864.00",REDACTED - PAYMENT TO INDIVIDUAL
Children and Young Peoples Services,Head of Education and Skills,Transport,230009,Contract Hire,06/03/2024,4243001-E038-FEB24,"2,370.40",REDACTED - PAYMENT TO INDIVIDUAL
Children and Young Peoples Services,Head of Education and Skills,Transport,230008,Contract Hire,06/03/2024,4243001-E080-FEB24,"2,858.08",REDACTED - PAYMENT TO INDIVIDUAL
Regeneration Economy and Growth,Culture Sport and Tourism,Supplies and Services,377015,County Durham Development,06/03/2024,4243002-01/03/2024,550.00,REDACTED - PAYMENT TO INDIVIDUAL
Children and Young Peoples Services,Head of Education and Skills,Transport,230007,Contract Hire,06/03/2024,4243004-4275-FEBRUARY24,"6,400.00",REDACTED - PAYMENT TO INDIVIDUAL
Children and Young Peoples Services,Head of Education and Skills,Transport,230008,Contract Hire,06/03/2024,4243004-A172-FEBRUARY24,"2,025.00",REDACTED - PAYMENT TO INDIVIDUAL
Children and Young Peoples Services,Head of Education and Skills,Transport,230008,Contract Hire,06/03/2024,4243004-N038-FEBRUARY24,"3,645.28",REDACTED - PAYMENT TO INDIVIDUAL
Children and Young Peoples Services,Head of Education and Skills,Transport,230006,Contract Hire,06/03/2024,4243004-N342-FEBRUARY24,"1,920.00",REDACTED - PAYMENT TO INDIVIDUAL
Children and Young Peoples Services,Head of Education and Skills,Transport,230008,Contract Hire,06/03/2024,4243004-W055-FEBRUARY24,"4,640.00",REDACTED - PAYMENT TO INDIVIDUAL
Children and Young Peoples Services,Head of Education and Skills,Transport,230034,Contract Hire,06/03/2024,4243006-1003-FEB24,"1,413.12",REDACTED - PAYMENT TO INDIVIDUAL
Children and Young Peoples Services,Head of Education and Skills,Transport,230034,Contract Hire,06/03/2024,4243006-4512-FEB24,"1,904.00",REDACTED - PAYMENT TO INDIVIDUAL
Children and Young Peoples Services,Head of Education and Skills,Transport,230007,Contract Hire,06/03/2024,4243006-7380-FEB24,"2,038.08",REDACTED - PAYMENT TO INDIVIDUAL
Children and Young Peoples Services,Head of Education and Skills,Transport,230006,Contract Hire,06/03/2024,4243006-F343-FEB24,"2,085.00",REDACTED - PAYMENT TO INDIVIDUAL
Children and Young Peoples Services,Head of Education and Skills,Transport,230008,Contract Hire,06/03/2024,4243007-595,"2,023.68",REDACTED - PAYMENT TO INDIVIDUAL
Children and Young Peoples Services,Head of Education and Skills,Transport,230008,Contract Hire,06/03/2024,4243007-596,"2,368.00",REDACTED - PAYMENT TO INDIVIDUAL
Children and Young Peoples Services,Head of Education and Skills,Transport,230008,Contract Hire,06/03/2024,4243007-598,"2,000.00",REDACTED - PAYMENT TO INDIVIDUAL
Children and Young Peoples Services,Head of Education and Skills,Transport,230008,Contract Hire,06/03/2024,4243007-599,"2,148.00",REDACTED - PAYMENT TO INDIVIDUAL
Children and Young Peoples Services,Head of Education and Skills,Transport,230008,Contract Hire,06/03/2024,4243007-600,"2,089.28",REDACTED - PAYMENT TO INDIVIDUAL
Children and Young Peoples Services,Head of Education and Skills,Transport,230008,Contract Hire,06/03/2024,4243007-601,"1,760.00",REDACTED - PAYMENT TO INDIVIDUAL
Children and Young Peoples Services,Head of Education and Skills,Transport,230008,Contract Hire,06/03/2024,4243007-602,"2,400.00",REDACTED - PAYMENT TO INDIVIDUAL
Children and Young Peoples Services,Head of Education and Skills,Transport,230008,Contract Hire,06/03/2024,4243007-603,"2,560.00",REDACTED - PAYMENT TO INDIVIDUAL
Adult and Health Services,Head of Adults,Transport,230005,Contract Hire,06/03/2024,4243007-604,697.60,REDACTED - PAYMENT TO INDIVIDUAL
Children and Young Peoples Services,Head of Education and Skills,Transport,230034,Contract Hire,06/03/2024,4243009-4501FEB24,"2,879.04",REDACTED - PAYMENT TO INDIVIDUAL
Children and Young Peoples Services,Head of Education and Skills,Transport,230006,Contract Hire,06/03/2024,4243009-F341FEB24,"1,350.00",REDACTED - PAYMENT TO INDIVIDUAL
Children and Young Peoples Services,Head of Education and Skills,Transport,230006,Contract Hire,06/03/2024,4243010-F121/FEBRUARY2024,"1,838.92",REDACTED - PAYMENT TO INDIVIDUAL
Children and Young Peoples Services,Head of Education and Skills,Transport,230006,Contract Hire,06/03/2024,4243011-A055-FEB24,"3,059.20",REDACTED - PAYMENT TO INDIVIDUAL
Children and Young Peoples Services,Head of Education and Skills,Transport,230008,Contract Hire,06/03/2024,4243011-A166-FEB24,"3,918.08",REDACTED - PAYMENT TO INDIVIDUAL
Children and Young Peoples Services,Head of Education and Skills,Transport,230010,Contract Hire,06/03/2024,4243012-21-FEB24,"1,953.93",REDACTED - PAYMENT TO INDIVIDUAL
Children and Young Peoples Services,Head of Education and Skills,Transport,230034,Contract Hire,06/03/2024,4243012-23,"1,280.00",REDACTED - PAYMENT TO INDIVIDUAL
Children and Young Peoples Services,Head of Education and Skills,Transport,230034,Contract Hire,06/03/2024,4243012-24,"2,400.00",REDACTED - PAYMENT TO INDIVIDUAL
Children and Young Peoples Services,Head of Education and Skills,Transport,230008,Contract Hire,06/03/2024,4243029-106,"1,760.00",REDACTED - PAYMENT TO INDIVIDUAL
Children and Young Peoples Services,Head of Education and Skills,Transport,230007,Contract Hire,06/03/2024,4243030-306,"1,814.40",REDACTED - PAYMENT TO INDIVIDUAL
Neighbourhoods and Climate Change,Highways,Third Party Payments,430127,Rendered by Private Contractors,06/03/2024,4243047-25,"1,530.00",REDACTED - PAYMENT TO INDIVIDUAL
Children and Young Peoples Services,Head of Education and Skills,Transport,230034,Contract Hire,06/03/2024,4243053-SC-306,"2,818.56",REDACTED - PAYMENT TO INDIVIDUAL
Children and Young Peoples Services,Head of Education and Skills,Transport,230009,Contract Hire,06/03/2024,4243055-7009-FEB24,"1,520.00",REDACTED - PAYMENT TO INDIVIDUAL
Children and Young Peoples Services,Head of Education and Skills,Transport,230008,Contract Hire,06/03/2024,4243055-FEB-24-M030,"2,535.00",REDACTED - PAYMENT TO INDIVIDUAL
Children and Young Peoples Services,Head of Education and Skills,Transport,230008,Contract Hire,06/03/2024,4243055-FEB-M014,"2,542.56",REDACTED - PAYMENT TO INDIVIDUAL
Children and Young Peoples Services,Head of Education and Skills,Transport,230008,Contract Hire,06/03/2024,4243055-FEB-N351,800.00,REDACTED - PAYMENT TO INDIVIDUAL
Children and Young Peoples Services,Head of Education and Skills,Transport,230008,Contract Hire,06/03/2024,4243055-FEB-NO41,"2,320.00",REDACTED - PAYMENT TO INDIVIDUAL
Children and Young Peoples Services,Head of Education and Skills,Transport,230008,Contract Hire,06/03/2024,4243055-FEB24-M027,"3,447.52",REDACTED - PAYMENT TO INDIVIDUAL
Children and Young Peoples Services,Head of Education and Skills,Transport,230008,Contract Hire,06/03/2024,4243055-FEB24-N020,"4,560.00",REDACTED - PAYMENT TO INDIVIDUAL
Children and Young Peoples Services,Head of Education and Skills,Transport,230007,Contract Hire,06/03/2024,4243059-1154,952.00,REDACTED - PAYMENT TO INDIVIDUAL
Children and Young Peoples Services,Head of Education and Skills,Transport,230007,Contract Hire,06/03/2024,4243059-L002/FEB24,"1,024.00",REDACTED - PAYMENT TO INDIVIDUAL
Children and Young Peoples Services,Head of Education and Skills,Transport,230008,Contract Hire,06/03/2024,4243059-N032-FEB24,"1,677.00",REDACTED - PAYMENT TO INDIVIDUAL
Children and Young Peoples Services,Head of Education and Skills,Transport,230034,Contract Hire,06/03/2024,4243076-008-FEB2024,"2,979.20",REDACTED - PAYMENT TO INDIVIDUAL
Children and Young Peoples Services,Head of Education and Skills,Transport,230035,Contract Hire,06/03/2024,4243077-124,"2,325.60",REDACTED - PAYMENT TO INDIVIDUAL
Children and Young Peoples Services,Head of Education and Skills,Transport,230008,Contract Hire,06/03/2024,4243077-125,"2,092.50",REDACTED - PAYMENT TO INDIVIDUAL
Children and Young Peoples Services,Head of Education and Skills,Transport,230006,Contract Hire,06/03/2024,4243077-126,"1,431.00",REDACTED - PAYMENT TO INDIVIDUAL
Children and Young Peoples Services,Head of Education and Skills,Transport,230010,Contract Hire,06/03/2024,4243077-127,636.00,REDACTED - PAYMENT TO INDIVIDUAL
Children and Young Peoples Services,Head of Education and Skills,Transport,230004,Contract Hire,06/03/2024,4243077-F105-0224,"1,431.00",REDACTED - PAYMENT TO INDIVIDUAL
Children and Young Peoples Services,Head of Education and Skills,Transport,230006,Contract Hire,06/03/2024,4243080-02-FEB24,"1,544.14",REDACTED - PAYMENT TO INDIVIDUAL
Children and Young Peoples Services,Head of Education and Skills,Transport,230006,Contract Hire,06/03/2024,4243099-FEBRUARY2024-000006,"1,749.15",REDACTED - PAYMENT TO INDIVIDUAL
Children and Young Peoples Services,Head of Education and Skills,Transport,230007,Contract Hire,06/03/2024,4243115-5290-0224,"1,197.60",REDACTED - PAYMENT TO INDIVIDUAL
Children and Young Peoples Services,Head of Education and Skills,Transport,230034,Contract Hire,06/03/2024,4243116-171,"1,728.16",REDACTED - PAYMENT TO INDIVIDUAL
Children and Young Peoples Services,Head of Education and Skills,Transport,230010,Contract Hire,06/03/2024,4243154-0224046,"1,911.14",REDACTED - PAYMENT TO INDIVIDUAL
Regeneration Economy and Growth,Culture Sport and Tourism,Supplies and Services,384302,Miscellaneous Expenses,06/03/2024,4242808-BFB036,643.00,BIGFATBIG.
Children and Young Peoples Services,Head of Early Help Inclusion & Vulnerable Children.,Employees,080025,Agency Staff,06/03/2024,4242903-2480029,"151,408.65",MAGNIT GLOBAL GRI LTD.
Children and Young Peoples Services,Head of Childrens Social Care,Supplies and Services,338089,Services,06/03/2024,4242924-1124,"6,411.86",INSIGHT WELLBEING SERVICES LTD.
Children and Young Peoples Services,Head of Education and Skills,Transfer Payments,510034,School Children,06/03/2024,319651-CLAEARLYSUMMER2024/45,600.00,OXCLOSE COMMUNITY ACADEMY.
Children and Young Peoples Services,Head of Education and Skills,Transfer Payments,510034,School Children,06/03/2024,319654-CLAEARLYSUMMER2024/185,600.00,SOUTH STANLEY JUNIOR SCHOOL.
Children and Young Peoples Services,Head of Childrens Social Care,Transport,230005,Contract Hire,06/03/2024,4242762-17571,"1,332.90",1AB TAXIS LTD.
Neighbourhoods and Climate Change,Environmental Services,Transport,210057,Repair and Maintenance of Vehicles,06/03/2024,4242775-60297300,"1,089.55",AEBI SCHMIDT UK LTD.
Neighbourhoods and Climate Change,Environmental Services,Supplies and Services,304259,Equipment and Materials,06/03/2024,4242778-426846825,509.45,AIR PRODUCTS PLC.
Children and Young Peoples Services,Head of Education and Skills,Transport,230008,Contract Hire,06/03/2024,4242779-N338-FEB24,"1,877.12",AIRPORT TRANSFER DURHAM.
Regeneration Economy and Growth,Corporate Property and Land,Third Party Payments,430100,Rendered by Private Contractors,06/03/2024,4242782-SI30372,"3,250.00",AMBIC LTD.
Children and Young Peoples Services,Head of Childrens Social Care,Supplies and Services,364359,Grants to Voluntary Organisations,06/03/2024,4242789-34126,702.00,APPLE BLOSSOM DAY NURSERY.
Children and Young Peoples Services,Head of Childrens Social Care,Third Party Payments,425041,Rendered by Voluntary Organisations,06/03/2024,4242792-ARC2324-678,"23,710.00",ARC ADOPTION NORTH EAST.
Regeneration Economy and Growth,Corporate Property and Land,Supplies and Services,384199,Miscellaneous Expenses,06/03/2024,4242795-24005432,"4,203.33",ATKINSREALIS UK LTD.
Neighbourhoods and Climate Change,Environmental Services,Transport,210057,Repair and Maintenance of Vehicles,06/03/2024,4242799-35262357,572.60,BELL TRUCK SALES LTD T/A BELL TRUCK & VAN.
Children and Young Peoples Services,Head of Education and Skills,Transport,230007,Contract Hire,06/03/2024,4242801-4517-FEB24,"2,140.80",BENNETTS TAXIS.
Children and Young Peoples Services,Head of Education and Skills,Transport,230006,Contract Hire,06/03/2024,4242802-BRABEAHOUG0224,"1,475.17",BENS TAXIS.
Children and Young Peoples Services,Head of Education and Skills,Transport,230034,Contract Hire,06/03/2024,4242802-MURHASBEL-0024,"1,635.20",BENS TAXIS.
Children and Young Peoples Services,Head of Education and Skills,Transport,230007,Contract Hire,06/03/2024,4242802-SH-PITT-0224,965.76,BENS TAXIS.
Children and Young Peoples Services,Head of Education and Skills,Transport,230008,Contract Hire,06/03/2024,4242807-1/FEB24,"2,400.00",BH TRAVEL.
Children and Young Peoples Services,Head of Education and Skills,Transport,230012,Contract Hire,06/03/2024,4242807-2/FEB24,"2,400.00",BH TRAVEL.
Children and Young Peoples Services,Head of Education and Skills,Transport,230008,Contract Hire,06/03/2024,4242813-BZ00505,911.85,BREZ`S TAXIS.
Children and Young Peoples Services,Head of Education and Skills,Transport,230008,Contract Hire,06/03/2024,4242813-BZ00506,"1,628.55",BREZ`S TAXIS.
Adult and Health Services,Head of Adults,Transport,230005,Contract Hire,06/03/2024,4242813-BZ00507,633.00,BREZ`S TAXIS.
Regeneration Economy and Growth,Culture Sport and Tourism,Supplies and Services,384199,Miscellaneous Expenses,06/03/2024,4242816-20161,"64,750.25",BROWN & ILLINGWORTH LTD.
Children and Young Peoples Services,Head of Education and Skills,Transport,230007,Contract Hire,06/03/2024,4242817-350806,"1,412.16",C & R TAXIS.
Children and Young Peoples Services,Head of Education and Skills,Transport,230008,Contract Hire,06/03/2024,4242817-S00906,"2,669.76",C & R TAXIS.
Children and Young Peoples Services,Head of Education and Skills,Transport,230008,Contract Hire,06/03/2024,4242817-W00206,600.32,C & R TAXIS.
Children and Young Peoples Services,Head of Education and Skills,Transport,230008,Contract Hire,06/03/2024,4242817-W04306,"2,604.00",C & R TAXIS.
Regeneration Economy and Growth,Corporate Property and Land,Third Party Payments,430100,Rendered by Private Contractors,06/03/2024,4242818-12327,974.20,CATHEDRAL LOCK & SAFE SERVICES LTD.
Children and Young Peoples Services,Head of Education and Skills,Transport,230035,Contract Hire,06/03/2024,4242820-099,"1,600.00",CHANNER`S CABS.
Children and Young Peoples Services,Head of Education and Skills,Transport,230006,Contract Hire,06/03/2024,4242820-100,700.00,CHANNER`S CABS.
Adult and Health Services,Commissioning inc Supporting People,Third Party Payments,479102,Purchase of Care,06/03/2024,4242823-INV1971,"3,104.99",CHILD ACTION NORTHWEST.
Children and Young Peoples Services,Head of Education and Skills,Transport,230007,Contract Hire,06/03/2024,4242826-5489-JH FEB24,"2,572.00",CJ`S EXECUTIVE TRAVEL LTD.
Children and Young Peoples Services,Head of Education and Skills,Transport,230008,Contract Hire,06/03/2024,4242826-A085 RA-FEB24,"2,304.00",CJ`S EXECUTIVE TRAVEL LTD.
Children and Young Peoples Services,Head of Education and Skills,Transport,230008,Contract Hire,06/03/2024,4242826-E017-LL/FEB24,"2,400.00",CJ`S EXECUTIVE TRAVEL LTD.
Children and Young Peoples Services,Head of Education and Skills,Transport,230008,Contract Hire,06/03/2024,4242826-E031-LR/FEB24,"4,005.00",CJ`S EXECUTIVE TRAVEL LTD.
Children and Young Peoples Services,Head of Education and Skills,Transport,230008,Contract Hire,06/03/2024,4242826-N047-SH-FEB24,"4,590.78",CJ`S EXECUTIVE TRAVEL LTD.
Neighbourhoods and Climate Change,Environmental Services,Third Party Payments,460305,Contract Payments,06/03/2024,4242830-7802,"4,908.00",CO-WHEELS CAR CLUB CIC.
Regeneration Economy and Growth,REG - Central Costs,Supplies and Services,338099,Services,06/03/2024,4242832-UOTR5222501,"5,698.97",CONVERA UK FINANCIAL LTD.
Children and Young Peoples Services,Head of Education and Skills,Supplies and Services,338094,Services,06/03/2024,4242834-1707,510.00,CORNERSTONES CENTRE FOR THE COMMUNITY.
Adult and Health Services,Public Health CC0450,Third Party Payments,460803,Contract Payments,06/03/2024,4242837-3910022878,"6,448.00",COUNTY DURHAM & DARLINGTON NHS FOUNDATION TRUST (CDDFT).
Adult and Health Services,Public Health CC0450,Third Party Payments,460803,Contract Payments,06/03/2024,4242837-3910022879,"6,448.00",COUNTY DURHAM & DARLINGTON NHS FOUNDATION TRUST (CDDFT).
Adult and Health Services,Public Health CC0450,Third Party Payments,460803,Contract Payments,06/03/2024,4242837-3910022883,"384,362.00",COUNTY DURHAM & DARLINGTON NHS FOUNDATION TRUST (CDDFT).
Children and Young Peoples Services,Head of Education and Skills,Transport,230008,Contract Hire,06/03/2024,4242839-114849,"1,748.30",CROFT BUSINESS SERVICES LTD T/A CROFT TRAVEL.
Children and Young Peoples Services,Head of Education and Skills,Transport,230008,Contract Hire,06/03/2024,4242839-114849/1,"1,611.27",CROFT BUSINESS SERVICES LTD T/A CROFT TRAVEL.
Children and Young Peoples Services,Head of Childrens Social Care,Transport,230005,Contract Hire,06/03/2024,4242839-117155,547.66,CROFT BUSINESS SERVICES LTD T/A CROFT TRAVEL.
Children and Young Peoples Services,Head of Childrens Social Care,Transport,230005,Contract Hire,06/03/2024,4242839-117156,662.20,CROFT BUSINESS SERVICES LTD T/A CROFT TRAVEL.
Children and Young Peoples Services,Head of Childrens Social Care,Transport,230005,Contract Hire,06/03/2024,4242839-117157,927.08,CROFT BUSINESS SERVICES LTD T/A CROFT TRAVEL.
Children and Young Peoples Services,Head of Education and Skills,Transport,230008,Contract Hire,06/03/2024,4242839-117161,"1,547.36",CROFT BUSINESS SERVICES LTD T/A CROFT TRAVEL.
Children and Young Peoples Services,Head of Childrens Social Care,Transport,230005,Contract Hire,06/03/2024,4242839-117174,547.66,CROFT BUSINESS SERVICES LTD T/A CROFT TRAVEL.
Children and Young Peoples Services,Head of Childrens Social Care,Transport,230005,Contract Hire,06/03/2024,4242839-117175,662.20,CROFT BUSINESS SERVICES LTD T/A CROFT TRAVEL.
Children and Young Peoples Services,Head of Childrens Social Care,Transport,230005,Contract Hire,06/03/2024,4242839-117176,927.08,CROFT BUSINESS SERVICES LTD T/A CROFT TRAVEL.
Children and Young Peoples Services,Head of Childrens Social Care,Transport,230005,Contract Hire,06/03/2024,4242839-117186,547.66,CROFT BUSINESS SERVICES LTD T/A CROFT TRAVEL.
Children and Young Peoples Services,Head of Childrens Social Care,Transport,230005,Contract Hire,06/03/2024,4242839-117187,662.20,CROFT BUSINESS SERVICES LTD T/A CROFT TRAVEL.
Children and Young Peoples Services,Head of Childrens Social Care,Transport,230005,Contract Hire,06/03/2024,4242839-117188,927.08,CROFT BUSINESS SERVICES LTD T/A CROFT TRAVEL.
Children and Young Peoples Services,Head of Childrens Social Care,Transport,230005,Contract Hire,06/03/2024,4242839-117220,547.66,CROFT BUSINESS SERVICES LTD T/A CROFT TRAVEL.
Resources BK0010,Legal & Democratic Services,Supplies and Services,338042,Services,06/03/2024,4242840-PGM/AE/68298/001,"1,500.00",CYGNET FAMILY LAW.
Neighbourhoods and Climate Change,Highways,Third Party Payments,430127,Rendered by Private Contractors,06/03/2024,4242841-INV-0316,"2,102.50",D & L HOPPS.
Children and Young Peoples Services,Head of Education and Skills,Transport,230008,Contract Hire,06/03/2024,4242842-1870,"1,280.00",DA TAXIS.
Children and Young Peoples Services,Head of Education and Skills,Transport,230008,Contract Hire,06/03/2024,4242842-1872,"1,280.00",DA TAXIS.
Children and Young Peoples Services,Head of Education and Skills,Transport,230008,Contract Hire,06/03/2024,4242842-1873,"2,080.00",DA TAXIS.
Children and Young Peoples Services,Head of Education and Skills,Transport,230008,Contract Hire,06/03/2024,4242842-1874,"1,804.80",DA TAXIS.
Children and Young Peoples Services,Head of Education and Skills,Transport,230008,Contract Hire,06/03/2024,4242842-1875,"2,463.52",DA TAXIS.
Children and Young Peoples Services,Head of Education and Skills,Transport,230003,Contract Hire,06/03/2024,4242842-625,"1,863.36",DA TAXIS.
Children and Young Peoples Services,Head of Education and Skills,Transport,230008,Contract Hire,06/03/2024,4242843-626,"1,760.00",DA TRAVEL.
Children and Young Peoples Services,Head of Education and Skills,Transport,230008,Contract Hire,06/03/2024,4242843-627,"1,360.00",DA TRAVEL.
Children and Young Peoples Services,Head of Education and Skills,Transport,230034,Contract Hire,06/03/2024,4242845-DJSFEB2401,"1,557.66",DALELINK PRIVATE HIRE.
Children and Young Peoples Services,Head of Education and Skills,Transport,230007,Contract Hire,06/03/2024,4242846-563,"3,225.12",DANNY`S TRAVEL.
Children and Young Peoples Services,Head of Education and Skills,Transport,230007,Contract Hire,06/03/2024,4242846-564,"3,760.00",DANNY`S TRAVEL.
Children and Young Peoples Services,Head of Education and Skills,Transport,230003,Contract Hire,06/03/2024,4242846-567,"1,925.00",DANNY`S TRAVEL.
Children and Young Peoples Services,Head of Education and Skills,Transport,230003,Contract Hire,06/03/2024,4242846-568,"2,625.00",DANNY`S TRAVEL.
Children and Young Peoples Services,Head of Education and Skills,Transport,230008,Contract Hire,06/03/2024,4242847-3899,"1,519.36",DAVES MINIBUSES.
Children and Young Peoples Services,Head of Education and Skills,Transport,230008,Contract Hire,06/03/2024,4242847-3900,"1,920.00",DAVES MINIBUSES.
Children and Young Peoples Services,Head of Education and Skills,Transport,230008,Contract Hire,06/03/2024,4242847-HARELAWS,"1,971.20",DAVES MINIBUSES.
Children and Young Peoples Services,Head of Education and Skills,Transport,230008,Contract Hire,06/03/2024,4242847-VILLAREA,"1,744.00",DAVES MINIBUSES.
Children and Young Peoples Services,Head of Education and Skills,Transport,230008,Contract Hire,06/03/2024,4242847-WESTPELT,"2,095.68",DAVES MINIBUSES.
Neighbourhoods and Climate Change,Environmental Services,Supplies and Services,304221,Equipment and Materials,06/03/2024,4242848-190423,"4,380.00",DAVID OGILVIE ENGINEERING LTD.
Children and Young Peoples Services,Head of Education and Skills,Transport,230008,Contract Hire,06/03/2024,4242850-0224-001,"2,400.00",DCM TAXIS.
Resources BK0010,Legal & Democratic Services,Supplies and Services,338042,Services,06/03/2024,4242856-396439/INVRP11,"1,750.00",DERE STREET BARRISTERS.
Children and Young Peoples Services,Head of Childrens Social Care,Transport,230005,Contract Hire,06/03/2024,4242858-DH2405A,526.00,DH2 CABS.
Children and Young Peoples Services,Head of Childrens Social Care,Transport,230005,Contract Hire,06/03/2024,4242858-DH2405B,560.00,DH2 CABS.
Children and Young Peoples Services,Head of Childrens Social Care,Transport,230005,Contract Hire,06/03/2024,4242858-DH2405G,500.00,DH2 CABS.
Children and Young Peoples Services,Head of Childrens Social Care,Transport,230005,Contract Hire,06/03/2024,4242858-DH2405H,660.00,DH2 CABS.
Children and Young Peoples Services,Head of Childrens Social Care,Transport,230005,Contract Hire,06/03/2024,4242858-DH2405O,560.00,DH2 CABS.
Children and Young Peoples Services,Head of Childrens Social Care,Transport,230005,Contract Hire,06/03/2024,4242858-DH2405Q,618.00,DH2 CABS.
Children and Young Peoples Services,Head of Childrens Social Care,Transport,230005,Contract Hire,06/03/2024,4242858-DH2405R,"1,260.00",DH2 CABS.
Children and Young Peoples Services,Head of Childrens Social Care,Transport,230005,Contract Hire,06/03/2024,4242858-DH2405ZG,700.00,DH2 CABS.
Children and Young Peoples Services,Head of Childrens Social Care,Transport,230005,Contract Hire,06/03/2024,4242858-DH2405ZO,600.00,DH2 CABS.
Children and Young Peoples Services,Head of Childrens Social Care,Transport,230005,Contract Hire,06/03/2024,4242858-DH2407B,720.00,DH2 CABS.
Children and Young Peoples Services,Head of Childrens Social Care,Transport,230005,Contract Hire,06/03/2024,4242858-DH2407F,500.00,DH2 CABS.
Children and Young Peoples Services,Head of Childrens Social Care,Transport,230005,Contract Hire,06/03/2024,4242858-DH2407G,660.00,DH2 CABS.
Children and Young Peoples Services,Head of Childrens Social Care,Transport,230005,Contract Hire,06/03/2024,4242858-DH2407H,"1,144.00",DH2 CABS.
Children and Young Peoples Services,Head of Childrens Social Care,Transport,230005,Contract Hire,06/03/2024,4242858-DH2407L,656.00,DH2 CABS.
Children and Young Peoples Services,Head of Childrens Social Care,Transport,230005,Contract Hire,06/03/2024,4242858-DH2407N,770.00,DH2 CABS.
Children and Young Peoples Services,Head of Childrens Social Care,Transport,230005,Contract Hire,06/03/2024,4242858-DH2407O,540.00,DH2 CABS.
Children and Young Peoples Services,Head of Childrens Social Care,Transport,230005,Contract Hire,06/03/2024,4242858-DH2407V,530.00,DH2 CABS.
Children and Young Peoples Services,Head of Childrens Social Care,Transport,230005,Contract Hire,06/03/2024,4242858-DH2407ZE,560.00,DH2 CABS.
Children and Young Peoples Services,Head of Education and Skills,Transfer Payments,510028,School Children,06/03/2024,4242860-RES-03-2024-061,"8,000.00",DIPTON OUT OF SCHOOL HOURS CLUB.
Neighbourhoods and Climate Change,Environmental Services,Transport,230005,Contract Hire,06/03/2024,4242879-13002074924,"1,690.37",ENTERPRISE FLEX-E-RENT T/A BURNT TREE GROUP LTD.
Neighbourhoods and Climate Change,Partnerships & Community Engagement Div.,Supplies and Services,308011,Furniture,06/03/2024,4242890-17778,"1,438.34",FRANKS THE FLOORING STORE.
Neighbourhoods and Climate Change,Partnerships & Community Engagement Div.,Supplies and Services,308011,Furniture,06/03/2024,4242890-17780,"1,200.00",FRANKS THE FLOORING STORE.
Children and Young Peoples Services,Head of Education and Skills,Transport,230034,Contract Hire,06/03/2024,4242892-1001FEB,"1,600.00",FREEDOM PRIVATE HIRE.
Children and Young Peoples Services,Head of Education and Skills,Transport,230007,Contract Hire,06/03/2024,4242892-4600FEB,"1,360.00",FREEDOM PRIVATE HIRE.
Children and Young Peoples Services,Head of Childrens Social Care,Supplies and Services,384500,Miscellaneous Expenses,06/03/2024,4242895-3Q6N,900.00,FSK THERAPY (MINDS MATTER).
Regeneration Economy and Growth,Corporate Property and Land,Supplies and Services,304252,Equipment and Materials,06/03/2024,4242899-007144443,548.00,GAP GROUP LTD.
Neighbourhoods and Climate Change,Highways,Supplies and Services,304252,Equipment and Materials,06/03/2024,4242899-007144652,"3,418.92",GAP GROUP LTD.
Neighbourhoods and Climate Change,Highways,Supplies and Services,304252,Equipment and Materials,06/03/2024,4242899-414771509,"1,901.12",GAP GROUP LTD.
Children and Young Peoples Services,Head of Education and Skills,Transport,230034,Contract Hire,06/03/2024,4242901-007,"1,680.00",GARY JACKSON PRIVATE HIRE.
Neighbourhoods and Climate Change,Highways,Stock A926,926900,Stock in hand-Inventory system,06/03/2024,4242910-06/258828/2024,"3,084.64",GREENHAM TRADING LTD.
Dedicated Schools Grant BG0015,DSG High Needs Block,Third Party Payments,425005,Rendered by Voluntary Organisations,06/03/2024,4242911-RES-03-2024-053,"9,187.50",GUST INDEPENDENT SCHOOL.
Neighbourhoods and Climate Change,Highways,Third Party Payments,430100,Rendered by Private Contractors,06/03/2024,4242917-3610,"8,436.00",HIGHWAY CONSTRUCTION SERVICES LTD.
Neighbourhoods and Climate Change,Highways,Third Party Payments,430100,Rendered by Private Contractors,06/03/2024,4242917-3611,"9,535.50",HIGHWAY CONSTRUCTION SERVICES LTD.
Adult and Health Services,Public Health CC0450,Third Party Payments,460803,Contract Payments,06/03/2024,4242921-SI-HK-002050,864.00,HUMANKIND CHARITY.
Adult and Health Services,Public Health CC0450,Third Party Payments,460803,Contract Payments,06/03/2024,4242921-SI-HK-002054,"15,660.49",HUMANKIND CHARITY.
Neighbourhoods and Climate Change,Highways,Stock A926,926900,Stock in hand-Inventory system,06/03/2024,4242925-925777,"3,133.20",INSTARMAC GROUP PLC.
Children and Young Peoples Services,Head of Education and Skills,Transport,230007,Contract Hire,06/03/2024,4242928-6631,960.00,J YOUNG T/A VIP TAXIS.
Children and Young Peoples Services,Head of Education and Skills,Transport,230007,Contract Hire,06/03/2024,4242928-6632,"1,162.72",J YOUNG T/A VIP TAXIS.
Children and Young Peoples Services,Head of Education and Skills,Transport,230007,Contract Hire,06/03/2024,4242928-6633,"1,344.00",J YOUNG T/A VIP TAXIS.
Children and Young Peoples Services,Head of Education and Skills,Transport,230006,Contract Hire,06/03/2024,4242928-6634,"1,140.32",J YOUNG T/A VIP TAXIS.
Children and Young Peoples Services,Head of Education and Skills,Transport,230006,Contract Hire,06/03/2024,4242928-6636,688.00,J YOUNG T/A VIP TAXIS.
Regeneration Economy and Growth,Culture Sport and Tourism,Supplies and Services,324117,Provisions E324,06/03/2024,4242937-INV23411704,575.36,JIMMY PRODUCTS UK LTD.
Regeneration Economy and Growth,Corporate Property and Land,Supplies and Services,304221,Equipment and Materials,06/03/2024,4242942-0113/00056707,"2,698.00",JT DOVE LTD.
Regeneration Economy and Growth,Corporate Property and Land,Supplies and Services,304221,Equipment and Materials,06/03/2024,4242942-0213/01151955,"1,075.12",JT DOVE LTD.
Regeneration Economy and Growth,Corporate Property and Land,Supplies and Services,304221,Equipment and Materials,06/03/2024,4242942-0303/01154262,965.00,JT DOVE LTD.
Neighbourhoods and Climate Change,Highways,Supplies and Services,304358,Equipment and Materials,06/03/2024,4242952-4837,795.50,KEVIN SNOWDON GROUNDWORKS LTD.
Neighbourhoods and Climate Change,Highways,Supplies and Services,304358,Equipment and Materials,06/03/2024,4242952-4838,795.50,KEVIN SNOWDON GROUNDWORKS LTD.
Neighbourhoods and Climate Change,Highways,Supplies and Services,304358,Equipment and Materials,06/03/2024,4242952-4839,925.00,KEVIN SNOWDON GROUNDWORKS LTD.
Neighbourhoods and Climate Change,Highways,Supplies and Services,304358,Equipment and Materials,06/03/2024,4242952-4840,925.00,KEVIN SNOWDON GROUNDWORKS LTD.
Neighbourhoods and Climate Change,Highways,Supplies and Services,304358,Equipment and Materials,06/03/2024,4242952-4841,943.50,KEVIN SNOWDON GROUNDWORKS LTD.
Neighbourhoods and Climate Change,Highways,Supplies and Services,304358,Equipment and Materials,06/03/2024,4242952-4842,"1,399.50",KEVIN SNOWDON GROUNDWORKS LTD.
Neighbourhoods and Climate Change,Highways,Supplies and Services,304358,Equipment and Materials,06/03/2024,4242952-4843,852.00,KEVIN SNOWDON GROUNDWORKS LTD.
Neighbourhoods and Climate Change,Highways,Supplies and Services,304358,Equipment and Materials,06/03/2024,4242952-4844,943.50,KEVIN SNOWDON GROUNDWORKS LTD.
Children and Young Peoples Services,Head of Education and Skills,Transport,230008,Contract Hire,06/03/2024,4242953-JANUARY2024-N067,870.00,KINGSWAY CABS LTD.
Children and Young Peoples Services,Head of Education and Skills,Transport,230008,Contract Hire,06/03/2024,4242953-JANUARY24-N079,872.00,KINGSWAY CABS LTD.
Children and Young Peoples Services,Head of Education and Skills,Transport,230010,Contract Hire,06/03/2024,4242955-BL008-FEB24,"1,910.57",LAUREN`S TAXIS.
Children and Young Peoples Services,Head of Childrens Social Care,Supplies and Services,338044,Services,06/03/2024,4242960-315172,866.60,LEXTOX.
Children and Young Peoples Services,Head of Education and Skills,Transport,230006,Contract Hire,06/03/2024,4242962-06-FEB24,"3,729.00",LIMASEC LTD T/A LIMA TRANSPORT.
Neighbourhoods and Climate Change,Highways,Supplies and Services,304221,Equipment and Materials,06/03/2024,4242963-CINV093007,850.88,LIMELIGHT SIGNS LTD.
Children and Young Peoples Services,Head of Education and Skills,Transport,230007,Contract Hire,06/03/2024,4242964-5290,"2,164.48",LINCAB TAXIS.
Children and Young Peoples Services,Head of Education and Skills,Transport,230007,Contract Hire,06/03/2024,4242964-5291,"2,980.80",LINCAB TAXIS.
Children and Young Peoples Services,Head of Education and Skills,Transport,230008,Contract Hire,06/03/2024,4242964-5292,"2,145.92",LINCAB TAXIS.
Children and Young Peoples Services,Head of Education and Skills,Transport,230008,Contract Hire,06/03/2024,4242964-5293,"3,340.35",LINCAB TAXIS.
Children and Young Peoples Services,Head of Education and Skills,Transport,230007,Contract Hire,06/03/2024,4242964-5294,"2,384.00",LINCAB TAXIS.
Regeneration Economy and Growth,Culture Sport and Tourism,Supplies and Services,384237,Miscellaneous Expenses,06/03/2024,4242966-3155459,"1,875.00",LITEWHITE LTD T/A BLUMILK.
Neighbourhoods and Climate Change,Highways,Supplies and Services,304221,Equipment and Materials,06/03/2024,4242981-Z001808392,"3,263.14",MARSHALLS MONO LTD.
Neighbourhoods and Climate Change,Environmental Services,Transport,230005,Contract Hire,06/03/2024,4242994-434568,966.00,MINSTER SELF DRIVE.
Regeneration Economy and Growth,Corporate Property and Land,Third Party Payments,430100,Rendered by Private Contractors,06/03/2024,4243026-877667,"1,570.00",NATIONWIDE CHIMNEY COMPONENTS LTD.
Regeneration Economy and Growth,Corporate Property and Land,Third Party Payments,430100,Rendered by Private Contractors,06/03/2024,4243027-48455,"19,324.00",NE & C WINDOWS & DOORS LTD.
Neighbourhoods and Climate Change,Environmental Services,Transport,230005,Contract Hire,06/03/2024,4243039-SL08043116INV,586.88,NORTHGATE VEHICLE HIRE LTD.
Neighbourhoods and Climate Change,Environmental Services,Transport,230005,Contract Hire,06/03/2024,4243039-SL08044709INV,"1,052.24",NORTHGATE VEHICLE HIRE LTD.
Neighbourhoods and Climate Change,Highways,Third Party Payments,430100,Rendered by Private Contractors,06/03/2024,4243040-277480,789.82,NORTHUMBERLAND COUNTY COUNCIL.
Regeneration Economy and Growth,Planning & Housing,Premises,135005,Water Services,06/03/2024,4243041-91562270X,867.25,NORTHUMBRIAN WATER LTD.
Neighbourhoods and Climate Change,Highways,Third Party Payments,430100,Rendered by Private Contractors,06/03/2024,4243043-27537,"4,950.00",OLIVERS TREE SERVICES LTD.
Neighbourhoods and Climate Change,Environmental Services,Supplies and Services,304999,Equipment and Materials,06/03/2024,4243044-OASI0092884,"1,306.00",ORIGIN AMENITY SOLUTIONS LTD.
Regeneration Economy and Growth,Corporate Property and Land,Supplies and Services,304221,Equipment and Materials,06/03/2024,4243050-DT227096,680.00,PARK ELECTRICAL DISTRIBUTORS LTD.
Neighbourhoods and Climate Change,Highways,Stock A926,926900,Stock in hand-Inventory system,06/03/2024,4243050-XL313637,"4,374.00",PARK ELECTRICAL DISTRIBUTORS LTD.
Neighbourhoods and Climate Change,Highways,Stock A926,926900,Stock in hand-Inventory system,06/03/2024,4243050-XL313639,525.00,PARK ELECTRICAL DISTRIBUTORS LTD.
Neighbourhoods and Climate Change,Highways,Stock A926,926900,Stock in hand-Inventory system,06/03/2024,4243050-XL313640,540.00,PARK ELECTRICAL DISTRIBUTORS LTD.
Regeneration Economy and Growth,Transport and Contract Services,Supplies and Services,338066,Services,06/03/2024,4243052-15163,"1,448.50",PATROL (PARKING & TRAFFIC REGULATIONS OUTSIDE LONDON).
Children and Young Peoples Services,Head of Education and Skills,Transport,230034,Contract Hire,06/03/2024,4243061-5294-FEB24,"1,527.04",PETER`S TAXIS.
Children and Young Peoples Services,Head of Education and Skills,Transport,230009,Contract Hire,06/03/2024,4243061-7345-FEB24,"1,819.68",PETER`S TAXIS.
Children and Young Peoples Services,Head of Education and Skills,Transport,230006,Contract Hire,06/03/2024,4243061-F116-0224,"1,219.80",PETER`S TAXIS.
Children and Young Peoples Services,Head of Education and Skills,Supplies and Services,384199,Miscellaneous Expenses,06/03/2024,4243062-23/24-06,742.50,PGI SMITH SOLUTIONS LTD.
Regeneration Economy and Growth,Culture Sport and Tourism,Supplies and Services,384199,Miscellaneous Expenses,06/03/2024,4243065-INV11333,833.33,PICTUREHOUSE CINEMAS LTD.
Children and Young Peoples Services,Head of Education and Skills,Transport,230007,Contract Hire,06/03/2024,4243072-SI-3276,840.00,PTL TAXIS LTD.
Children and Young Peoples Services,Head of Education and Skills,Transport,230008,Contract Hire,06/03/2024,4243087-002-FEB24,"3,082.44",RONS TAXI (CHESTER LE ST).
Adult and Health Services,Head of Adults,Transport,230005,Contract Hire,06/03/2024,4243088-1973,"1,254.20",RON`S TAXIS (FISHBURN).
Children and Young Peoples Services,Head of Education and Skills,Transport,230006,Contract Hire,06/03/2024,4243088-1974,"1,530.00",RON`S TAXIS (FISHBURN).
Children and Young Peoples Services,Head of Education and Skills,Transport,230007,Contract Hire,06/03/2024,4243088-1975,"1,023.84",RON`S TAXIS (FISHBURN).
Children and Young Peoples Services,Head of Education and Skills,Transport,230008,Contract Hire,06/03/2024,4243088-1976,"2,240.00",RON`S TAXIS (FISHBURN).
Children and Young Peoples Services,Head of Education and Skills,Transport,230007,Contract Hire,06/03/2024,4243091-4079-06,"1,920.00",S & S TRAVEL LTD.
Children and Young Peoples Services,Head of Education and Skills,Transport,230008,Contract Hire,06/03/2024,4243091-S017-006,"2,633.92",S & S TRAVEL LTD.
Children and Young Peoples Services,Head of Education and Skills,Transport,230008,Contract Hire,06/03/2024,4243091-S052-06,"2,240.00",S & S TRAVEL LTD.
Children and Young Peoples Services,Head of Education and Skills,Transport,230008,Contract Hire,06/03/2024,4243091-S080-06,"1,320.00",S & S TRAVEL LTD.
Children and Young Peoples Services,Head of Education and Skills,Transport,230006,Contract Hire,06/03/2024,4243091-W016-06,"3,048.00",S & S TRAVEL LTD.
Children and Young Peoples Services,Head of Education and Skills,Transport,230008,Contract Hire,06/03/2024,4243091-W032-006,"3,338.56",S & S TRAVEL LTD.
Children and Young Peoples Services,Head of Education and Skills,Transport,230008,Contract Hire,06/03/2024,4243091-W034-06,"3,200.00",S & S TRAVEL LTD.
Children and Young Peoples Services,Head of Education and Skills,Transport,230008,Contract Hire,06/03/2024,4243091-W090-05,"2,832.00",S & S TRAVEL LTD.
Regeneration Economy and Growth,Economic Development,Fees,901004,Capital - Detailed Design,06/03/2024,4243101-RES-03-2024-050,"15,000.00",SHOTTON PARISH COUNCIL.
Children and Young Peoples Services,Head of Education and Skills,Transport,230007,Contract Hire,06/03/2024,4243102-240207,"2,004.96",SHOTTON PRIVATE HIRE.
Children and Young Peoples Services,Head of Education and Skills,Transport,230008,Contract Hire,06/03/2024,4243102-24201,"1,260.00",SHOTTON PRIVATE HIRE.
Children and Young Peoples Services,Head of Education and Skills,Transport,230007,Contract Hire,06/03/2024,4243103-3800,"1,164.00",SIMONS TAXIS.
Adult and Health Services,Commissioning inc Supporting People,Supplies and Services,338365,Services,06/03/2024,4243108-HINV0342,"3,498.60",SPEARMARK HEALTH LTD.
Regeneration Economy and Growth,Corporate Property and Land,Third Party Payments,430100,Rendered by Private Contractors,06/03/2024,4243110-9024,"1,845.00",ST ASTIER LTD.
Children and Young Peoples Services,Head of Education and Skills,Transport,230010,Contract Hire,06/03/2024,4243113-08059,"1,360.58",STANLEY TRAVEL (NORTH EAST) LTD.
Children and Young Peoples Services,Head of Education and Skills,Transport,230008,Contract Hire,06/03/2024,4243114-0052,"2,190.00",STARGATE TAXIS.
Children and Young Peoples Services,Head of Education and Skills,Transport,230006,Contract Hire,06/03/2024,4243114-0053,"2,640.00",STARGATE TAXIS.
Children and Young Peoples Services,Head of Education and Skills,Transport,230008,Contract Hire,06/03/2024,4243114-0054,"1,728.00",STARGATE TAXIS.
Children and Young Peoples Services,Head of Childrens Social Care,Transport,230005,Contract Hire,06/03/2024,4243117-FEB57/STL24,680.00,STL CABS LTD.
Neighbourhoods and Climate Change,Highways,Supplies and Services,304221,Equipment and Materials,06/03/2024,4243118-46638,"1,781.38",STONEGRAVE AGGREGATES LTD.
Regeneration Economy and Growth,Corporate Property and Land,Third Party Payments,430100,Rendered by Private Contractors,06/03/2024,4243119-0001129697,800.00,STROMA BUILT ENVIRONMENT LTD.
Children and Young Peoples Services,Head of Childrens Social Care,Transport,240045,Car allowances E240,06/03/2024,4243121-12556,"4,891.86",SUPPORTIVE SRC LTD.
Children and Young Peoples Services,Head of Childrens Social Care,Transport,240045,Car allowances E240,06/03/2024,4243121-12567,"8,190.84",SUPPORTIVE SRC LTD.
Regeneration Economy and Growth,Corporate Property and Land,Supplies and Services,304221,Equipment and Materials,06/03/2024,4243122-1146652,717.58,T CROSSLING & CO LTD.
Children and Young Peoples Services,Head of Education and Skills,Transport,230008,Contract Hire,06/03/2024,4243127-A067-0224,"2,384.00",TERRY'S TAXIS (SEAHAM).
Adult and Health Services,Commissioning inc Supporting People,Third Party Payments,470103,Purchase of Care,06/03/2024,4243129-M41031,"35,136.00",THE HUMAN SUPPORT GROUP LTD.
Neighbourhoods and Climate Change,Highways,Stock A926,926900,Stock in hand-Inventory system,06/03/2024,4243134-NSIN00108836,"1,345.88",THOMAS OWEN & SONS (NEWCASTLE) LTD.
Adult and Health Services,Commissioning inc Supporting People,Third Party Payments,479102,Purchase of Care,06/03/2024,4243136-95170,530.00,THRIIVER LTD.
Children and Young Peoples Services,Head of Education and Skills,Transport,230006,Contract Hire,06/03/2024,4243140-1/FEB24,"3,200.00",TONYS TAXIS (J BIRCH).
Adult and Health Services,Head of Adults,Transport,230005,Contract Hire,06/03/2024,4243140-2/FEB24,"2,668.47",TONYS TAXIS (J BIRCH).
Children and Young Peoples Services,Head of Education and Skills,Transport,230008,Contract Hire,06/03/2024,4243143-A205FEB24,"2,402.10",TRAVEL 6.
Resources BK0010,Legal & Democratic Services,Supplies and Services,338042,Services,06/03/2024,4243144-306177/INVKW776,"1,030.00",TRINITY CHAMBERS.
Resources BK0010,Legal & Democratic Services,Supplies and Services,338042,Services,06/03/2024,4243144-312605/INVRSH190,"1,930.00",TRINITY CHAMBERS.
Regeneration Economy and Growth,Planning & Housing,Supplies and Services,304245,Equipment and Materials,06/03/2024,4243145-CD970049236,"1,200.00",TUNSTALL HEALTHCARE (UK) LTD.
Neighbourhoods and Climate Change,Highways,Supplies and Services,304221,Equipment and Materials,06/03/2024,4243146-256591,"1,059.30",TYNEDALE ROADSTONE LTD.
Neighbourhoods and Climate Change,Highways,Supplies and Services,304221,Equipment and Materials,06/03/2024,4243146-256592,"1,592.12",TYNEDALE ROADSTONE LTD.
Neighbourhoods and Climate Change,Highways,Supplies and Services,304221,Equipment and Materials,06/03/2024,4243146-256593,"1,135.25",TYNEDALE ROADSTONE LTD.
Neighbourhoods and Climate Change,Highways,Supplies and Services,304221,Equipment and Materials,06/03/2024,4243146-256594,869.47,TYNEDALE ROADSTONE LTD.
Children and Young Peoples Services,Head of Education and Skills,Transport,230007,Contract Hire,06/03/2024,4243155-7855,"2,761.28",WEARDALE PRIVATE HIRE.
Children and Young Peoples Services,Head of Education and Skills,Transport,230007,Contract Hire,06/03/2024,4243155-7856,"3,608.00",WEARDALE PRIVATE HIRE.
Children and Young Peoples Services,Head of Education and Skills,Transport,230008,Contract Hire,06/03/2024,4243155-7861,"4,093.84",WEARDALE PRIVATE HIRE.
Children and Young Peoples Services,Head of Education and Skills,Transport,230008,Contract Hire,06/03/2024,4243155-7862,"2,688.00",WEARDALE PRIVATE HIRE.
Children and Young Peoples Services,Head of Childrens Social Care,Supplies and Services,338044,Services,07/03/2024,4243228-23063,"1,586.43",REDACTED - PAYMENT TO INDIVIDUAL
Neighbourhoods and Climate Change,Environmental Services,Third Party Payments,430100,Rendered by Private Contractors,07/03/2024,4243267-4100855830,"1,700.00",REDACTED - PAYMENT TO INDIVIDUAL
Neighbourhoods and Climate Change,Environmental Services,Third Party Payments,430100,Rendered by Private Contractors,07/03/2024,4243267-4100878922,"4,950.00",REDACTED - PAYMENT TO INDIVIDUAL
Neighbourhoods and Climate Change,Environmental Services,Supplies and Services,338099,Services,07/03/2024,4243327-SI-61,"45,474.60",REDACTED - PAYMENT TO INDIVIDUAL
Children and Young Peoples Services,Head of Education and Skills,Supplies and Services,338027,Services,07/03/2024,4243329-HN00267,"2,062.50",REDACTED - PAYMENT TO INDIVIDUAL
Neighbourhoods and Climate Change,Partnerships & Community Engagement Div.,Cap Exp on Grants & Other Financial Assistance (REFCUS),918004,Contributions to other bodies 918004,07/03/2024,4243194-VOUCHER21TVF-SPEN004,"16,896.00",BYERS GREEN VILLAGE HALL COMMUNITY ASSOCIATION.
Regeneration Economy and Growth,Corporate Property and Land,Supplies and Services,342055,Computers and Communications,07/03/2024,4243338-41490,"1,095.00",NAPIT SERVICES LTD.
Neighbourhoods and Climate Change,Partnerships & Community Engagement Div.,Supplies and Services,384086,Miscellaneous Expenses,07/03/2024,4243413-VOUCHERCHAJ01-23,999.00,TANFIELD LEA COUNTRYSIDE GROUP.
Resources BK0010,Legal & Democratic Services,Supplies and Services,340001,Postages E340,07/03/2024,4243161-PSI0243018,"3,946.99",ADARE SEC LTD.
Neighbourhoods and Climate Change,Environmental Services,Supplies and Services,304259,Equipment and Materials,07/03/2024,4243164-CD971664991,"1,959.80",AGROVISTA UK LTD FORMERLY SHERRIFF AMENITY.
Regeneration Economy and Growth,Culture Sport and Tourism,Construction work A908,908105,Construction work,07/03/2024,4243168-12555,"33,584.50",ALLIANCE LEISURE SERVICES LTD.
Regeneration Economy and Growth,Culture Sport and Tourism,Construction work A908,908105,Construction work,07/03/2024,4243168-12556,"71,767.75",ALLIANCE LEISURE SERVICES LTD.
Neighbourhoods and Climate Change,Environmental Services,Transport,210057,Repair and Maintenance of Vehicles,07/03/2024,4243182-15240632,930.80,BELL TRUCK SALES LTD T/A BELL TRUCK & VAN.
Neighbourhoods and Climate Change,Environmental Services,Third Party Payments,430100,Rendered by Private Contractors,07/03/2024,4243182-16196903,"3,359.11",BELL TRUCK SALES LTD T/A BELL TRUCK & VAN.
Neighbourhoods and Climate Change,Environmental Services,Transport,210057,Repair and Maintenance of Vehicles,07/03/2024,4243182-35262136,712.17,BELL TRUCK SALES LTD T/A BELL TRUCK & VAN.
Neighbourhoods and Climate Change,Environmental Services,Transport,210057,Repair and Maintenance of Vehicles,07/03/2024,4243183-050714-WI,671.35,BENELLA AUTO ELECTRICAL SERVICES LTD T/A BENELLA COMMERCIAL.
Neighbourhoods and Climate Change,Environmental Services,Transport,210057,Repair and Maintenance of Vehicles,07/03/2024,4243183-050743-WI,765.34,BENELLA AUTO ELECTRICAL SERVICES LTD T/A BENELLA COMMERCIAL.
Regeneration Economy and Growth,Corporate Property and Land,Supplies and Services,304221,Equipment and Materials,07/03/2024,4243184-3844579,"1,152.47",BES LTD.
Regeneration Economy and Growth,Transport and Contract Services,Construction work A908,908105,Construction work,07/03/2024,4243193-30772,"5,021.08",BUS SHELTERS LTD.
Regeneration Economy and Growth,Transport and Contract Services,Construction work A908,908105,Construction work,07/03/2024,4243193-30773,"4,379.20",BUS SHELTERS LTD.
Regeneration Economy and Growth,Transport and Contract Services,Construction work A908,908105,Construction work,07/03/2024,4243193-NO30494,"5,564.05",BUS SHELTERS LTD.
Neighbourhoods and Climate Change,Partnerships & Community Engagement Div.,Cap Exp on Grants & Other Financial Assistance (REFCUS),918004,Contributions to other bodies 918004,07/03/2024,4243196-VOUCHER23NB-EDUR055,"1,655.00",CALM IN EAST DURHAM CIC.
Resources BK0010,Transactional & Customer Services,Supplies and Services,338066,Services,07/03/2024,4243205-C/BN296434,"2,067.70",CIVICA UK LTD.
Resources BK0010,Transactional & Customer Services,Supplies and Services,304040,Equipment and Materials,07/03/2024,4243205-C/RB296539,"39,093.00",CIVICA UK LTD.
Resources BK0010,Pensions CK0700,Supplies and Services,342051,Computers and Communications,07/03/2024,4243206-C/PE296469,"6,682.50",CIVICA UK LTD.
Neighbourhoods and Climate Change,Environmental Services,Transport,230005,Contract Hire,07/03/2024,4243219-O601345,552.14,DAWSONGROUP ENVIRONMENTAL MUNICIAPL CIVIL LTD (EMC).
Neighbourhoods and Climate Change,Environmental Services,Transport,230005,Contract Hire,07/03/2024,4243220-679857,870.00,DAWSONGROUP VANS LTD.
Neighbourhoods and Climate Change,Environmental Services,Transport,230005,Contract Hire,07/03/2024,4243220-679858,516.20,DAWSONGROUP VANS LTD.
Neighbourhoods and Climate Change,Environmental Services,Transport,230005,Contract Hire,07/03/2024,4243220-679863,870.00,DAWSONGROUP VANS LTD.
Neighbourhoods and Climate Change,Environmental Services,Transport,230005,Contract Hire,07/03/2024,4243220-679864,"1,421.00",DAWSONGROUP VANS LTD.
Neighbourhoods and Climate Change,Environmental Services,Stock A926,926004,Stock,07/03/2024,4243222-96454196,"1,303.64",DENNIS EAGLE LTD T/A TERBERG MATEC (UK) LTD.
Resources BK0010,Legal & Democratic Services,Supplies and Services,338042,Services,07/03/2024,4243223-372478/INVREB244,"2,600.00",DERE STREET BARRISTERS.
Resources BK0010,Legal & Democratic Services,Supplies and Services,338042,Services,07/03/2024,4243223-390662/INVEMC667,875.00,DERE STREET BARRISTERS.
Regeneration Economy and Growth,Corporate Property and Land,Supplies and Services,384199,Miscellaneous Expenses,07/03/2024,4243224-64030299,"3,238.00",DESCO (DESIGN & CONSULTANCY) LTD.
Regeneration Economy and Growth,Corporate Property and Land,Supplies and Services,384199,Miscellaneous Expenses,07/03/2024,4243224-64030300,"5,235.00",DESCO (DESIGN & CONSULTANCY) LTD.
Adult and Health Services,Commissioning inc Supporting People,Third Party Payments,479111,Purchase of Care,07/03/2024,4243229-611,"263,250.00",DURHAM COUNTY CARERS SUPPORT.
Regeneration Economy and Growth,Corporate Property and Land,Supplies and Services,304221,Equipment and Materials,07/03/2024,4243233-059-331245,"1,908.84",EDMUNDSON ELECTRICAL LTD.
Regeneration Economy and Growth,Corporate Property and Land,Supplies and Services,304221,Equipment and Materials,07/03/2024,4243233-059-331258,"3,547.11",EDMUNDSON ELECTRICAL LTD.
Regeneration Economy and Growth,Corporate Property and Land,Supplies and Services,304221,Equipment and Materials,07/03/2024,4243233-059-332186,"1,171.36",EDMUNDSON ELECTRICAL LTD.
Regeneration Economy and Growth,Corporate Property and Land,Supplies and Services,304221,Equipment and Materials,07/03/2024,4243233-059-332187,547.54,EDMUNDSON ELECTRICAL LTD.
Regeneration Economy and Growth,Corporate Property and Land,Supplies and Services,304221,Equipment and Materials,07/03/2024,4243233-059-332197,"2,122.24",EDMUNDSON ELECTRICAL LTD.
Regeneration Economy and Growth,Corporate Property and Land,Third Party Payments,430100,Rendered by Private Contractors,07/03/2024,4243239-12427-9317,"1,175.55",EXPERVENT LTD T/A EXPERVENT AIR MOVEMENT SOLUTIONS.
Regeneration Economy and Growth,Business Durham,Supplies and Services,338066,Services,07/03/2024,4243243-DCC-2,"1,750.00",FAR NORTH LTD.
Neighbourhoods and Climate Change,Environmental Services,Third Party Payments,430100,Rendered by Private Contractors,07/03/2024,4243248-280096,803.92,FORD & SLATER LTD.
Neighbourhoods and Climate Change,Partnerships & Community Engagement Div.,Supplies and Services,308011,Furniture,07/03/2024,4243251-17832,"1,412.50",FRANKS THE FLOORING STORE.
Neighbourhoods and Climate Change,Environmental Services,Stock A926,926004,Stock,07/03/2024,4243258-IN273365,"2,028.05",GB LUBRICANTS LTD.
Regeneration Economy and Growth,Culture Sport and Tourism,Premises,145023,Cleaning and Domestic Supplies,07/03/2024,4243266-06/259403,611.15,GREENHAM TRADING LTD.
Neighbourhoods and Climate Change,Highways,Stock A926,926900,Stock in hand-Inventory system,07/03/2024,4243266-06/259625/2024,"2,280.64",GREENHAM TRADING LTD.
Regeneration Economy and Growth,Culture Sport and Tourism,Premises,145023,Cleaning and Domestic Supplies,07/03/2024,4243266-06/259870,636.97,GREENHAM TRADING LTD.
Regeneration Economy and Growth,Culture Sport and Tourism,Supplies and Services,304259,Equipment and Materials,07/03/2024,4243268-INV-5750,"1,350.00",GYM TECH NORTH EAST.
Neighbourhoods and Climate Change,Highways,Supplies and Services,304221,Equipment and Materials,07/03/2024,4243274-INI23177,597.00,HILL & SMITH LTD.
Neighbourhoods and Climate Change,Environmental Services,Third Party Payments,430113,Rendered by Private Contractors,07/03/2024,4243282-W241203,"486,663.14",HW MARTIN HOLDINGS LTD.
Neighbourhoods and Climate Change,Highways,Supplies and Services,304358,Equipment and Materials,07/03/2024,4243286-5307136,"1,271.00",JA GILSON (AGRICULTURAL CONTRACTORS) LTD.
Neighbourhoods and Climate Change,Highways,Supplies and Services,304358,Equipment and Materials,07/03/2024,4243286-5307137,"1,106.00",JA GILSON (AGRICULTURAL CONTRACTORS) LTD.
Neighbourhoods and Climate Change,Highways,Supplies and Services,304358,Equipment and Materials,07/03/2024,4243286-5307138,676.80,JA GILSON (AGRICULTURAL CONTRACTORS) LTD.
Regeneration Economy and Growth,Corporate Property and Land,Supplies and Services,304221,Equipment and Materials,07/03/2024,4243293-0110/00034978,533.04,JT DOVE LTD.
Neighbourhoods and Climate Change,Highways,Supplies and Services,304221,Equipment and Materials,07/03/2024,4243293-0303/01153165,"16,471.50",JT DOVE LTD.
Adult and Health Services,Commissioning inc Supporting People,Third Party Payments,470111,Purchase of Care,07/03/2024,4243298-LCD-FTI174779,"6,790.27",LEONARD CHESHIRE DISABILITY.
Adult and Health Services,Commissioning inc Supporting People,Third Party Payments,470111,Purchase of Care,07/03/2024,4243298-LCD-FTI174780,"5,401.21",LEONARD CHESHIRE DISABILITY.
Resources BK0010,Digital Services,Supplies and Services,342033,Computers and Communications,07/03/2024,4243309-12662261,"20,410.00",MAINTEL EUROPE LTD.
Resources BK0010,Digital Services,Supplies and Services,344111,Telephones,07/03/2024,4243309-266465,"6,171.63",MAINTEL EUROPE LTD.
Resources BK0010,Digital Services,Supplies and Services,344111,Telephones,07/03/2024,4243309-266471,"9,099.77",MAINTEL EUROPE LTD.
Resources BK0010,Digital Services,Supplies and Services,344111,Telephones,07/03/2024,4243309-266472,"5,863.27",MAINTEL EUROPE LTD.
Regeneration Economy and Growth,Culture Sport and Tourism,Supplies and Services,304337,Equipment and Materials,07/03/2024,4243311-4236174601,642.30,MARES SPA.
Regeneration Economy and Growth,Culture Sport and Tourism,Supplies and Services,304337,Equipment and Materials,07/03/2024,4243312-4236174603,"1,045.16",MARES SPA.
Adult and Health Services,Commissioning inc Supporting People,Supplies and Services,338099,Services,07/03/2024,4243320-1225,"12,187.50",MOBILISE CARE LTD.
Adult and Health Services,Commissioning inc Supporting People,Third Party Payments,440999,Other third party payments E440,07/03/2024,4243339-62191,"3,678.01",NATIONAL YOUTH ADVOCACY SERVICE.
Neighbourhoods and Climate Change,Environmental Services,Transport,230005,Contract Hire,07/03/2024,4243340-173854,"1,604.19",ND BROWN LTD.
Neighbourhoods and Climate Change,Environmental Services,Transport,230005,Contract Hire,07/03/2024,4243340-173855,"2,287.32",ND BROWN LTD.
Neighbourhoods and Climate Change,Environmental Services,Transport,230005,Contract Hire,07/03/2024,4243340-173856,"2,900.00",ND BROWN LTD.
Regeneration Economy and Growth,REG - Central Costs,Supplies and Services,338099,Services,07/03/2024,4243344-12975,"13,000.00",NEWCASTLE GATESHEAD INITIATIVE LTD.
Regeneration Economy and Growth,Transport and Contract Services,Construction work A908,908105,Construction work,07/03/2024,4243345-1800012259814,"43,335.05",NEWCASTLE UPON TYNE CITY COUNCIL.
Neighbourhoods and Climate Change,Highways,Construction work A908,908108,Capital - Surface Dressing,07/03/2024,4243346-44552745,957.57,NEWSQUEST (YORKSHIRE & NORTH EAST) LTD.
Neighbourhoods and Climate Change,Highways,Fees,901004,Capital - Detailed Design,07/03/2024,4243346-44552811,533.00,NEWSQUEST (YORKSHIRE & NORTH EAST) LTD.
Neighbourhoods and Climate Change,Highways,Supplies and Services,336005,Advertising E336,07/03/2024,4243346-44552932,603.76,NEWSQUEST (YORKSHIRE & NORTH EAST) LTD.
Neighbourhoods and Climate Change,Highways,Third Party Payments,460403,Contract Payments,07/03/2024,4243346-44553379,533.00,NEWSQUEST (YORKSHIRE & NORTH EAST) LTD.
Neighbourhoods and Climate Change,Environmental Services,Transport,210057,Repair and Maintenance of Vehicles,07/03/2024,4243352-21922512,537.64,NORTH EAST TRUCK & VAN LTD.
Neighbourhoods and Climate Change,Environmental Services,Transport,210057,Repair and Maintenance of Vehicles,07/03/2024,4243352-21922841,711.50,NORTH EAST TRUCK & VAN LTD.
Neighbourhoods and Climate Change,Environmental Services,Transport,210057,Repair and Maintenance of Vehicles,07/03/2024,4243352-21923177,632.44,NORTH EAST TRUCK & VAN LTD.
Regeneration Economy and Growth,Culture Sport and Tourism,Supplies and Services,304245,Equipment and Materials,07/03/2024,4243353-0232,550.00,NORTH EXHIBITION SERVICES LTD.
Neighbourhoods and Climate Change,Environmental Services,Third Party Payments,430100,Rendered by Private Contractors,07/03/2024,4243354-7514,"1,110.00",NORTHERN SKY MOTOR CARS LTD.
Neighbourhoods and Climate Change,Highways,Third Party Payments,430100,Rendered by Private Contractors,07/03/2024,4243357-27542,"4,725.00",OLIVERS TREE SERVICES LTD.
Regeneration Economy and Growth,Corporate Property and Land,Fees,901001,Internal fees,07/03/2024,4243370-6801257,"6,316.50",PINSENT MASONS LLP.
Adult and Health Services,Public Health CC0450,Third Party Payments,460803,Contract Payments,07/03/2024,4243371-18715/18,"7,993.75",PIONEERING CARE PARTNERSHIP.
Resources BK0010,Transactional & Customer Services,Supplies and Services,384999,Miscellaneous Expenses,07/03/2024,4243374-INV101681-DURHAMCOUNTYCOUNCIL-0124,"4,899.27",PREPAID FINANCIAL SERVICES LTD.
Adult and Health Services,Head of Adults,Supplies and Services,338089,Services,07/03/2024,4243375-6826,"1,860.00",PRICE TRAINING LTD.
Adult and Health Services,Head of Adults,Supplies and Services,338089,Services,07/03/2024,4243375-6890,"1,860.00",PRICE TRAINING LTD.
Adult and Health Services,Head of Adults,Supplies and Services,338365,Services,07/03/2024,4243386-SEN557798,"3,707.60",RNIB ENTERPRISES LTD.
Regeneration Economy and Growth,Planning & Housing,Fees,901002,Consultants fees 901002,07/03/2024,4243389-30075467,"1,200.00",RPS CONSULTING SERVICES LTD.
Regeneration Economy and Growth,Planning & Housing,Fees,901002,Consultants fees 901002,07/03/2024,4243389-3007552,"1,800.00",RPS CONSULTING SERVICES LTD.
Children and Young Peoples Services,Childrens Services Operational Support,Supplies and Services,338089,Services,07/03/2024,4243392-23/63/02,500.00,RUTH PEARSON TRAINING LTD.
Neighbourhoods and Climate Change,Environmental Services,Third Party Payments,430100,Rendered by Private Contractors,07/03/2024,4243394-60341249,"1,367.49",S JENNINGS LTD.
Regeneration Economy and Growth,Economic Development,Fees,901004,Capital - Detailed Design,07/03/2024,4243399-RES-03-2024-050REMAINDER,"135,000.00",SHOTTON PARISH COUNCIL.
Neighbourhoods and Climate Change,Highways,Supplies and Services,304221,Equipment and Materials,07/03/2024,4243400-092632,"3,336.54",SIMMONSIGNS LTD.
Neighbourhoods and Climate Change,Highways,Supplies and Services,304221,Equipment and Materials,07/03/2024,4243400-092634,"3,498.75",SIMMONSIGNS LTD.
Neighbourhoods and Climate Change,Environmental Services,Transport,230720,Contract Hire,07/03/2024,4243404-105/24/2697,"2,712.00",SOCIETE GENERALE EQUIPMENT FINANCE LTD.
Adult and Health Services,Commissioning inc Supporting People,Third Party Payments,479101,Purchase of Care,07/03/2024,4243409-6425,"26,219.73",SUPPORTIVE SRC LTD.
Adult and Health Services,Commissioning inc Supporting People,Third Party Payments,479101,Purchase of Care,07/03/2024,4243409-6426,"26,219.73",SUPPORTIVE SRC LTD.
Regeneration Economy and Growth,Planning & Housing,Supplies and Services,338066,Services,07/03/2024,4243410-13735,"2,400.00",SUSTAINABLE ENERGY LTD.
Regeneration Economy and Growth,Corporate Property and Land,Supplies and Services,304221,Equipment and Materials,07/03/2024,4243412-1147446,540.08,T CROSSLING & CO LTD.
Children and Young Peoples Services,Head of Early Help Inclusion & Vulnerable Children.,Employees,080025,Agency Staff,07/03/2024,4243416-0000563296,"1,499.85",TEACHERACTIVE LTD.
Neighbourhoods and Climate Change,Environmental Services,Third Party Payments,430100,Rendered by Private Contractors,07/03/2024,4243417-4172,"1,580.00",TEAM VALLEY TRANSMISSIONS LTD.
Neighbourhoods and Climate Change,Highways,Third Party Payments,430100,Rendered by Private Contractors,07/03/2024,4243423-122097,"4,963.98",TOFCO LTD.
Resources BK0010,Legal & Democratic Services,Supplies and Services,338042,Services,07/03/2024,4243427-311673/INVTS848,720.00,TRINITY CHAMBERS.
Resources BK0010,Legal & Democratic Services,Supplies and Services,338042,Services,07/03/2024,4243427-312578/INVGR734,785.00,TRINITY CHAMBERS.
Regeneration Economy and Growth,Business Durham,Supplies and Services,377015,County Durham Development,07/03/2024,4243429-INV-1644,"3,965.70",TRYLIGHT PRODUCTIONS LTD.
Neighbourhoods and Climate Change,Highways,Supplies and Services,304221,Equipment and Materials,07/03/2024,4243430-256749,"1,375.50",TYNEDALE ROADSTONE LTD.
Neighbourhoods and Climate Change,Highways,Supplies and Services,304221,Equipment and Materials,07/03/2024,4243434-INV073389,"26,389.16",URBIS SCHREDER LTD.
Neighbourhoods and Climate Change,Highways,Third Party Payments,430127,Rendered by Private Contractors,07/03/2024,4243439-52824,"6,807.50",W MARLEY AGRICULTURAL CONTRACTORS LTD.
Neighbourhoods and Climate Change,Highways,Third Party Payments,430127,Rendered by Private Contractors,07/03/2024,4243439-52850,965.00,W MARLEY AGRICULTURAL CONTRACTORS LTD.
Adult and Health Services,Head of Adults,Supplies and Services,338099,Services,07/03/2024,4243442-16/C,"1,210.00",WEST HALL BOARDING KENNELS.
Adult and Health Services,Head of Adults,Supplies and Services,338099,Services,07/03/2024,4243442-18/B,700.00,WEST HALL BOARDING KENNELS.
Neighbourhoods and Climate Change,Highways,Third Party Payments,430100,Rendered by Private Contractors,07/03/2024,4243443-INV/2024/00003,"9,952.00",WILLIAM SUGG & COMPANY LTD.
Neighbourhoods and Climate Change,Highways,Third Party Payments,430100,Rendered by Private Contractors,07/03/2024,4243443-INV/2024/00018,"6,968.25",WILLIAM SUGG & COMPANY LTD.
Neighbourhoods and Climate Change,Environmental Services,Supplies and Services,304259,Equipment and Materials,07/03/2024,4243444-60687,"4,373.54",WILLOWCRETE MANUFACTURING COMPANY LTD (MFG).
Neighbourhoods and Climate Change,Environmental Services,Supplies and Services,304259,Equipment and Materials,07/03/2024,4243444-60688,"1,264.60",WILLOWCRETE MANUFACTURING COMPANY LTD (MFG).
Neighbourhoods and Climate Change,Highways,Stock A926,926900,Stock in hand-Inventory system,07/03/2024,4243448-1122934,834.96,YOUR NRG LTD.
Neighbourhoods and Climate Change,Environmental Services,Transport,215005,Running Costs of Vehicles,07/03/2024,4243448-1125470,"11,758.00",YOUR NRG LTD.
Neighbourhoods and Climate Change,Environmental Services,Transport,215005,Running Costs of Vehicles,07/03/2024,4243448-1128251,"17,592.00",YOUR NRG LTD.
Adult and Health Services,Central/Other,Supplies and Services,384199,Miscellaneous Expenses,07/03/2024,4243435-RES-03-2024-054,"2,250.00",REDACTED - PAYMENT TO INDIVIDUAL
Children and Young Peoples Services,Head of Education and Skills,Transport,230013,Contract Hire,08/03/2024,4243462-0343,"2,224.32",REDACTED - PAYMENT TO INDIVIDUAL
Children and Young Peoples Services,Head of Education and Skills,Transport,230007,Contract Hire,08/03/2024,4243462-0344,"3,019.84",REDACTED - PAYMENT TO INDIVIDUAL
Children and Young Peoples Services,Head of Education and Skills,Transport,230008,Contract Hire,08/03/2024,4243465-02121,"2,848.00",REDACTED - PAYMENT TO INDIVIDUAL
Children and Young Peoples Services,Head of Education and Skills,Transport,230008,Contract Hire,08/03/2024,4243465-02123,"2,589.60",REDACTED - PAYMENT TO INDIVIDUAL
Children and Young Peoples Services,Head of Education and Skills,Transport,230007,Contract Hire,08/03/2024,4243465-02124,"1,216.00",REDACTED - PAYMENT TO INDIVIDUAL
Children and Young Peoples Services,Head of Education and Skills,Transport,230008,Contract Hire,08/03/2024,4243465-02125,"2,830.40",REDACTED - PAYMENT TO INDIVIDUAL
Children and Young Peoples Services,Head of Education and Skills,Transport,230008,Contract Hire,08/03/2024,4243465-02126,"2,471.68",REDACTED - PAYMENT TO INDIVIDUAL
Children and Young Peoples Services,Head of Education and Skills,Transport,230006,Contract Hire,08/03/2024,4243465-02128,"3,088.00",REDACTED - PAYMENT TO INDIVIDUAL
Children and Young Peoples Services,Head of Education and Skills,Transport,230008,Contract Hire,08/03/2024,4243465-02131,"2,048.00",REDACTED - PAYMENT TO INDIVIDUAL
Children and Young Peoples Services,Head of Education and Skills,Transport,230007,Contract Hire,08/03/2024,4243465-02132,928.00,REDACTED - PAYMENT TO INDIVIDUAL
Children and Young Peoples Services,Head of Education and Skills,Transport,230034,Contract Hire,08/03/2024,4243465-02148,"1,920.00",REDACTED - PAYMENT TO INDIVIDUAL
Children and Young Peoples Services,Head of Education and Skills,Transport,230006,Contract Hire,08/03/2024,4243465-02149,"1,332.00",REDACTED - PAYMENT TO INDIVIDUAL
Children and Young Peoples Services,Head of Education and Skills,Transport,230008,Contract Hire,08/03/2024,4243465-02152,"2,670.00",REDACTED - PAYMENT TO INDIVIDUAL
Children and Young Peoples Services,Head of Education and Skills,Transport,230006,Contract Hire,08/03/2024,4243465-02155,"1,880.00",REDACTED - PAYMENT TO INDIVIDUAL
Children and Young Peoples Services,Head of Education and Skills,Transport,230007,Contract Hire,08/03/2024,4243506-47880,"2,559.68",REDACTED - PAYMENT TO INDIVIDUAL
Children and Young Peoples Services,Head of Education and Skills,Transport,230007,Contract Hire,08/03/2024,4243506-47881,"4,480.00",REDACTED - PAYMENT TO INDIVIDUAL
Children and Young Peoples Services,Head of Education and Skills,Transport,230007,Contract Hire,08/03/2024,4243506-47882,"3,984.00",REDACTED - PAYMENT TO INDIVIDUAL
Children and Young Peoples Services,Head of Education and Skills,Transport,230003,Contract Hire,08/03/2024,4243506-47883,"3,520.00",REDACTED - PAYMENT TO INDIVIDUAL
Children and Young Peoples Services,Head of Education and Skills,Transport,230003,Contract Hire,08/03/2024,4243506-47884,"4,480.00",REDACTED - PAYMENT TO INDIVIDUAL
Children and Young Peoples Services,Head of Education and Skills,Transport,230003,Contract Hire,08/03/2024,4243506-47885,"4,640.00",REDACTED - PAYMENT TO INDIVIDUAL
Children and Young Peoples Services,Head of Education and Skills,Transport,230008,Contract Hire,08/03/2024,4243529-6-FEB24,"2,065.50",REDACTED - PAYMENT TO INDIVIDUAL
Children and Young Peoples Services,Head of Education and Skills,Transport,230008,Contract Hire,08/03/2024,4243530-06,"2,160.00",REDACTED - PAYMENT TO INDIVIDUAL
Resources BK0010,Legal & Democratic Services,Supplies and Services,338105,Services,08/03/2024,4243539-001-2024-POL,788.00,REDACTED - PAYMENT TO INDIVIDUAL
Children and Young Peoples Services,Head of Education and Skills,Transport,230034,Contract Hire,08/03/2024,4243605-338,"1,543.50",REDACTED - PAYMENT TO INDIVIDUAL
Children and Young Peoples Services,Head of Education and Skills,Transport,230006,Contract Hire,08/03/2024,4243617-CTD0006/2024,700.00,REDACTED - PAYMENT TO INDIVIDUAL
Children and Young Peoples Services,Head of Education and Skills,Transport,230007,Contract Hire,08/03/2024,4243617-CTD0028/24,"1,423.20",REDACTED - PAYMENT TO INDIVIDUAL
Children and Young Peoples Services,Head of Education and Skills,Transport,230008,Contract Hire,08/03/2024,4243645-KC-4025,"2,535.00",REDACTED - PAYMENT TO INDIVIDUAL
Children and Young Peoples Services,Head of Education and Skills,Transport,230009,Contract Hire,08/03/2024,4243645-KC4023,869.76,REDACTED - PAYMENT TO INDIVIDUAL
Children and Young Peoples Services,Head of Education and Skills,Transport,230008,Contract Hire,08/03/2024,4243645-KC4027,"3,411.52",REDACTED - PAYMENT TO INDIVIDUAL
Children and Young Peoples Services,Head of Education and Skills,Transport,230008,Contract Hire,08/03/2024,4243645-KC4028,542.56,REDACTED - PAYMENT TO INDIVIDUAL
Children and Young Peoples Services,Head of Education and Skills,Transport,230008,Contract Hire,08/03/2024,4243645-KW4026,"3,067.20",REDACTED - PAYMENT TO INDIVIDUAL
Children and Young Peoples Services,Head of Education and Skills,Transport,230007,Contract Hire,08/03/2024,4243662-4408FEBRUARY,"1,600.00",REDACTED - PAYMENT TO INDIVIDUAL
Children and Young Peoples Services,Head of Education and Skills,Transport,230009,Contract Hire,08/03/2024,4243662-DCL-7010-FEBRUARY,"1,655.52",REDACTED - PAYMENT TO INDIVIDUAL
Children and Young Peoples Services,Head of Education and Skills,Transport,230006,Contract Hire,08/03/2024,4243662-DCL-F340-FEBRUARY,"1,795.80",REDACTED - PAYMENT TO INDIVIDUAL
Children and Young Peoples Services,Head of Education and Skills,Transport,230006,Contract Hire,08/03/2024,4243662-DCL-F367-FEBRUARY,"1,995.00",REDACTED - PAYMENT TO INDIVIDUAL
Children and Young Peoples Services,Head of Education and Skills,Transport,230006,Contract Hire,08/03/2024,4243662-F882 - FEBRUARY,"1,808.17",REDACTED - PAYMENT TO INDIVIDUAL
Children and Young Peoples Services,Head of Education and Skills,Transport,230006,Contract Hire,08/03/2024,4243663-597,"4,000.00",REDACTED - PAYMENT TO INDIVIDUAL
Children and Young Peoples Services,Head of Education and Skills,Transport,230006,Contract Hire,08/03/2024,4243664-N120FEB,"3,000.00",REDACTED - PAYMENT TO INDIVIDUAL
Children and Young Peoples Services,Head of Education and Skills,Transport,230008,Contract Hire,08/03/2024,4243665-A222/FEB24,"1,760.00",REDACTED - PAYMENT TO INDIVIDUAL
Children and Young Peoples Services,Head of Education and Skills,Transport,230008,Contract Hire,08/03/2024,4243667-136,"2,560.00",REDACTED - PAYMENT TO INDIVIDUAL
Children and Young Peoples Services,Head of Education and Skills,Transport,230008,Contract Hire,08/03/2024,4243667-137,"2,225.76",REDACTED - PAYMENT TO INDIVIDUAL
Children and Young Peoples Services,Head of Education and Skills,Transport,230010,Contract Hire,08/03/2024,4243693-B055-WOODLANDS,"2,910.60",REDACTED - PAYMENT TO INDIVIDUAL
Children and Young Peoples Services,Head of Education and Skills,Transport,230006,Contract Hire,08/03/2024,4243738-00038/FEB24,"1,296.00",REDACTED - PAYMENT TO INDIVIDUAL
Children and Young Peoples Services,Head of Education and Skills,Transport,230007,Contract Hire,08/03/2024,4243749-2278-FEB24,"4,720.00",REDACTED - PAYMENT TO INDIVIDUAL
Children and Young Peoples Services,Head of Education and Skills,Transport,230007,Contract Hire,08/03/2024,4243749-2279,"6,000.00",REDACTED - PAYMENT TO INDIVIDUAL
Children and Young Peoples Services,Head of Education and Skills,Transport,230008,Contract Hire,08/03/2024,4243750-01985,"1,920.00",REDACTED - PAYMENT TO INDIVIDUAL
Children and Young Peoples Services,Head of Education and Skills,Transport,230034,Contract Hire,08/03/2024,4243751-3014/FEB24,"1,430.00",REDACTED - PAYMENT TO INDIVIDUAL
Children and Young Peoples Services,Head of Education and Skills,Transport,230006,Contract Hire,08/03/2024,4243751-F350/FEB24,"1,320.00",REDACTED - PAYMENT TO INDIVIDUAL
Children and Young Peoples Services,Head of Education and Skills,Transport,230013,Contract Hire,08/03/2024,4243752-056-FEB24,"1,944.32",REDACTED - PAYMENT TO INDIVIDUAL
Children and Young Peoples Services,Head of Education and Skills,Transport,230006,Contract Hire,08/03/2024,4243752-057-FEB24,960.00,REDACTED - PAYMENT TO INDIVIDUAL
Children and Young Peoples Services,Head of Education and Skills,Transport,230008,Contract Hire,08/03/2024,4243771-FEBA021,"2,400.00",REDACTED - PAYMENT TO INDIVIDUAL
Neighbourhoods and Climate Change,Partnerships & Community Engagement Div.,Supplies and Services,384086,Miscellaneous Expenses,08/03/2024,4243492-VOUCHER23NB-DVLY022,"1,106.00",BURNOPFIELD COMMUNAL AGED PERSONS CLUB.
Regeneration Economy and Growth,Culture Sport and Tourism,Supplies and Services,304259,Equipment and Materials,08/03/2024,4243499-0000508270,602.49,CATER-KWIK LTD.
Children and Young Peoples Services,Head of Childrens Social Care,Supplies and Services,338066,Services,08/03/2024,4243585-006790,"1,000.00",HKB WILTSHIRES SOLICITORS.
Regeneration Economy and Growth,Planning & Housing,Supplies and Services,304245,Equipment and Materials,08/03/2024,4243627-0000282803,695.50,LEGRAND ELECTRIC LTD T/A TYNETEC.
Neighbourhoods and Climate Change,Highways,Supplies and Services,304221,Equipment and Materials,08/03/2024,4243772-000000000633194,"1,263.44",TRAFFIC MANAGEMENT PRODUCTS LTD (TMP).
Children and Young Peoples Services,Head of Education and Skills,Transport,230006,Contract Hire,08/03/2024,4243451-FEBRUARY02(2024),"1,080.00",A & P TAXIS.
Children and Young Peoples Services,Head of Education and Skills,Transport,230035,Contract Hire,08/03/2024,4243451-FEBRUARY03/2024,"1,504.64",A & P TAXIS.
Children and Young Peoples Services,Head of Education and Skills,Transport,230007,Contract Hire,08/03/2024,4243451-FEBRUARY04/2024,"1,600.00",A & P TAXIS.
Children and Young Peoples Services,Head of Education and Skills,Transport,230006,Contract Hire,08/03/2024,4243451-FEBRUARY05/2024,"3,999.16",A & P TAXIS.
Children and Young Peoples Services,Head of Education and Skills,Transport,230034,Contract Hire,08/03/2024,4243451-FEBRUARY07/2024,"2,240.00",A & P TAXIS.
Children and Young Peoples Services,Head of Education and Skills,Transport,230010,Contract Hire,08/03/2024,4243453-O624,"3,730.54",ABC & OUSTON CABS.
Children and Young Peoples Services,Head of Education and Skills,Transport,230010,Contract Hire,08/03/2024,4243453-O626,"3,700.98",ABC & OUSTON CABS.
Children and Young Peoples Services,Head of Education and Skills,Transport,230010,Contract Hire,08/03/2024,4243453-O627,"3,903.39",ABC & OUSTON CABS.
Adult and Health Services,Head of Adults,Premises,106082,Centrally Controlled Rep and Maint,08/03/2024,4243458-53824579,573.00,ADT FIRE & SECURITY PLC.
Children and Young Peoples Services,Head of Early Help Inclusion & Vulnerable Children.,Supplies and Services,338035,Services,08/03/2024,4243468-CI-1016733,"2,006.15",AQA EDUCATION.
Resources BK0010,Procurement Sales & Business Services,Long Term Debtors,924001,Car loans,08/03/2024,4243470-121367,708.00,ARRIVA NORTHUMBRIA LTD.
Regeneration Economy and Growth,Transport and Contract Services,Third Party Payments,430106,Rendered by Private Contractors,08/03/2024,4243470-121557,"69,299.28",ARRIVA NORTHUMBRIA LTD.
Regeneration Economy and Growth,Culture Sport and Tourism,Supplies and Services,312013,Newspapers books and periodicals E312,08/03/2024,4243471-7010357,580.85,ASKEWS & HOLTS LIBRARY SERVICES LTD.
Children and Young Peoples Services,Head of Education and Skills,Transport,230008,Contract Hire,08/03/2024,4243472-SO16FEB24,"4,870.00",ATLAS TAXIS BISHOP AUCKLAND.
Children and Young Peoples Services,Head of Education and Skills,Transport,230008,Contract Hire,08/03/2024,4243472-W071FEB24,"4,736.00",ATLAS TAXIS BISHOP AUCKLAND.
Children and Young Peoples Services,Head of Education and Skills,Transport,230008,Contract Hire,08/03/2024,4243472-W085FEB24,"3,715.20",ATLAS TAXIS BISHOP AUCKLAND.
Children and Young Peoples Services,Head of Education and Skills,Transport,230009,Contract Hire,08/03/2024,4243473-7397FEB24,"2,800.00",ATLAS TAXIS MANAGEMENT LTD.
Children and Young Peoples Services,Head of Education and Skills,Transport,230006,Contract Hire,08/03/2024,4243473-F208FEB24,"3,606.84",ATLAS TAXIS MANAGEMENT LTD.
Children and Young Peoples Services,Head of Education and Skills,Transport,230012,Contract Hire,08/03/2024,4243473-R006-FEB24,"3,120.00",ATLAS TAXIS MANAGEMENT LTD.
Adult and Health Services,Head of Adults,Transport,230005,Contract Hire,08/03/2024,4243473-SED125FEB24,"1,360.00",ATLAS TAXIS MANAGEMENT LTD.
Children and Young Peoples Services,Head of Education and Skills,Transport,230007,Contract Hire,08/03/2024,4243473-W052-FEB24,"4,144.00",ATLAS TAXIS MANAGEMENT LTD.
Children and Young Peoples Services,Head of Education and Skills,Transport,230008,Contract Hire,08/03/2024,4243473-W076-FEB24,"3,840.00",ATLAS TAXIS MANAGEMENT LTD.
Regeneration Economy and Growth,Corporate Property and Land,Cap Exp on Grants & Other Financial Assistance (REFCUS),918501,Exp assets not owned by authority (REFCUS),08/03/2024,4243475-SIN053245,"1,420,858.00",BEAMISH MUSEUM LTD.
Children and Young Peoples Services,Head of Education and Skills,Transport,230008,Contract Hire,08/03/2024,4243476-1082,"2,393.12",BEELINE MINI BUSES.
Children and Young Peoples Services,Head of Education and Skills,Transport,230008,Contract Hire,08/03/2024,4243476-1083,"1,786.40",BEELINE MINI BUSES.
Children and Young Peoples Services,Head of Education and Skills,Transport,230008,Contract Hire,08/03/2024,4243476-1084,"1,162.88",BEELINE MINI BUSES.
Neighbourhoods and Climate Change,Environmental Services,Transport,210057,Repair and Maintenance of Vehicles,08/03/2024,4243477-35262147,701.55,BELL TRUCK SALES LTD T/A BELL TRUCK & VAN.
Regeneration Economy and Growth,Corporate Property and Land,Premises,108099,Service Repairs and Maintenance,08/03/2024,4243478-260130,525.00,BELLWOOD REWINDS LTD.
Children and Young Peoples Services,Head of Early Help Inclusion & Vulnerable Children.,Premises,108099,Service Repairs and Maintenance,08/03/2024,4243478-260132,"1,120.00",BELLWOOD REWINDS LTD.
Children and Young Peoples Services,Head of Education and Skills,Transport,230007,Contract Hire,08/03/2024,4243484-6069-FEB24,"1,279.68",BIG MAMA`S TAXI.
Children and Young Peoples Services,Head of Education and Skills,Transport,230006,Contract Hire,08/03/2024,4243484-F203-FEB24,999.80,BIG MAMA`S TAXI.
Children and Young Peoples Services,Head of Education and Skills,Transport,230006,Contract Hire,08/03/2024,4243484-F320-FFEB24,999.80,BIG MAMA`S TAXI.
Resources BK0010,Legal & Democratic Services,Supplies and Services,338057,Services,08/03/2024,4243485-2667,745.00,BIOFORTUNA LTD.
Adult and Health Services,Head of Adults,Transport,230005,Contract Hire,08/03/2024,4243488-BZ00508,864.00,BREZ`S TAXIS.
Children and Young Peoples Services,Head of Childrens Social Care,Supplies and Services,338066,Services,08/03/2024,4243504-INV-2697,"1,669.00",CHILD & FAMILY SOLUTIONS LTD.
Regeneration Economy and Growth,Corporate Property and Land,Supplies and Services,304259,Equipment and Materials,08/03/2024,4243507-CN30346371,"1,132.08",CITRON HYGIENE UK LTD.
Resources BK0010,Transactional & Customer Services,Supplies and Services,338099,Services,08/03/2024,4243510-C/RB296538,"2,024.02",CIVICA UK LTD.
Children and Young Peoples Services,Head of Education and Skills,Transport,230008,Contract Hire,08/03/2024,4243511-N049-JM-FEB24,"3,166.64",CJ`S EXECUTIVE TRAVEL LTD.
Neighbourhoods and Climate Change,Environmental Services,Supplies and Services,304999,Equipment and Materials,08/03/2024,4243513-0000161138,"2,755.00",CLEVELAND CONTAINERS LTD.
Regeneration Economy and Growth,Corporate Property and Land,Premises,106082,Centrally Controlled Rep and Maint,08/03/2024,4243518-105957,603.50,COMPLIANCE GROUP ELECTRICAL LTD.
Adult and Health Services,Public Health CC0450,Third Party Payments,460803,Contract Payments,08/03/2024,4243524-3910022882,"384,362.00",COUNTY DURHAM & DARLINGTON NHS FOUNDATION TRUST (CDDFT).
Adult and Health Services,Public Health CC0450,Third Party Payments,460803,Contract Payments,08/03/2024,4243524-3910022916,"384,362.00",COUNTY DURHAM & DARLINGTON NHS FOUNDATION TRUST (CDDFT).
Adult and Health Services,Public Health CC0450,Third Party Payments,460803,Contract Payments,08/03/2024,4243524-3910022917,"180,916.00",COUNTY DURHAM & DARLINGTON NHS FOUNDATION TRUST (CDDFT).
Adult and Health Services,Public Health CC0450,Third Party Payments,460803,Contract Payments,08/03/2024,4243524-3910022918,"30,826.00",COUNTY DURHAM & DARLINGTON NHS FOUNDATION TRUST (CDDFT).
Adult and Health Services,Public Health CC0450,Third Party Payments,460803,Contract Payments,08/03/2024,4243524-3910022919,"6,448.00",COUNTY DURHAM & DARLINGTON NHS FOUNDATION TRUST (CDDFT).
Resources BK0010,Legal & Democratic Services,Supplies and Services,338066,Services,08/03/2024,4243526-VE/1HC34/073256/001,"1,452.80",CYGNET FAMILY LAW.
Children and Young Peoples Services,Head of Education and Skills,Transport,230007,Contract Hire,08/03/2024,4243528-3520/FEB24,"1,975.00",DAVE'S PRIVATE HIRE.
Resources BK0010,Legal & Democratic Services,Supplies and Services,338042,Services,08/03/2024,4243534-390653/INVNR338,"10,625.00",DERE STREET BARRISTERS.
Neighbourhoods and Climate Change,Partnerships & Community Engagement Div.,Cap Exp on Grants & Other Financial Assistance (REFCUS),918004,Contributions to other bodies 918004,08/03/2024,4243541-VOUCHER23NB-BASH032,"2,512.00",DURHAM ALLIANCE FOR COMMUNITY CARE.
Regeneration Economy and Growth,Culture Sport and Tourism,Supplies and Services,312013,Newspapers books and periodicals E312,08/03/2024,4243542-24022024,"1,440.06",DURHAM CITY NEWSTORE.
Regeneration Economy and Growth,Business Durham,Premises,120009,Energy Costs,08/03/2024,4243546-000018467337,"22,645.89",EDF ENERGY CUSTOMERS PLC T/A EDF ENERGY.
Regeneration Economy and Growth,Corporate Property and Land,Supplies and Services,304221,Equipment and Materials,08/03/2024,4243547-059-332270,"1,540.00",EDMUNDSON ELECTRICAL LTD.
Children and Young Peoples Services,Head of Education and Skills,Transport,230008,Contract Hire,08/03/2024,4243553-ES6-FEB24,"1,385.50",ELITE TAXIS.
Children and Young Peoples Services,Head of Education and Skills,Transport,230008,Contract Hire,08/03/2024,4243553-T06,"1,912.00",ELITE TAXIS.
Children and Young Peoples Services,Head of Education and Skills,Transport,230008,Contract Hire,08/03/2024,4243561-W068,"2,465.64",FERRYHILL VILLAGE TRAVEL & BROOM ROAD GARAGE LIMITED.
Regeneration Economy and Growth,Planning & Housing,Supplies and Services,304516,Equipment and Materials,08/03/2024,4243563-9484,"4,210.00",FM HEARING SYSTEMS T/A DIGITAL HEARING CARE SOLUTIONS LTD.
Resources BK0010,Legal & Democratic Services,Supplies and Services,338101,Services,08/03/2024,4243565-PNC0034-2024JC,"2,526.00",FORENSIC PATHOLOGY LTD.
Neighbourhoods and Climate Change,Partnerships & Community Engagement Div.,Supplies and Services,308011,Furniture,08/03/2024,4243566-17822,989.16,FRANKS THE FLOORING STORE.
Regeneration Economy and Growth,Transport and Contract Services,Third Party Payments,430106,Rendered by Private Contractors,08/03/2024,4243569-SR17022024,"167,909.12",GATESHEAD CENTRAL TAXIS LTD.
Neighbourhoods and Climate Change,Highways,Supplies and Services,304221,Equipment and Materials,08/03/2024,4243572-SI880319,"4,549.95",GLASDON UK LTD.
Regeneration Economy and Growth,Culture Sport and Tourism,Premises,106082,Centrally Controlled Rep and Maint,08/03/2024,4243573-INV-2041,"23,214.08",GLENFIELD ENERGY SOLUTIONS LTD.
Regeneration Economy and Growth,Corporate Property and Land,Premises,145023,Cleaning and Domestic Supplies,08/03/2024,4243579-06/260041,"1,162.06",GREENHAM TRADING LTD.
Adult and Health Services,Public Health CC0450,Third Party Payments,460803,Contract Payments,08/03/2024,4243581-DCCDA07,"71,951.90",HARBOUR SUPPORT SERVICES.
Children and Young Peoples Services,Head of Education and Skills,Transport,230031,Contract Hire,08/03/2024,4243586-24519,"4,632.00",HODGSONS COACH OPERATORS LTD.
Regeneration Economy and Growth,Corporate Property and Land,Premises,108099,Service Repairs and Maintenance,08/03/2024,4243587-7081076593,528.63,HONEYWELL NOVAR SYSTEMS LTD.
Children and Young Peoples Services,Head of Education and Skills,Transport,230008,Contract Hire,08/03/2024,4243590-1201,"1,582.50",I & R EXECUTIVE TRAVEL.
Adult and Health Services,Head of Adults,Transport,230005,Contract Hire,08/03/2024,4243590-1202,"1,896.80",I & R EXECUTIVE TRAVEL.
Children and Young Peoples Services,Head of Childrens Social Care,Third Party Payments,486020,Service level agreements E486,08/03/2024,4243592-DM010224,"2,240.00",INCLUDE `IN` AUTISM.
Children and Young Peoples Services,Head of Childrens Social Care,Third Party Payments,486020,Service level agreements E486,08/03/2024,4243592-DMBUS240224,"3,040.00",INCLUDE `IN` AUTISM.
Neighbourhoods and Climate Change,Highways,Third Party Payments,430100,Rendered by Private Contractors,08/03/2024,4243599-28805,"1,573.00",JACK COUPE & SONS LTD T/A COUPE LINE.
Neighbourhoods and Climate Change,Highways,Third Party Payments,430100,Rendered by Private Contractors,08/03/2024,4243599-28851,"1,175.88",JACK COUPE & SONS LTD T/A COUPE LINE.
Neighbourhoods and Climate Change,Highways,Third Party Payments,430100,Rendered by Private Contractors,08/03/2024,4243599-28870,814.91,JACK COUPE & SONS LTD T/A COUPE LINE.
Children and Young Peoples Services,Head of Education and Skills,Transport,230007,Contract Hire,08/03/2024,4243601-2324101,"2,152.96",JD`S PRIVATE HIRE DURHAM.
Children and Young Peoples Services,Head of Education and Skills,Transport,230008,Contract Hire,08/03/2024,4243601-2324108,"2,516.48",JD`S PRIVATE HIRE DURHAM.
Children and Young Peoples Services,Head of Education and Skills,Transport,230008,Contract Hire,08/03/2024,4243601-2324109,"2,448.00",JD`S PRIVATE HIRE DURHAM.
Children and Young Peoples Services,Head of Education and Skills,Transport,230008,Contract Hire,08/03/2024,4243601-2324110,"2,208.00",JD`S PRIVATE HIRE DURHAM.
Children and Young Peoples Services,Head of Education and Skills,Transport,230012,Contract Hire,08/03/2024,4243601-2324111,"1,672.32",JD`S PRIVATE HIRE DURHAM.
Children and Young Peoples Services,Head of Education and Skills,Transport,230008,Contract Hire,08/03/2024,4243601-2324114,"3,103.56",JD`S PRIVATE HIRE DURHAM.
Children and Young Peoples Services,Head of Education and Skills,Transport,230009,Contract Hire,08/03/2024,4243601-2324115,"2,006.56",JD`S PRIVATE HIRE DURHAM.
Children and Young Peoples Services,Head of Education and Skills,Transport,230007,Contract Hire,08/03/2024,4243601-2324116,"1,856.96",JD`S PRIVATE HIRE DURHAM.
Children and Young Peoples Services,Head of Education and Skills,Transport,230008,Contract Hire,08/03/2024,4243601-2324117,"2,265.60",JD`S PRIVATE HIRE DURHAM.
Children and Young Peoples Services,Head of Education and Skills,Transport,230008,Contract Hire,08/03/2024,4243601-2324118,"3,306.26",JD`S PRIVATE HIRE DURHAM.
Children and Young Peoples Services,Head of Education and Skills,Transport,230008,Contract Hire,08/03/2024,4243601-2324119,"2,763.84",JD`S PRIVATE HIRE DURHAM.
Children and Young Peoples Services,Head of Education and Skills,Transport,230007,Contract Hire,08/03/2024,4243601-2324120,"1,184.00",JD`S PRIVATE HIRE DURHAM.
Children and Young Peoples Services,Head of Education and Skills,Transport,230008,Contract Hire,08/03/2024,4243601-2324122,576.00,JD`S PRIVATE HIRE DURHAM.
Neighbourhoods and Climate Change,Partnerships & Community Engagement Div.,Cap Exp on Grants & Other Financial Assistance (REFCUS),918004,Contributions to other bodies 918004,08/03/2024,4243602-VOUCHER23MTVF-DVLY005,"5,036.50",JF KENNEDY CARE CENTRE.
Regeneration Economy and Growth,Corporate Property and Land,Supplies and Services,304221,Equipment and Materials,08/03/2024,4243610-0213/01154261,560.75,JT DOVE LTD.
Children and Young Peoples Services,Head of Education and Skills,Transport,230007,Contract Hire,08/03/2024,4243619-1202-FEBRUARY24,"1,379.68",KINGSWAY CABS LTD.
Children and Young Peoples Services,Head of Education and Skills,Transport,230034,Contract Hire,08/03/2024,4243619-6001-FEBRUARY24,"2,560.00",KINGSWAY CABS LTD.
Children and Young Peoples Services,Head of Education and Skills,Transport,230008,Contract Hire,08/03/2024,4243619-A049-FEBRUARY24,"2,250.00",KINGSWAY CABS LTD.
Children and Young Peoples Services,Head of Education and Skills,Transport,230008,Contract Hire,08/03/2024,4243619-A070-FEBRUARY24,"2,361.60",KINGSWAY CABS LTD.
Children and Young Peoples Services,Head of Education and Skills,Transport,230008,Contract Hire,08/03/2024,4243619-A162-FEB24,"2,250.00",KINGSWAY CABS LTD.
Children and Young Peoples Services,Head of Education and Skills,Transport,230008,Contract Hire,08/03/2024,4243619-A173-FEBRUARY24,"1,709.60",KINGSWAY CABS LTD.
Children and Young Peoples Services,Head of Education and Skills,Transport,230034,Contract Hire,08/03/2024,4243619-A213-FEBRUARY24,"3,840.00",KINGSWAY CABS LTD.
Children and Young Peoples Services,Head of Education and Skills,Transport,230006,Contract Hire,08/03/2024,4243619-F338-FEBRUARY24,"2,650.00",KINGSWAY CABS LTD.
Children and Young Peoples Services,Head of Education and Skills,Transport,230008,Contract Hire,08/03/2024,4243619-M035-FEBRAURY24,"2,720.00",KINGSWAY CABS LTD.
Children and Young Peoples Services,Head of Education and Skills,Transport,230008,Contract Hire,08/03/2024,4243619-M038-FEBRUARY24,"3,120.00",KINGSWAY CABS LTD.
Children and Young Peoples Services,Head of Education and Skills,Transport,230008,Contract Hire,08/03/2024,4243619-MO23-FEBRUARY24,"2,814.72",KINGSWAY CABS LTD.
Children and Young Peoples Services,Head of Education and Skills,Transport,230008,Contract Hire,08/03/2024,4243619-N013-FEBRUARY24,"2,320.00",KINGSWAY CABS LTD.
Children and Young Peoples Services,Head of Education and Skills,Transport,230008,Contract Hire,08/03/2024,4243619-N036-FEBRUARY2024,"2,240.00",KINGSWAY CABS LTD.
Children and Young Peoples Services,Head of Education and Skills,Transport,230008,Contract Hire,08/03/2024,4243619-N053-FEBRUARY24,"1,560.00",KINGSWAY CABS LTD.
Children and Young Peoples Services,Head of Education and Skills,Transport,230008,Contract Hire,08/03/2024,4243619-N073-FEBRUARY24,"1,920.00",KINGSWAY CABS LTD.
Children and Young Peoples Services,Head of Education and Skills,Transport,230008,Contract Hire,08/03/2024,4243619-N090-FEBRUARY24,"3,136.00",KINGSWAY CABS LTD.
Children and Young Peoples Services,Head of Education and Skills,Transport,230008,Contract Hire,08/03/2024,4243619-N091-FEBRUARY24,"1,760.00",KINGSWAY CABS LTD.
Children and Young Peoples Services,Head of Education and Skills,Transport,230008,Contract Hire,08/03/2024,4243619-N095-FEBRUARY24,"1,706.40",KINGSWAY CABS LTD.
